Directorate,Department,Expenditure Type,Ref.Doc.1,Vendor Name,Expenditure Amount (exc VAT),Payment Date
Assurance,Assurance,Training,60082668,ITS TRAINING (UK) LTD,"6,471.00",08/08/2017
Assurance,Assurance,Legal and Court Fees,60084825,ASSOCIATION OF ELECTORAL ADMINISTRA,661.00,24/08/2017
Assurance,Assurance,Rents,60083117,PORTAKABIN LTD,"1,250.00",08/08/2017
Assurance,Assurance,Rents,80011960,ST MARY & ARCHANGEL MICHAEL CHURCH,"1,100.00",18/08/2017
Assurance,Assurance,Rents,60085663,MOTT MACDONALD LTD/CAMBRIDGE EDUCATION,"5,025.00",30/08/2017
Assurance,Assurance,Professional Services,60078595,GEOGRAPHERS A-Z MAP COMPANY LTD,"3,720.00",08/08/2017
Assurance,Assurance,Stationery,40002407,OFFICE DEPOT UK LTD,87.99,23/08/2017
Assurance,Assurance,Subscriptions,60066348,CENTRE FOR PUBLIC SCRUTINY LTD,483.30,16/08/2017
Assurance,Assurance,Other Indirect Employee Expens,80011753,JEWISH VOLUNTEERING NETWORK,300.00,01/08/2017
Assurance,Assurance,Other Indirect Employee Expens,80011906,MAYOR OF HILLINGDON,110.00,22/08/2017
Assurance,Assurance,Other Indirect Employee Expens,80012167,LONDON BOROUGH OF CAMDEN,15.00,22/08/2017
Assurance,Assurance,Vehicle Running Costs,80011779,MAYOR OF BARNET,50.82,02/08/2017
Assurance,Assurance,Vehicle Running Costs,80011780,MAYOR OF BARNET,78.35,02/08/2017
Assurance,Assurance,Vehicle Running Costs,80012074,MAYOR OF BARNET,63.07,23/08/2017
Assurance,Assurance,Vehicle Running Costs,80012105,MAYOR OF BARNET,27.92,23/08/2017
Assurance,Assurance,Equipment and Materials Purcha,80012075,CHMUNDAY LIMITED,125.00,23/08/2017
Assurance,Assurance,Publications,80012123,THE LONDON MAYORS ASSOCIATION,60.00,22/08/2017
Assurance,Assurance,Training,60082010,CIPFA BUSINESS LIMITED,350.00,09/08/2017
Assurance,Assurance,Training,60082050,CIPFA BUSINESS LIMITED,175.00,24/08/2017
Assurance,Assurance,Subscriptions,80011782,THE INFORMATION COMMISSIONER,35.00,15/08/2017
Assurance,Assurance,Subscriptions,80011649,THE INFORMATION COMMISSIONER,35.00,25/08/2017
Assurance,Assurance,Subscriptions,80012118,THE INFORMATION COMMISSIONER,35.00,29/08/2017
Assurance,Assurance,Equipment and Materials Purcha,80011933,EMC ADVERTISING LTD,620.00,23/08/2017
Assurance,Assurance,Subscriptions,60083650,COMPANIES HOUSE,4.00,21/08/2017
Central Expenses,Central Expenses,Other Establishments - Third P,60082990,TRANSPORT FOR LONDON,"110,817.86",04/08/2017
Central Expenses,Central Expenses,Insurance Claims,60084555,CITY SUBURBAN TREE SURGEONS LTD,70.00,24/08/2017
Central Expenses,Central Expenses,Insurance Claims,60080833,JOHNSON AUSTIN PARTNERSHIP LLP,300.00,14/08/2017
Central Expenses,Central Expenses,Insurance Claims,60085358,JOHNSON AUSTIN PARTNERSHIP LLP,770.00,18/08/2017
Central Expenses,Central Expenses,Insurance Claims,60085374,JOHNSON AUSTIN PARTNERSHIP LLP,"2,016.00",18/08/2017
Central Expenses,Central Expenses,Insurance Claims,60085398,JOHNSON AUSTIN PARTNERSHIP LLP,375.00,18/08/2017
Central Expenses,Central Expenses,Insurance Claims,60077105,WEIGHTMANS LLP,"1,000.00",15/08/2017
Central Expenses,Central Expenses,Insurance Claims,60077151,WEIGHTMANS LLP,"1,523.00",15/08/2017
Central Expenses,Central Expenses,Insurance Claims,60077179,WEIGHTMANS LLP,"1,000.00",15/08/2017
Central Expenses,Central Expenses,Insurance Claims,60077197,WEIGHTMANS LLP,"1,000.00",15/08/2017
Central Expenses,Central Expenses,Insurance Claims,60077430,WEIGHTMANS LLP,984.00,15/08/2017
Central Expenses,Central Expenses,Insurance Claims,60077530,WEIGHTMANS LLP,850.00,15/08/2017
Central Expenses,Central Expenses,Insurance Claims,60084470,CLYDE & CO LLP,"5,640.00",01/08/2017
Central Expenses,Central Expenses,Insurance Claims,60084509,CLYDE & CO LLP,840.00,01/08/2017
Central Expenses,Central Expenses,Insurance Claims,60084529,CLYDE & CO LLP,"1,020.00",01/08/2017
Central Expenses,Central Expenses,Insurance Claims,80011821,BROWNE JACOBSON SOLS.,"15,000.00",04/08/2017
Central Expenses,Central Expenses,Insurance Claims,80011881,DWP COMPENSATION RECOVERY UNIT,817.00,09/08/2017
Central Expenses,Central Expenses,Insurance Claims,80012110,DWP COMPENSATION RECOVERY UNIT,665.00,22/08/2017
Central Expenses,Central Expenses,Insurance Claims,80012224,DWP COMPENSATION RECOVERY UNIT,"3,053.00",31/08/2017
Central Expenses,Central Expenses,Insurance Claims,80011801,IRWIN MITCHEL SOLICITORS,"45,000.00",03/08/2017
Central Expenses,Central Expenses,Insurance Claims,80011833,REYNOLD SPORTS,"20,000.00",07/08/2017
Central Expenses,Central Expenses,Insurance Claims,80011846,DAC BEACHCROFT CLAIMS LIMITED,"11,000.00",09/08/2017
Central Expenses,Central Expenses,Insurance Claims,80011861,SLATER & GORDON SOLICITORS,"13,145.55",09/08/2017
Central Expenses,Central Expenses,Insurance Claims,80011901,LEIGH DAY,"1,350.00",09/08/2017
Central Expenses,Central Expenses,Insurance Claims,80011985,IRWIN MITCHEL SOLICITORS,"22,000.00",14/08/2017
Central Expenses,Central Expenses,Insurance Claims,80011992,RTA ASSISTANCE,"1,557.16",15/08/2017
Central Expenses,Central Expenses,Insurance Claims,80011993,PM LAW LTD,"16,662.00",15/08/2017
Central Expenses,Central Expenses,Insurance Claims,80011997,CLAIMS RESOLUTION,"2,749.47",15/08/2017
Central Expenses,Central Expenses,Insurance Claims,80012002,ENABLE LAW,"80,000.00",16/08/2017
Central Expenses,Central Expenses,Insurance Claims,80012010,ARMSTRONGS SOLICITORS,"6,425.00",16/08/2017
Central Expenses,Central Expenses,Insurance Claims,80012017,CLARKE BARNES SOLICITORS,"8,796.26",16/08/2017
Central Expenses,Central Expenses,Insurance Claims,80012068,PLEXUS LAW,"29,620.00",23/08/2017
Central Expenses,Central Expenses,Insurance Claims,80012091,HAWKER JONES SOLICITORS,"3,444.00",18/08/2017
Central Expenses,Central Expenses,Insurance Claims,80012107,OGR STOCK DENTON,"8,492.00",22/08/2017
Central Expenses,Central Expenses,Insurance Claims,80012109,OGR STOCK DENTON,"1,215.00",22/08/2017
Central Expenses,Central Expenses,Insurance Claims,80012172,OGR STOCK DENTON SOLICITORS,747.00,24/08/2017
Central Expenses,Central Expenses,Insurance Claims,80012185,BERRYMANS LACE MAWER LLP,544.87,24/08/2017
Central Expenses,Central Expenses,Insurance Claims,80012186,CAMPS SOLICITORS,"14,000.00",24/08/2017
Central Expenses,Central Expenses,Insurance Claims,80012191,BLR PROPERTY MANAGEMENT,"4,000.00",25/08/2017
Central Expenses,Central Expenses,Insurance Claims,80012200,BT OPENREACH,"2,832.78",25/08/2017
Central Expenses,Central Expenses,Insurance Claims,80012217,UNIONLINE,"2,000.00",30/08/2017
Central Expenses,Central Expenses,Insurance Claims,80012223,OSBORNES SOLICITORS,"24,500.00",31/08/2017
Central Expenses,Central Expenses,Insurance Claims,80011880,REDACTED - PERSONAL DATA,"9,000.00",09/08/2017
Central Expenses,Central Expenses,Insurance Claims,80011883,REDACTED - PERSONAL DATA,331.00,09/08/2017
Central Expenses,Central Expenses,Insurance Claims,80011925,REDACTED - PERSONAL DATA,"30,500.00",10/08/2017
Central Expenses,Central Expenses,Insurance Claims,80011995,REDACTED - PERSONAL DATA,"1,248.00",15/08/2017
Central Expenses,Central Expenses,Insurance Claims,80011996,REDACTED - PERSONAL DATA,350.00,15/08/2017
Central Expenses,Central Expenses,Insurance Claims,80011999,REDACTED - PERSONAL DATA,557.83,15/08/2017
Central Expenses,Central Expenses,Insurance Claims,80012012,REDACTED - PERSONAL DATA,"1,170.00",16/08/2017
Central Expenses,Central Expenses,Insurance Claims,80012060,REDACTED - PERSONAL DATA,"1,200.00",21/08/2017
Central Expenses,Central Expenses,Insurance Claims,80012090,REDACTED - PERSONAL DATA,"3,000.00",18/08/2017
Central Expenses,Central Expenses,Insurance Claims,80012187,REDACTED - PERSONAL DATA,195.99,25/08/2017
Central Expenses,Central Expenses,Insurance Claims,80012189,REDACTED - PERSONAL DATA,566.12,25/08/2017
Central Expenses,Central Expenses,Insurance Claims,80012197,REDACTED - PERSONAL DATA,"3,000.00",25/08/2017
Central Expenses,Central Expenses,Insurance Claims,80012198,REDACTED - PERSONAL DATA,952.36,25/08/2017
Central Expenses,Central Expenses,Other Establishments - Third P,EBX0185182,LEE VALLEY REGIONAL PARK AUTH.,"30,430.52",17/08/2017
Commercial,Births Deaths & Marriages,Cleaning and domestic material,60080281,CHURCHILL CONTRACT SERVICES,664.48,04/08/2017
Commercial,Births Deaths & Marriages,Cleaning and domestic material,60084784,CHURCHILL CONTRACT SERVICES,664.48,30/08/2017
Commercial,Births Deaths & Marriages,Other Services,60080660,LONDON BOROUGH OF BRENT,"16,517.70",18/08/2017
Commercial,Births Deaths & Marriages,Other Services,60081491,LONDON BOROUGH OF BRENT,"40,229.00",18/08/2017
Commercial,Customer Support Group,Building Repairs & Maintenance,60086011,HERTEL (UK) LTD,34.91,29/08/2017
Commercial,Customer Support Group,Building Repairs & Maintenance,60086012,HERTEL (UK) LTD,34.91,29/08/2017
Commercial,Customer Support Group,Building Repairs & Maintenance,60086027,HERTEL (UK) LTD,34.91,29/08/2017
Commercial,Customer Support Group,Building Repairs & Maintenance,60086028,HERTEL (UK) LTD,34.91,29/08/2017
Commercial,Customer Support Group,Building Repairs & Maintenance,60086029,HERTEL (UK) LTD,34.91,29/08/2017
Commercial,Customer Support Group,Building Repairs & Maintenance,60086031,HERTEL (UK) LTD,34.91,29/08/2017
Commercial,Customer Support Group,Building Repairs & Maintenance,60086036,HERTEL (UK) LTD,34.91,29/08/2017
Commercial,Customer Support Group,Building Repairs & Maintenance,60086042,HERTEL (UK) LTD,34.91,29/08/2017
Commercial,Customer Support Group,Building Repairs & Maintenance,60086051,HERTEL (UK) LTD,34.91,29/08/2017
Commercial,Customer Support Group,Building Repairs & Maintenance,60086054,HERTEL (UK) LTD,34.91,29/08/2017
Commercial,Customer Support Group,Building Repairs & Maintenance,60086055,HERTEL (UK) LTD,34.91,29/08/2017
Commercial,Customer Support Group,Building Repairs & Maintenance,60086065,HERTEL (UK) LTD,34.91,29/08/2017
Commercial,Customer Support Group,Building Repairs & Maintenance,60086070,HERTEL (UK) LTD,34.91,29/08/2017
Commercial,Customer Support Group,Building Repairs & Maintenance,60086091,HERTEL (UK) LTD,34.91,29/08/2017
Commercial,Customer Support Group,Building Repairs & Maintenance,60086095,HERTEL (UK) LTD,34.91,29/08/2017
Commercial,Customer Support Group,Building Repairs & Maintenance,60086096,HERTEL (UK) LTD,34.91,29/08/2017
Commercial,Customer Support Group,Building Repairs & Maintenance,60086113,HERTEL (UK) LTD,34.91,29/08/2017
Commercial,Customer Support Group,Building Repairs & Maintenance,60086114,HERTEL (UK) LTD,34.91,29/08/2017
Commercial,Customer Support Group,Building Repairs & Maintenance,60086125,HERTEL (UK) LTD,34.91,29/08/2017
Commercial,Customer Support Group,Building Repairs & Maintenance,60086134,HERTEL (UK) LTD,34.91,29/08/2017
Commercial,Customer Support Group,Building Repairs & Maintenance,60086135,HERTEL (UK) LTD,34.91,29/08/2017
Commercial,Customer Support Group,Building Repairs & Maintenance,60086138,HERTEL (UK) LTD,34.91,29/08/2017
Commercial,Customer Support Group,Building Repairs & Maintenance,60083014,RGE SERVICES,141.08,03/08/2017
Commercial,Customer Support Group,Building Repairs & Maintenance,60083024,RGE SERVICES,64.13,03/08/2017
Commercial,Customer Support Group,Building Repairs & Maintenance,60083048,RGE SERVICES,255.53,03/08/2017
Commercial,Customer Support Group,Building Repairs & Maintenance,60083126,RGE SERVICES,349.74,03/08/2017
Commercial,Customer Support Group,Building Repairs & Maintenance,60083135,RGE SERVICES,94.05,03/08/2017
Commercial,Customer Support Group,Building Repairs & Maintenance,60083139,RGE SERVICES,192.01,03/08/2017
Commercial,Customer Support Group,Building Repairs & Maintenance,60084947,AJS LTD,296.87,09/08/2017
Commercial,Customer Support Group,Building Repairs & Maintenance,60086024,AJS LTD,70.56,29/08/2017
Commercial,Customer Support Group,Building Repairs & Maintenance,60086044,AJS LTD,109.76,29/08/2017
Commercial,Customer Support Group,Building Repairs & Maintenance,60086088,AJS LTD,203.84,29/08/2017
Commercial,Customer Support Group,Building Repairs & Maintenance,60086122,AJS LTD,125.44,29/08/2017
Commercial,Customer Support Group,Building Repairs & Maintenance,60086133,AJS LTD,235.20,29/08/2017
Commercial,Customer Support Group,Building Repairs & Maintenance,60082839,ONLITECH,"2,327.00",11/08/2017
Commercial,Customer Support Group,Cleaning and domestic material,60084761,CHURCHILL CONTRACT SERVICES,"1,032.37",30/08/2017
Commercial,Customer Support Group,Equipment and Materials Purcha,60084408,DAY PLANT HIRE CO LIMITED,"2,990.29",02/08/2017
Commercial,Customer Support Group,Building Repairs & Maintenance,60086046,HERTEL (UK) LTD,34.91,29/08/2017
Commercial,Customer Support Group,Building Repairs & Maintenance,60083320,S W BRUCE & CO LTD,200.49,09/08/2017
Commercial,Customer Support Group,Building Repairs & Maintenance,60083321,S W BRUCE & CO LTD,57.00,09/08/2017
Commercial,Customer Support Group,Building Repairs & Maintenance,60083488,S W BRUCE & CO LTD,291.52,09/08/2017
Commercial,Customer Support Group,Building Repairs & Maintenance,60083431,S W BRUCE & CO LTD,101.44,10/08/2017
Commercial,Customer Support Group,Building Repairs & Maintenance,60083441,S W BRUCE & CO LTD,85.60,10/08/2017
Commercial,Customer Support Group,Gas,60084005,KENT COUNTY COUNCIL (KCS),"1,213.34",01/08/2017
Commercial,Customer Support Group,Gas,60085563,KENT COUNTY COUNCIL (KCS),"1,228.61",29/08/2017
Commercial,Customer Support Group,Electricity,60084040,KENT COUNTY COUNCIL (KCS),"4,986.58",02/08/2017
Commercial,Customer Support Group,Water Services,60085513,AFFINITY WATER LIMITED,475.28,21/08/2017
Commercial,Customer Support Group,Water Services,60085519,AFFINITY WATER LIMITED,483.80,21/08/2017
Commercial,Customer Support Group,Water Services,60085546,ANGEL SPRINGS LTD,114.00,29/08/2017
Commercial,Customer Support Group,Water Services,60085575,ANGEL SPRINGS LTD,68.00,29/08/2017
Commercial,Customer Support Group,Water Services,60085584,ANGEL SPRINGS LTD,230.00,29/08/2017
Commercial,Customer Support Group,Water Services,60085356,CASTLE WATER LTD,"4,910.65",16/08/2017
Commercial,Customer Support Group,Water Services,60085689,CASTLE WATER LTD,"1,163.21",21/08/2017
Commercial,Customer Support Group,Cleaning and domestic material,60084882,HERTFORDSHIRE SUPPLIES   COUNTY CO,"2,202.90",08/08/2017
Commercial,Customer Support Group,Cleaning and domestic material,60084892,HERTFORDSHIRE SUPPLIES   COUNTY CO,"1,289.71",08/08/2017
Commercial,Customer Support Group,Cleaning and domestic material,60084916,HERTFORDSHIRE SUPPLIES   COUNTY CO,179.16,08/08/2017
Commercial,Customer Support Group,Cleaning and domestic material,60084921,HERTFORDSHIRE SUPPLIES   COUNTY CO,48.40,08/08/2017
Commercial,Customer Support Group,Cleaning and domestic material,60084772,CHURCHILL CONTRACT SERVICES,"11,562.54",30/08/2017
Commercial,Customer Support Group,Rubbish Collection,60084685,PEARCE RECYCLING CO. LTD,25.00,29/08/2017
Commercial,Customer Support Group,Rubbish Collection,60085855,PEARCE RECYCLING CO. LTD,37.50,29/08/2017
Commercial,Customer Support Group,Furniture-Purchase-Repair,60085595,SCREWFIX DIRECT LTD,231.73,24/08/2017
Commercial,Customer Support Group,Other Services,10013845,BLUE 9 SECURITY LIMITED,"19,030.41",02/08/2017
Commercial,Customer Support Group,Other Services,60085060,BLUE 9 SECURITY LIMITED,"18,363.56",22/08/2017
Commercial,Customer Support Group,Telephones Calls,60085921,BRITISH TELECOMMUNICATIONS PLC,124.24,24/08/2017
Commercial,Customer Support Group,Building Repairs & Maintenance,60086086,HERTEL (UK) LTD,34.91,29/08/2017
Commercial,Customer Support Group,Building Repairs & Maintenance,60083270,S W BRUCE & CO LTD,114.00,09/08/2017
Commercial,Customer Support Group,Building Repairs & Maintenance,60083299,S W BRUCE & CO LTD,114.00,09/08/2017
Commercial,Customer Support Group,Building Repairs & Maintenance,60083476,S W BRUCE & CO LTD,57.00,10/08/2017
Commercial,Customer Support Group,Electricity,60084499,E-ON ENERGY,139.51,01/08/2017
Commercial,Customer Support Group,Water Services,60082854,ANGEL SPRINGS LTD,174.00,16/08/2017
Commercial,Customer Support Group,Water Services,60085610,ANGEL SPRINGS LTD,48.00,29/08/2017
Commercial,Customer Support Group,Cleaning and domestic material,60084769,CHURCHILL CONTRACT SERVICES,"1,133.45",30/08/2017
Commercial,Customer Support Group,Rubbish Collection,60069862,G.B.HOLDINGS LTD,102.00,01/08/2017
Commercial,Customer Support Group,Rubbish Collection,60077218,G.B.HOLDINGS LTD,130.00,01/08/2017
Commercial,Customer Support Group,Equipment and Materials Purcha,60084530,C H MUNDAY LIMITED,201.25,01/08/2017
Commercial,Customer Support Group,Books-CDs-Audio-Video,60085831,SM ELECTRICAL SERVICES,300.00,23/08/2017
Commercial,Customer Support Group,Other Services,60084957,BLUE 9 SECURITY LIMITED,"5,976.81",10/08/2017
Commercial,Customer Support Group,Building Repairs & Maintenance,60086136,HERTEL (UK) LTD,34.91,29/08/2017
Commercial,Customer Support Group,Building Repairs & Maintenance,60083278,S W BRUCE & CO LTD,248.88,09/08/2017
Commercial,Customer Support Group,Gas,60084012,KENT COUNTY COUNCIL (KCS),420.80,01/08/2017
Commercial,Customer Support Group,Building Repairs & Maintenance,60083815,OAKRAY LIMITED,95.32,11/08/2017
Commercial,Customer Support Group,Building Repairs & Maintenance,60084227,HERTEL (UK) LTD,34.91,01/08/2017
Commercial,Customer Support Group,Building Repairs & Maintenance,60084237,HERTEL (UK) LTD,34.91,01/08/2017
Commercial,Customer Support Group,Building Repairs & Maintenance,60084251,HERTEL (UK) LTD,34.91,01/08/2017
Commercial,Customer Support Group,Building Repairs & Maintenance,60084323,HERTEL (UK) LTD,34.91,01/08/2017
Commercial,Customer Support Group,Building Repairs & Maintenance,60086098,HERTEL (UK) LTD,34.91,29/08/2017
Commercial,Customer Support Group,Building Repairs & Maintenance,60086109,HERTEL (UK) LTD,34.91,29/08/2017
Commercial,Customer Support Group,Building Repairs & Maintenance,60084121,UNITED FORKTRUCKS (1992) LTD,125.00,17/08/2017
Commercial,Customer Support Group,Building Repairs & Maintenance,60085541,CHARLES WILSON ENGINEERS LTD,242.00,18/08/2017
Commercial,Customer Support Group,Building Repairs & Maintenance,60085542,CHARLES WILSON ENGINEERS LTD,880.00,18/08/2017
Commercial,Customer Support Group,Building Repairs & Maintenance,60085548,CHARLES WILSON ENGINEERS LTD,335.00,18/08/2017
Commercial,Customer Support Group,Building Repairs & Maintenance,60085586,CHARLES WILSON ENGINEERS LTD,9.00,18/08/2017
Commercial,Customer Support Group,Building Repairs & Maintenance,60085619,CHARLES WILSON ENGINEERS LTD,880.00,18/08/2017
Commercial,Customer Support Group,Electricity,60084026,KENT COUNTY COUNCIL (KCS),211.69,01/08/2017
Commercial,Customer Support Group,Electricity,60085579,KENT COUNTY COUNCIL (KCS),200.21,29/08/2017
Commercial,Customer Support Group,Water Services,60085617,ANGEL SPRINGS LTD,427.00,29/08/2017
Commercial,Customer Support Group,Cleaning and domestic material,60084891,HERTFORDSHIRE SUPPLIES   COUNTY CO,321.00,08/08/2017
Commercial,Customer Support Group,Cleaning and domestic material,60084912,HERTFORDSHIRE SUPPLIES   COUNTY CO,189.78,08/08/2017
Commercial,Customer Support Group,Rubbish Collection,60084650,PEARCE RECYCLING CO. LTD,25.00,29/08/2017
Commercial,Customer Support Group,Other Services,60084752,BLUE 9 SECURITY LIMITED,"22,773.84",10/08/2017
Commercial,Customer Support Group,Building Repairs & Maintenance,60084704,RGE SERVICES,141.90,03/08/2017
Commercial,Customer Support Group,Building Repairs & Maintenance,60083444,NORTH LONDON CATERING EQUIPMENT,155.00,01/08/2017
Commercial,Customer Support Group,Building Repairs & Maintenance,60083471,NORTH LONDON CATERING EQUIPMENT,251.25,01/08/2017
Commercial,Customer Support Group,Building Repairs & Maintenance,60085465,NORTH LONDON CATERING EQUIPMENT,377.39,16/08/2017
Commercial,Customer Support Group,Building Repairs & Maintenance,60085550,NORTH LONDON CATERING EQUIPMENT,172.64,17/08/2017
Commercial,Customer Support Group,Building Repairs & Maintenance,60085659,NORTH LONDON CATERING EQUIPMENT,450.00,18/08/2017
Commercial,Customer Support Group,Building Repairs & Maintenance,60085672,NORTH LONDON CATERING EQUIPMENT,360.00,21/08/2017
Commercial,Customer Support Group,Building Repairs & Maintenance,60085684,NORTH LONDON CATERING EQUIPMENT,174.00,21/08/2017
Commercial,Customer Support Group,Cleaning and domestic material,60080314,CHURCHILL CONTRACT SERVICES,"7,329.82",04/08/2017
Commercial,Customer Support Group,Cleaning and domestic material,60084736,CHURCHILL CONTRACT SERVICES,"7,329.82",30/08/2017
Commercial,Customer Support Group,Rubbish Collection,60085237,PEARCE RECYCLING CO. LTD,31.00,14/08/2017
Commercial,Customer Support Group,Rubbish Collection,60084643,PEARCE RECYCLING CO. LTD,25.00,29/08/2017
Commercial,Customer Support Group,Rubbish Collection,60085363,PREMIER SHREDDING,94.00,16/08/2017
Commercial,Customer Support Group,Equipment and Materials Purcha,60084536,HSM (UK) LTD.,201.60,24/08/2017
Commercial,Customer Support Group,Furniture-Purchase-Repair,60084077,SCREWFIX DIRECT LTD,87.48,09/08/2017
Commercial,Customer Support Group,Books-CDs-Audio-Video,60085870,SM ELECTRICAL SERVICES,100.00,22/08/2017
Commercial,Customer Support Group,Publications,60082496,PHONOGRAPHIC PERFORMANCE LTD,133.12,16/08/2017
Commercial,Customer Support Group,Other Services,60084730,BLUE 9 SECURITY LIMITED,"11,584.08",10/08/2017
Commercial,Customer Support Group,Building Repairs & Maintenance,60083839,OAKRAY LIMITED,64.00,11/08/2017
Commercial,Customer Support Group,Building Repairs & Maintenance,60086099,HERTEL (UK) LTD,34.91,29/08/2017
Commercial,Customer Support Group,Building Repairs & Maintenance,60083302,S W BRUCE & CO LTD,146.28,09/08/2017
Commercial,Customer Support Group,Cleaning and domestic material,60084741,CHURCHILL CONTRACT SERVICES,661.80,30/08/2017
Commercial,Customer Support Group,CSG Services Contract Payment,60083918,CAPITA BUSINESS SERVICES LTD,"10,175.70",02/08/2017
Commercial,Customer Support Group,CSG Services Contract Payment,10013852,CAPITA BUSINESS SERVICES LTD,"(67,935.00)",24/08/2017
Commercial,Customer Support Group,CSG Services Contract Payment,60085175,CAPITA BUSINESS SERVICES LTD,"15,305.00",24/08/2017
Commercial,Customer Support Group,CSG Services Contract Payment,60085379,CAPITA BUSINESS SERVICES LTD,"51,849.69",24/08/2017
Commercial,Customer Support Group,CSG Services Contract Payment,60085394,CAPITA BUSINESS SERVICES LTD,"541,362.91",24/08/2017
Commercial,Customer Support Group,Building Repairs & Maintenance,60083802,OAKRAY LIMITED,108.00,11/08/2017
Commercial,Customer Support Group,Building Repairs & Maintenance,60083807,OAKRAY LIMITED,95.97,11/08/2017
Commercial,Customer Support Group,Building Repairs & Maintenance,60083825,OAKRAY LIMITED,128.00,11/08/2017
Commercial,Customer Support Group,Building Repairs & Maintenance,60083831,OAKRAY LIMITED,96.00,11/08/2017
Commercial,Customer Support Group,Building Repairs & Maintenance,60083850,OAKRAY LIMITED,112.00,11/08/2017
Commercial,Customer Support Group,Building Repairs & Maintenance,60081152,OAKRAY LIMITED,716.60,18/08/2017
Commercial,Customer Support Group,Building Repairs & Maintenance,60085649,LEE SECURITY LONDON LIMITED,83.00,31/08/2017
Commercial,Customer Support Group,Building Repairs & Maintenance,60085936,IRIS GARDENING SERVICES LTD,"2,668.75",30/08/2017
Commercial,Customer Support Group,Building Repairs & Maintenance,60081885,HERTEL (UK) LTD,34.91,09/08/2017
Commercial,Customer Support Group,Building Repairs & Maintenance,60082004,HERTEL (UK) LTD,34.91,09/08/2017
Commercial,Customer Support Group,Building Repairs & Maintenance,60082033,HERTEL (UK) LTD,34.91,09/08/2017
Commercial,Customer Support Group,Building Repairs & Maintenance,60084318,HERTEL (UK) LTD,"1,605.14",10/08/2017
Commercial,Customer Support Group,Building Repairs & Maintenance,60086030,HERTEL (UK) LTD,34.91,29/08/2017
Commercial,Customer Support Group,Building Repairs & Maintenance,60086032,HERTEL (UK) LTD,34.91,29/08/2017
Commercial,Customer Support Group,Building Repairs & Maintenance,60086039,HERTEL (UK) LTD,34.91,29/08/2017
Commercial,Customer Support Group,Building Repairs & Maintenance,60086040,HERTEL (UK) LTD,34.91,29/08/2017
Commercial,Customer Support Group,Building Repairs & Maintenance,60086043,HERTEL (UK) LTD,34.91,29/08/2017
Commercial,Customer Support Group,Building Repairs & Maintenance,60086048,HERTEL (UK) LTD,34.91,29/08/2017
Commercial,Customer Support Group,Building Repairs & Maintenance,60086050,HERTEL (UK) LTD,34.91,29/08/2017
Commercial,Customer Support Group,Building Repairs & Maintenance,60086056,HERTEL (UK) LTD,34.91,29/08/2017
Commercial,Customer Support Group,Building Repairs & Maintenance,60086062,HERTEL (UK) LTD,34.91,29/08/2017
Commercial,Customer Support Group,Building Repairs & Maintenance,60086073,HERTEL (UK) LTD,34.91,29/08/2017
Commercial,Customer Support Group,Building Repairs & Maintenance,60086087,HERTEL (UK) LTD,240.30,29/08/2017
Commercial,Customer Support Group,Building Repairs & Maintenance,60086090,HERTEL (UK) LTD,34.91,29/08/2017
Commercial,Customer Support Group,Building Repairs & Maintenance,60086103,HERTEL (UK) LTD,34.91,29/08/2017
Commercial,Customer Support Group,Building Repairs & Maintenance,60086104,HERTEL (UK) LTD,34.91,29/08/2017
Commercial,Customer Support Group,Building Repairs & Maintenance,60086110,HERTEL (UK) LTD,34.91,29/08/2017
Commercial,Customer Support Group,Building Repairs & Maintenance,60086128,HERTEL (UK) LTD,34.91,29/08/2017
Commercial,Customer Support Group,Building Repairs & Maintenance,60086129,HERTEL (UK) LTD,34.91,29/08/2017
Commercial,Customer Support Group,Building Repairs & Maintenance,60086130,HERTEL (UK) LTD,34.91,29/08/2017
Commercial,Customer Support Group,Building Repairs & Maintenance,60086132,HERTEL (UK) LTD,34.91,29/08/2017
Commercial,Customer Support Group,Building Repairs & Maintenance,60086140,HERTEL (UK) LTD,34.91,29/08/2017
Commercial,Customer Support Group,Building Repairs & Maintenance,60083009,RGE SERVICES,166.73,03/08/2017
Commercial,Customer Support Group,Building Repairs & Maintenance,60083012,RGE SERVICES,219.23,03/08/2017
Commercial,Customer Support Group,Building Repairs & Maintenance,60084097,RGE SERVICES,217.27,03/08/2017
Commercial,Customer Support Group,Building Repairs & Maintenance,60084190,RGE SERVICES,393.87,03/08/2017
Commercial,Customer Support Group,Building Repairs & Maintenance,60083536,RGE SERVICES,119.71,08/08/2017
Commercial,Customer Support Group,Building Repairs & Maintenance,60084684,RGE SERVICES,64.13,10/08/2017
Commercial,Customer Support Group,Building Repairs & Maintenance,60084382,RGE SERVICES,33.32,24/08/2017
Commercial,Customer Support Group,Building Repairs & Maintenance,60083604,S W BRUCE & CO LTD,81.36,07/08/2017
Commercial,Customer Support Group,Building Repairs & Maintenance,60083615,S W BRUCE & CO LTD,281.75,07/08/2017
Commercial,Customer Support Group,Building Repairs & Maintenance,60083560,S W BRUCE & CO LTD,178.09,08/08/2017
Commercial,Customer Support Group,Building Repairs & Maintenance,60083617,S W BRUCE & CO LTD,114.98,08/08/2017
Commercial,Customer Support Group,Building Repairs & Maintenance,60083277,S W BRUCE & CO LTD,204.99,09/08/2017
Commercial,Customer Support Group,Building Repairs & Maintenance,60083283,S W BRUCE & CO LTD,66.56,09/08/2017
Commercial,Customer Support Group,Building Repairs & Maintenance,60083301,S W BRUCE & CO LTD,114.68,09/08/2017
Commercial,Customer Support Group,Building Repairs & Maintenance,60083334,S W BRUCE & CO LTD,155.78,09/08/2017
Commercial,Customer Support Group,Building Repairs & Maintenance,60083346,S W BRUCE & CO LTD,57.00,09/08/2017
Commercial,Customer Support Group,Building Repairs & Maintenance,60083350,S W BRUCE & CO LTD,107.85,09/08/2017
Commercial,Customer Support Group,Building Repairs & Maintenance,60083358,S W BRUCE & CO LTD,121.30,09/08/2017
Commercial,Customer Support Group,Building Repairs & Maintenance,60083370,S W BRUCE & CO LTD,147.95,09/08/2017
Commercial,Customer Support Group,Building Repairs & Maintenance,60083398,S W BRUCE & CO LTD,57.00,09/08/2017
Commercial,Customer Support Group,Building Repairs & Maintenance,60083484,S W BRUCE & CO LTD,57.00,09/08/2017
Commercial,Customer Support Group,Building Repairs & Maintenance,60083304,S W BRUCE & CO LTD,97.50,10/08/2017
Commercial,Customer Support Group,Building Repairs & Maintenance,60083428,S W BRUCE & CO LTD,77.08,10/08/2017
Commercial,Customer Support Group,Building Repairs & Maintenance,60083474,S W BRUCE & CO LTD,66.56,10/08/2017
Commercial,Customer Support Group,Building Repairs & Maintenance,60083570,S W BRUCE & CO LTD,980.00,10/08/2017
Commercial,Customer Support Group,Building Repairs & Maintenance,60083576,S W BRUCE & CO LTD,"2,255.77",10/08/2017
Commercial,Customer Support Group,Building Repairs & Maintenance,60083620,S W BRUCE & CO LTD,"1,012.15",10/08/2017
Commercial,Customer Support Group,Building Repairs & Maintenance,60083623,S W BRUCE & CO LTD,380.00,10/08/2017
Commercial,Customer Support Group,Building Repairs & Maintenance,60083657,S W BRUCE & CO LTD,"1,090.00",10/08/2017
Commercial,Customer Support Group,Building Repairs & Maintenance,60085581,S W BRUCE & CO LTD,213.90,31/08/2017
Commercial,Customer Support Group,Building Repairs & Maintenance,60085582,S W BRUCE & CO LTD,"1,100.00",31/08/2017
Commercial,Customer Support Group,Building Repairs & Maintenance,60085603,S W BRUCE & CO LTD,"3,360.00",31/08/2017
Commercial,Customer Support Group,Building Repairs & Maintenance,60083527,GLOBAL SAFETY & ENVIRONMENTAL LTD,495.00,01/08/2017
Commercial,Customer Support Group,Building Repairs & Maintenance,60085959,GLOBAL SAFETY & ENVIRONMENTAL LTD,250.00,25/08/2017
Commercial,Customer Support Group,Building Repairs & Maintenance,60085963,GLOBAL SAFETY & ENVIRONMENTAL LTD,"1,155.00",25/08/2017
Commercial,Customer Support Group,Gas,60084375,KENT COUNTY COUNCIL (KCS),63.10,01/08/2017
Commercial,Customer Support Group,Gas,60084396,KENT COUNTY COUNCIL (KCS),53.40,01/08/2017
Commercial,Customer Support Group,Gas,60084444,KENT COUNTY COUNCIL (KCS),50.40,01/08/2017
Commercial,Customer Support Group,Gas,60084449,KENT COUNTY COUNCIL (KCS),124.94,01/08/2017
Commercial,Customer Support Group,Gas,60084639,KENT COUNTY COUNCIL (KCS),226.53,03/08/2017
Commercial,Customer Support Group,Gas,60085560,KENT COUNTY COUNCIL (KCS),52.08,29/08/2017
Commercial,Customer Support Group,Gas,60085571,KENT COUNTY COUNCIL (KCS),55.18,29/08/2017
Commercial,Customer Support Group,Gas,60085593,KENT COUNTY COUNCIL (KCS),115.21,29/08/2017
Commercial,Customer Support Group,Gas,60086146,KENT COUNTY COUNCIL (KCS),204.65,29/08/2017
Commercial,Customer Support Group,Gas,60086316,KENT COUNTY COUNCIL (KCS),40.87,31/08/2017
Commercial,Customer Support Group,Gas,60083674,TOTAL GAS & POWER LTD,"1,072.66",09/08/2017
Commercial,Customer Support Group,Gas,60085421,TOTAL GAS & POWER LTD,"1,089.29",22/08/2017
Commercial,Customer Support Group,Electricity,60084364,KENT COUNTY COUNCIL (KCS),"1,533.30",03/08/2017
Commercial,Customer Support Group,Electricity,60084407,KENT COUNTY COUNCIL (KCS),545.19,03/08/2017
Commercial,Customer Support Group,Electricity,60084448,KENT COUNTY COUNCIL (KCS),449.42,03/08/2017
Commercial,Customer Support Group,Electricity,60084486,KENT COUNTY COUNCIL (KCS),231.71,03/08/2017
Commercial,Customer Support Group,Electricity,60084666,KENT COUNTY COUNCIL (KCS),884.62,03/08/2017
Commercial,Customer Support Group,Electricity,60084767,KENT COUNTY COUNCIL (KCS),21.27,04/08/2017
Commercial,Customer Support Group,Electricity,60085878,KENT COUNTY COUNCIL (KCS),103.57,22/08/2017
Commercial,Customer Support Group,Electricity,60086208,KENT COUNTY COUNCIL (KCS),851.02,30/08/2017
Commercial,Customer Support Group,Electricity,60080276,NPOWER,38.30,04/08/2017
Commercial,Customer Support Group,Electricity,60080345,NPOWER,386.16,09/08/2017
Commercial,Customer Support Group,Electricity,60078759,E-ON ENERGY,318.91,18/08/2017
Commercial,Customer Support Group,Electricity,60085564,E-ON ENERGY,7.54,18/08/2017
Commercial,Customer Support Group,Electricity,60085565,E-ON ENERGY,29.41,18/08/2017
Commercial,Customer Support Group,Electricity,60085616,E-ON ENERGY,23.60,18/08/2017
Commercial,Customer Support Group,Electricity,10013864,E-ON ENERGY,192.30,23/08/2017
Commercial,Customer Support Group,Service Charges,60085551,LAZARI INVESTMENTS LTD,"27,966.24",17/08/2017
Commercial,Customer Support Group,Service Charges,60085624,LAZARI INVESTMENTS LTD,183.36,17/08/2017
Commercial,Customer Support Group,Water Services,60085419,CASTLE WATER LTD,246.76,18/08/2017
Commercial,Customer Support Group,Water Services,60085420,CASTLE WATER LTD,204.45,18/08/2017
Commercial,Customer Support Group,Water Services,60085567,CASTLE WATER LTD,3.64,18/08/2017
Commercial,Customer Support Group,Water Services,60085602,CASTLE WATER LTD,141.26,18/08/2017
Commercial,Customer Support Group,Water Services,60085644,CASTLE WATER LTD,373.92,18/08/2017
Commercial,Customer Support Group,Water Services,60085893,CASTLE WATER LTD,326.08,24/08/2017
Commercial,Customer Support Group,Cleaning and domestic material,60084738,CHURCHILL CONTRACT SERVICES,658.45,30/08/2017
Commercial,Customer Support Group,Other Services,60084609,UNIVERSITY OF WESTMINSTER,899.00,02/08/2017
Commercial,Customer Support Group,Other Services,60084969,BLUE 9 SECURITY LIMITED,53.72,10/08/2017
Commercial,Customer Support Group,Other Services,60085026,BLUE 9 SECURITY LIMITED,214.88,10/08/2017
Commercial,Customer Support Group,Other Services,60084981,BLUE 9 SECURITY LIMITED,53.72,22/08/2017
Commercial,Customer Support Group,Ttl IT & Comms,60085966,TELEFONICA UK LTD,62.25,25/08/2017
Commercial,Customer Support Group,Ttl IT & Comms,60086006,TELEFONICA UK LTD,60.00,25/08/2017
Commercial,Customer Support Group,Ttl IT & Comms,60084549,BUCHANAN COMPUTING LIMITED,819.00,02/08/2017
Commercial,Customer Support Group,Other Services,20034558,LOOMIS UK LIMITED,50.00,16/08/2017
Commercial,Customer Support Group,Other Services,20034559,LOOMIS UK LIMITED,49.92,16/08/2017
Commercial,Customer Support Group,Other Services,20034560,LOOMIS UK LIMITED,49.92,16/08/2017
Commercial,Customer Support Group,Other Services,20034561,LOOMIS UK LIMITED,49.92,16/08/2017
Commercial,Customer Support Group,Other Services,20034562,LOOMIS UK LIMITED,871.14,16/08/2017
Commercial,Customer Support Group,Other Services,20034563,LOOMIS UK LIMITED,905.96,16/08/2017
Commercial,Customer Support Group,Other Services,20034564,LOOMIS UK LIMITED,905.96,16/08/2017
Commercial,Customer Support Group,Other Services,20034565,LOOMIS UK LIMITED,905.96,16/08/2017
Commercial,Customer Support Group,Other Services,20034566,LOOMIS UK LIMITED,905.96,16/08/2017
Commercial,Customer Support Group,Postage,20034568,ROYAL MAIL GROUP LIMITED,331.38,16/08/2017
Commercial,Customer Support Group,Postage,20034569,ROYAL MAIL GROUP LIMITED,331.38,16/08/2017
Commercial,Customer Support Group,Postage,20034567,ROYAL MAIL GROUP LIMITED,331.38,18/08/2017
Commercial,Customer Support Group,Postage,60084479,ROYAL MAIL GROUP LIMITED,"4,866.65",01/08/2017
Commercial,Customer Support Group,Postage,60084494,ROYAL MAIL GROUP LIMITED,"4,774.89",01/08/2017
Commercial,Customer Support Group,Postage,60084713,TABBERS,67.00,11/08/2017
Commercial,Customer Support Group,Postage,60086253,TABBERS,99.30,30/08/2017
Commercial,Customer Support Group,Rents,60085862,NETWORK RAIL ACCOUNTS RECEIVABLE,"20,375.00",22/08/2017
Commercial,Customer Support Group,Furniture-Purchase-Repair,60084710,SCREWFIX DIRECT LTD,273.13,22/08/2017
Commercial,Customer Support Group,Other Services,60084982,BLUE 9 SECURITY LIMITED,"14,164.08",10/08/2017
Commercial,Customer Support Group,CSG Services Contract Payment,60082560,CAPITA BUSINESS SERVICES LTD,"58,306.69",11/08/2017
Commercial,Customer Support Group,CSG Services Contract Payment,60085416,CAPITA BUSINESS SERVICES LTD,"24,327.82",24/08/2017
Commercial,Housing Needs Resources,Legal and Court Fees,60085438,THE BARNETGROUP LIMITED,"5,099.00",16/08/2017
Commercial,Housing Needs Resources,Other Services,60083861,THE BARNETGROUP LIMITED,"12,642.54",03/08/2017
Commercial,Housing Needs Resources,Other Services,60083867,THE BARNETGROUP LIMITED,"23,800.61",03/08/2017
Commercial,Housing Needs Resources,Private Contractors - Third Pa,60083876,THE BARNETGROUP LIMITED,"1,853,222.33",03/08/2017
Commercial,Housing Needs Resources,Private Contractors - Third Pa,60085632,THE BARNETGROUP LIMITED,"1,853,222.33",22/08/2017
Commercial,HRA,Consultants Fees,60083939,P P C R ASSOCIATES LTD,826.70,09/08/2017
Commercial,HRA,Consultants Fees,60086203,TROWERS & HAMLINS,"1,000.00",29/08/2017
Commercial,HRA,Consultants Fees,60084401,PRIORITY ESTATES PROJECT LTD,"2,514.60",17/08/2017
Commercial,HRA,Other Services,60083871,THE BARNETGROUP LIMITED,"2,048,526.26",03/08/2017
Commercial,HRA,Other Services,60085682,THE BARNETGROUP LIMITED,"2,048,526.26",22/08/2017
Commercial,HRA,Private Contractors - Third Pa,60085402,THE BARNETGROUP LIMITED,"4,984.38",16/08/2017
Commercial,HRA,Private Contractors - Third Pa,60085428,THE BARNETGROUP LIMITED,"2,467.00",16/08/2017
Commercial,HRA,Consultants Fees,60081993,STRATEGIC URBAN FUTURES LIMITED,133.33,11/08/2017
Commercial,HRA,Consultants Fees,60084816,STRATEGIC URBAN FUTURES LIMITED,373.31,31/08/2017
Commercial,HRA,Consultants Fees,60084848,STRATEGIC URBAN FUTURES LIMITED,266.65,31/08/2017
Commercial,HRA,Private Contractors - Third Pa,80012049,GATEGLOW LIMITED,"3,500.00",17/08/2017
Commercial,HRA,Private Contractors - Third Pa,80012041,REDACTED - PERSONAL DATA,"1,750.00",17/08/2017
Commercial,HRA,Private Contractors - Third Pa,80012047,REDACTED - PERSONAL DATA,"1,750.00",17/08/2017
Commercial,Parking & Infrastructure,Equipment and Materials Purcha,60083005,GLASDON UK LTD,"3,717.60",03/08/2017
Commercial,Parking & Infrastructure,Equipment and Materials Purcha,60084987,FABRIKAT (NOTTINGHAM) LIMITED,"1,000.00",24/08/2017
Commercial,Parking & Infrastructure,Equipment and Materials Purcha,60084119,LAFARGE TARMAC TRADING LIMITED,136.64,01/08/2017
Commercial,Parking & Infrastructure,Equipment and Materials Purcha,60084143,LAFARGE TARMAC TRADING LIMITED,222.52,03/08/2017
Commercial,Parking & Infrastructure,Equipment and Materials Purcha,60083242,LAFARGE TARMAC TRADING LIMITED,122.98,09/08/2017
Commercial,Parking & Infrastructure,Equipment and Materials Purcha,60083892,LAFARGE TARMAC TRADING LIMITED,97.60,10/08/2017
Commercial,Parking & Infrastructure,Equipment and Materials Purcha,60084124,LAFARGE TARMAC TRADING LIMITED,99.55,10/08/2017
Commercial,Parking & Infrastructure,Equipment and Materials Purcha,60084150,LAFARGE TARMAC TRADING LIMITED,111.26,10/08/2017
Commercial,Parking & Infrastructure,Equipment and Materials Purcha,60080971,LAFARGE TARMAC TRADING LIMITED,140.54,14/08/2017
Commercial,Parking & Infrastructure,Equipment and Materials Purcha,60084388,LAFARGE TARMAC TRADING LIMITED,197.15,17/08/2017
Commercial,Parking & Infrastructure,Equipment and Materials Purcha,60084392,LAFARGE TARMAC TRADING LIMITED,97.60,17/08/2017
Commercial,Parking & Infrastructure,Equipment and Materials Purcha,60084512,LAFARGE TARMAC TRADING LIMITED,91.74,22/08/2017
Commercial,Parking & Infrastructure,Equipment and Materials Purcha,60084762,LAFARGE TARMAC TRADING LIMITED,101.50,24/08/2017
Commercial,Parking & Infrastructure,Printing-Contract,40002403,OFFICE DEPOT UK LTD,13.37,23/08/2017
Commercial,Parking & Infrastructure,Equipment and Materials Purcha,60084477,WM SMITH & SONS LIMITED,243.83,02/08/2017
Commercial,Parking & Infrastructure,Equipment and Materials Purcha,60084682,WM SMITH & SONS LIMITED,168.81,03/08/2017
Commercial,Parking & Infrastructure,Equipment and Materials Purcha,60085163,HENROB DIRECT LTD,"1,200.00",11/08/2017
Commercial,Parking & Infrastructure,Equipment and Materials Purcha,60083263,RENNICK UK LTD,184.42,04/08/2017
Commercial,Parking & Infrastructure,Equipment and Materials Purcha,60083736,RENNICK UK LTD,416.10,16/08/2017
Commercial,Parking & Infrastructure,Equipment and Materials Purcha,60085503,KLOECKNER METALS UK,167.34,30/08/2017
Commercial,Parking & Infrastructure,Fees and Charges,60083968,REDCORN LTD,95.00,17/08/2017
Commercial,Parking & Infrastructure,Consultants Fees,60082827,BRITISH PARKING ASSOCIATION,550.00,01/08/2017
Commercial,Parking & Infrastructure,Advertising,60085112,TMP (UK) LTD,"2,425.00",11/08/2017
Commercial,Parking & Infrastructure,Other Services,60083675,PARKEON LIMITED,810.00,16/08/2017
Commercial,Parking & Infrastructure,Other Services,60085412,LONDON COUNCILS,"5,000.00",17/08/2017
Commercial,Public Health,Other Transfer Payments to Soc,60082157,CENTRAL LONDONCOMMUNITY HEALTHCARE,"356,000.00",24/08/2017
Commercial,Public Health,Other Transfer Payments to Soc,60084349,CENTRAL LONDONCOMMUNITY HEALTHCARE,"356,000.00",24/08/2017
Commercial,Public Health,Professional Services,60082135,CENTRAL LONDONCOMMUNITY HEALTHCARE,"85,834.00",24/08/2017
Commercial,Public Health,Professional Services,60084436,CENTRAL LONDONCOMMUNITY HEALTHCARE,"85,834.00",24/08/2017
Commercial,Public Health,Professional Services,60082172,CENTRAL LONDONCOMMUNITY HEALTHCARE,"9,583.00",24/08/2017
Commercial,Public Health,Professional Services,60084263,CENTRAL LONDONCOMMUNITY HEALTHCARE,"9,583.00",24/08/2017
Commercial,Public Health,Other Transfer Payments to Soc,60084247,CENTRAL LONDONCOMMUNITY HEALTHCARE,"29,167.00",04/08/2017
Commercial,Public Health,Other Transfer Payments to Soc,60082132,CENTRAL LONDONCOMMUNITY HEALTHCARE,"29,167.00",08/08/2017
Commercial,Public Health,Professional Services,60082186,CENTRAL LONDONCOMMUNITY HEALTHCARE,"4,917.00",07/08/2017
Commercial,Public Health,Professional Services,60084233,CENTRAL LONDONCOMMUNITY HEALTHCARE,"4,917.00",24/08/2017
Commercial,Regional Enterprise,Refunds,80012077,PLATINUM LAND LIMITED,195.00,18/08/2017
Commercial,Regional Enterprise,Other Services,60085265,CONWAY AECOM LTD,"21,165.24",24/08/2017
Commercial,Regional Enterprise,Advertising,60082505,TMP (UK) LTD,115.64,03/08/2017
Commercial,Regional Enterprise,Advertising,60084612,TMP (UK) LTD,28.51,03/08/2017
Commercial,Regional Enterprise,Advertising,60084613,TMP (UK) LTD,35.64,03/08/2017
Commercial,Regional Enterprise,Advertising,60085115,TMP (UK) LTD,342.00,10/08/2017
Commercial,Regional Enterprise,Advertising,60084608,TMP (UK) LTD,112.08,11/08/2017
Commercial,Regional Enterprise,Advertising,60085468,TMP (UK) LTD,422.00,17/08/2017
Commercial,Regional Enterprise,Advertising,60085501,TMP (UK) LTD,422.00,17/08/2017
Commercial,Regional Enterprise,Advertising,60085592,TMP (UK) LTD,112.08,17/08/2017
Commercial,Regional Enterprise,Advertising,60081528,TMP (UK) LTD,112.08,23/08/2017
Commercial,Regional Enterprise,Advertising,60082072,TMP (UK) LTD,32.08,23/08/2017
Commercial,Regional Enterprise,Advertising,60084559,TMP (UK) LTD,112.08,24/08/2017
Commercial,Regional Enterprise,Advertising,60084582,TMP (UK) LTD,115.64,24/08/2017
Commercial,Regional Enterprise,Advertising,60084593,TMP (UK) LTD,112.08,24/08/2017
Commercial,Regional Enterprise,Advertising,60085085,TMP (UK) LTD,342.00,24/08/2017
Commercial,Regional Enterprise,Advertising,60085093,TMP (UK) LTD,342.00,24/08/2017
Commercial,Regional Enterprise,Advertising,60085094,TMP (UK) LTD,376.20,24/08/2017
Commercial,Regional Enterprise,Advertising,60085094,TMP (UK) LTD,648.20,24/08/2017
Commercial,Regional Enterprise,Other Services,60079544,GEOPLACE LLP,450.00,31/08/2017
Commercial,Regional Enterprise,Other Services,60085532,RM COUNTRYSIDE SERVICES LTD,"2,375.00",16/08/2017
Commercial,Regional Enterprise,Other Services,60085110,RM COUNTRYSIDE SERVICES LTD,540.00,29/08/2017
Commercial,Regional Enterprise,Other Services,60085459,RM COUNTRYSIDE SERVICES LTD,175.00,16/08/2017
Commercial,Regional Enterprise,Other Services,60085492,RM COUNTRYSIDE SERVICES LTD,492.00,16/08/2017
Commercial,Regional Enterprise,Other Services,60083326,CONWAY AECOM LTD,"13,096.31",08/08/2017
Commercial,Regional Enterprise,Professional Services,60086160,WATES LIVING SPACE,904.96,29/08/2017
Commercial,Regional Enterprise,Professional Services,60086200,WATES LIVING SPACE,"3,316.35",29/08/2017
Commercial,Regional Enterprise,Advertising,60084569,TMP (UK) LTD,234.15,03/08/2017
Commercial,Regional Enterprise,Other Services,60084226,CONWAY AECOM LTD,22.53,15/08/2017
Commercial,Regional Enterprise,Other Services,60084232,CONWAY AECOM LTD,38.91,15/08/2017
Commercial,Regional Enterprise,Other Services,60085230,CONWAY AECOM LTD,14.08,24/08/2017
Commercial,Regional Enterprise,Other Services,60085252,CONWAY AECOM LTD,3.79,24/08/2017
Commercial,Regional Enterprise,Other Services,60085288,CONWAY AECOM LTD,11.78,24/08/2017
Commercial,Regional Enterprise,Other Services,60085330,CONWAY AECOM LTD,13.31,24/08/2017
Commercial,Regional Enterprise,Other Services,60083830,CONWAY AECOM LTD,"1,702.64",09/08/2017
Commercial,Regional Enterprise,Other Services,60085472,CONWAY AECOM LTD,"1,239.81",16/08/2017
Commercial,Regional Enterprise,Other Services,60085239,CONWAY AECOM LTD,191.30,17/08/2017
Commercial,Regional Enterprise,Consultants Fees,60083686,DELOITTE LLP,"2,175.00",25/08/2017
Commercial,Regional Enterprise,Other Services,60083143,CONWAY AECOM LTD,341.82,10/08/2017
Commercial,Regional Enterprise,Other Services,60083999,CONWAY AECOM LTD,460.82,10/08/2017
Commercial,Regional Enterprise,Other Services,60084023,CONWAY AECOM LTD,892.53,10/08/2017
Commercial,Regional Enterprise,Other Services,60084025,CONWAY AECOM LTD,734.28,10/08/2017
Commercial,Regional Enterprise,Other Services,60085215,CONWAY AECOM LTD,607.68,17/08/2017
Commercial,Regional Enterprise,Other Services,60085227,CONWAY AECOM LTD,"1,468.56",17/08/2017
Commercial,Regional Enterprise,Other Services,60085243,CONWAY AECOM LTD,607.68,17/08/2017
Commercial,Regional Enterprise,Other Services,60085254,CONWAY AECOM LTD,696.30,17/08/2017
Commercial,Regional Enterprise,Other Services,60085257,CONWAY AECOM LTD,727.95,17/08/2017
Commercial,Regional Enterprise,Other Services,60085291,CONWAY AECOM LTD,949.50,17/08/2017
Commercial,Regional Enterprise,Other Services,60085315,CONWAY AECOM LTD,"1,266.00",17/08/2017
Commercial,Regional Enterprise,Other Services,60085343,CONWAY AECOM LTD,911.52,17/08/2017
Commercial,Regional Enterprise,Other Services,60085350,CONWAY AECOM LTD,734.28,17/08/2017
Commercial,Regional Enterprise,Other Services,60085440,CONWAY AECOM LTD,531.12,17/08/2017
Commercial,Regional Enterprise,Other Services,60085509,CONWAY AECOM LTD,417.78,18/08/2017
Commercial,Regional Enterprise,Other Services,60085220,CONWAY AECOM LTD,759.60,24/08/2017
Commercial,Regional Enterprise,Other Services,60085236,CONWAY AECOM LTD,748.00,24/08/2017
Commercial,Regional Enterprise,Other Services,60085238,CONWAY AECOM LTD,665.92,24/08/2017
Commercial,Regional Enterprise,Other Services,60085258,CONWAY AECOM LTD,708.96,24/08/2017
Commercial,Regional Enterprise,Other Services,60085267,CONWAY AECOM LTD,"1,063.44",24/08/2017
Commercial,Regional Enterprise,Other Services,60085278,CONWAY AECOM LTD,911.52,24/08/2017
Commercial,Regional Enterprise,Other Services,60085295,CONWAY AECOM LTD,455.76,24/08/2017
Commercial,Regional Enterprise,Other Services,60085302,CONWAY AECOM LTD,727.95,24/08/2017
Commercial,Regional Enterprise,Other Services,60085345,CONWAY AECOM LTD,930.51,24/08/2017
Commercial,Regional Enterprise,Other Services,60085351,CONWAY AECOM LTD,727.95,24/08/2017
Commercial,Regional Enterprise,Other Services,60085552,CONWAY AECOM LTD,759.60,29/08/2017
Commercial,Regional Enterprise,Other Services,60054768,CONWAY AECOM LTD,531.72,31/08/2017
Commercial,Regional Enterprise,Other Services,60085242,CONWAY AECOM LTD,873.54,31/08/2017
Commercial,Regional Enterprise,Other Services,60085311,CONWAY AECOM LTD,901.39,31/08/2017
Commercial,Regional Enterprise,Other Services,10013853,LEXISNEXIS UK,"3,200.00",14/08/2017
Commercial,Regional Enterprise,Grant Payments,80011787,GDC,"2,903.25",02/08/2017
Commercial,Regional Enterprise,Grant Payments,80011800,WSW PROJECTS LTD,408.00,02/08/2017
Commercial,Regional Enterprise,Grant Payments,80011775,H D PROPERTY SERVICES LTD,"6,270.45",02/08/2017
Commercial,Regional Enterprise,Grant Payments,80011892,REDACTED - PERSONAL DATA,400.00,10/08/2017
Commercial,Regional Enterprise,Grant Payments,80006584,REDACTED - PERSONAL DATA,"3,100.00",23/08/2017
Commercial,Regional Enterprise,Grant Payments,80011785,H D PROPERTY SERVICES LTD,194.25,02/08/2017
Commercial,Regional Enterprise,Consultants Fees,60084110,GOWLING WLG,"2,880.00",11/08/2017
Commercial,Regional Enterprise,Consultants Fees,60084187,GOWLING WLG,"3,478.09",11/08/2017
Commercial,Regional Enterprise,Consultants Fees,60084397,EVERSHEDS LLP,"2,176.99",11/08/2017
Commercial,Regional Enterprise,Consultants Fees,60085413,CARTER JONAS LLP,"3,767.60",21/08/2017
Commercial,Regional Enterprise,RE Services Contract Payment,60080818,RE (REGIONAL ENTERPRISE) LIMITED,"24,022.51",04/08/2017
Commercial,Regional Enterprise,RE Services Contract Payment,60080872,RE (REGIONAL ENTERPRISE) LIMITED,"36,021.16",04/08/2017
Commercial,Regional Enterprise,Cleaning and domestic material,60084720,CHURCHILL CONTRACT SERVICES,488.56,30/08/2017
Commercial,Regional Enterprise,RE Services Contract Payment,60085134,RE (REGIONAL ENTERPRISE) LIMITED,"1,299.00",25/08/2017
#REF!,#REF!,Grant Payments,80011521,WESSEX LIFT CO. LTD,"1,850.00",15/08/2017
#REF!,#REF!,Grant Payments,80009901,STANNAH STAIRLIFTS LTD,"1,500.00",02/08/2017
#REF!,#REF!,Grant Payments,80010188,STANNAH STAIRLIFTS LTD,"5,879.00",02/08/2017
#REF!,#REF!,Grant Payments,80010199,STANNAH STAIRLIFTS LTD,"2,387.00",02/08/2017
#REF!,#REF!,Grant Payments,80010202,STANNAH STAIRLIFTS LTD,878.96,02/08/2017
#REF!,#REF!,Grant Payments,80010365,STANNAH STAIRLIFTS LTD,"4,833.00",02/08/2017
#REF!,#REF!,Grant Payments,80010638,STANNAH STAIRLIFTS LTD,"2,803.61",02/08/2017
#REF!,#REF!,Grant Payments,80010782,STANNAH STAIRLIFTS LTD,"4,503.00",02/08/2017
#REF!,#REF!,Grant Payments,80011790,STANNAH STAIRLIFTS LTD,"2,233.00",02/08/2017
#REF!,#REF!,Grant Payments,80012057,STANNAH STAIRLIFTS LTD,"16,320.00",21/08/2017
#REF!,#REF!,Grant Payments,80012061,STANNAH STAIRLIFTS LTD,"5,340.00",21/08/2017
#REF!,#REF!,Grant Payments,80012146,STANNAH STAIRLIFTS LTD,"4,606.00",25/08/2017
#REF!,#REF!,Grant Payments,80012163,STANNAH STAIRLIFTS LTD,"2,835.00",25/08/2017
#REF!,#REF!,Grant Payments,80012088,ARTHUR J. FERRYMAN ASSOCIATES,"1,148.88",21/08/2017
#REF!,#REF!,Grant Payments,80011954,AMWELL CONSTRUCTION LTD,"4,549.00",14/08/2017
#REF!,#REF!,Grant Payments,80012080,AMWELL CONSTRUCTION LTD,"3,644.00",21/08/2017
#REF!,#REF!,Grant Payments,80012225,AMWELL CONSTRUCTION LTD,"6,979.50",31/08/2017
#REF!,#REF!,Grant Payments,80011961,SOUTH HERTFORDSHIRE,"5,792.00",14/08/2017
#REF!,#REF!,Grant Payments,80012035,SOUTH HERTFORDSHIRE,"6,132.00",16/08/2017
#REF!,#REF!,Grant Payments,80012113,SOUTH HERTFORDSHIRE,"5,529.00",25/08/2017
#REF!,#REF!,Grant Payments,80011705,DP BUILDERS DISABLED ADAPTATIONS,"5,242.60",03/08/2017
#REF!,#REF!,Grant Payments,80011750,DP BUILDERS DISABLED ADAPTATIONS,"1,560.00",03/08/2017
#REF!,#REF!,Grant Payments,80011963,DP BUILDERS DISABLED ADAPTATIONS,"9,450.00",17/08/2017
#REF!,#REF!,Grant Payments,80012006,DP BUILDERS DISABLED ADAPTATIONS,"6,160.00",23/08/2017
#REF!,#REF!,Grant Payments,80012093,DP BUILDERS DISABLED ADAPTATIONS,530.00,24/08/2017
#REF!,#REF!,Grant Payments,80012205,DP BUILDERS DISABLED ADAPTATIONS,"4,824.00",31/08/2017
#REF!,#REF!,Grant Payments,80012206,H D PROPERTY SERVICES LTD,"4,884.00",31/08/2017
#REF!,#REF!,Grant Payments,80011950,LINK DESIGN,330.00,14/08/2017
#REF!,#REF!,Grant Payments,80012151,HOME BUILDING SERVICES,"6,799.00",25/08/2017
#REF!,#REF!,Grant Payments,80011885,REDACTED - PERSONAL DATA,175.00,10/08/2017
#REF!,#REF!,Grant Payments,80012013,REDACTED - PERSONAL DATA,"15,000.00",16/08/2017
#REF!,#REF!,Grant Payments,80012015,REDACTED - PERSONAL DATA,"5,000.00",16/08/2017
#REF!,#REF!,Grant Payments,80011913,REDACTED - PERSONAL DATA,"8,372.00",10/08/2017
#REF!,#REF!,Grant Payments,80012115,REDACTED - PERSONAL DATA,"4,893.00",25/08/2017
#REF!,#REF!,Grant Payments,80012149,REDACTED - PERSONAL DATA,"4,900.00",25/08/2017
#REF!,#REF!,Grant Payments,80012243,REDACTED - PERSONAL DATA,408.00,31/08/2017
#REF!,#REF!,Grant Payments,80011795,MCP PROPERTY SERVICES LTD,"2,362.50",10/08/2017
#REF!,#REF!,Grant Payments,80006350,REDACTED - PERSONAL DATA,"2,200.00",23/08/2017
#REF!,#REF!,Professional Services,60083613,OPENVIEW SECURITY SOLUTIONS LTD,"79,805.14",15/08/2017
#REF!,#REF!,Other Services,60085248,CONWAY AECOM LTD,346.14,23/08/2017
#REF!,#REF!,Other Services,60085326,CONWAY AECOM LTD,390.70,24/08/2017
#REF!,#REF!,Other Services,60085281,CONWAY AECOM LTD,629.59,24/08/2017
#REF!,#REF!,Other Services,60083124,BARNET LIGHTING SERVICES LTD,599.47,07/08/2017
#REF!,#REF!,Other Services,60085269,CONWAY AECOM LTD,125.40,24/08/2017
#REF!,#REF!,Other Services,60085334,BARNET LIGHTING SERVICES LTD,"16,642.20",15/08/2017
#REF!,#REF!,Other Services,60058568,CONWAY AECOM LTD,"39,074.76",10/08/2017
#REF!,#REF!,Other Services,60084560,CONWAY AECOM LTD,"14,609.25",10/08/2017
#REF!,#REF!,Other Services,60085346,CONWAY AECOM LTD,542.37,29/08/2017
#REF!,#REF!,Other Services,60085289,CONWAY AECOM LTD,"2,643.06",31/08/2017
#REF!,#REF!,Other Services,60085344,BARNET LIGHTING SERVICES LTD,"2,140.96",31/08/2017
#REF!,#REF!,Other Services,60085271,CONWAY AECOM LTD,904.61,29/08/2017
#REF!,#REF!,Other Services,60084935,CONWAY AECOM LTD,"2,452.01",08/08/2017
#REF!,#REF!,Other Services,60082292,CONWAY AECOM LTD,"7,160.67",10/08/2017
#REF!,#REF!,Other Services,60085486,CONWAY AECOM LTD,"3,046.47",16/08/2017
#REF!,#REF!,Other Services,60084923,CYCLE CONFIDENT LTD,"26,375.64",30/08/2017
#REF!,#REF!,Other Services,60084615,CONWAY AECOM LTD,"72,234.49",10/08/2017
#REF!,#REF!,Other Services,60083493,TMP (UK) LTD,230.59,24/08/2017
#REF!,#REF!,Other Services,60084611,BRITISH TELECOM PLC,"7,948.40",02/08/2017
#REF!,#REF!,Other Services,60085488,CONWAY AECOM LTD,"5,304.26",24/08/2017
#REF!,#REF!,Other Services,60084254,CONWAY AECOM LTD,10.06,15/08/2017
#REF!,#REF!,Consultants Fees,60084081,GOOD IMPRESSIONS (LONDON) LIMITED,720.00,16/08/2017
#REF!,#REF!,Other Services,60084581,CONWAY AECOM LTD,"6,149.26",02/08/2017
#REF!,#REF!,Other Services,60085219,CONWAY AECOM LTD,"15,577.60",24/08/2017
#REF!,#REF!,Other Services,60085250,CONWAY AECOM LTD,"23,436.80",24/08/2017
#REF!,#REF!,Other Services,60085319,CONWAY AECOM LTD,"41,552.00",24/08/2017
#REF!,#REF!,Other Services,60085348,CONWAY AECOM LTD,"11,250.00",24/08/2017
#REF!,#REF!,Other Services,60085352,CONWAY AECOM LTD,"12,985.60",24/08/2017
#REF!,#REF!,Other Services,60085225,CONWAY AECOM LTD,"32,168.73",31/08/2017
#REF!,#REF!,Other Services,60085276,CONWAY AECOM LTD,"2,088.86",31/08/2017
#REF!,#REF!,Other Services,60085277,CONWAY AECOM LTD,"47,439.00",31/08/2017
#REF!,#REF!,Other Services,60085341,CONWAY AECOM LTD,"34,981.23",31/08/2017
#REF!,#REF!,Other Services,60083433,CAN DIGITAL SOLUTIONS LTD,"3,000.00",04/08/2017
#REF!,#REF!,Other Services,60083680,CONWAY AECOM LTD,"2,826.15",10/08/2017
#REF!,#REF!,Other Services,60083738,CONWAY AECOM LTD,"3,506.01",10/08/2017
#REF!,#REF!,Other Services,60083896,CONWAY AECOM LTD,"6,517.20",10/08/2017
#REF!,#REF!,Other Services,60085324,CONWAY AECOM LTD,"3,263.66",14/08/2017
#REF!,#REF!,Other Services,60085244,CONWAY AECOM LTD,"1,499.82",17/08/2017
#REF!,#REF!,Other Services,60085221,CONWAY AECOM LTD,"12,515.10",31/08/2017
#REF!,#REF!,Other Services,60084542,CONWAY AECOM LTD,65.72,24/08/2017
#REF!,#REF!,Consultants Fees,60084757,BOLT & HEEKS LTD,200.00,04/08/2017
#REF!,#REF!,Consultants Fees,60084791,BOLT & HEEKS LTD,"16,892.42",17/08/2017
#REF!,#REF!,Other Services,60083746,CONWAY AECOM LTD,"1,696.50",10/08/2017
#REF!,#REF!,Other Services,60085312,CONWAY AECOM LTD,"9,979.89",17/08/2017
#REF!,#REF!,Consultants Fees,80012202,CROWN MORAN HOTEL,404.64,25/08/2017
#REF!,#REF!,Consultants Fees,80012203,CROWN MORAN HOTEL,"2,000.00",25/08/2017
#REF!,#REF!,Consultants Fees,60084096,NETWORK RAIL INFRASTRUCTURE LTD,"607,054.86",17/08/2017
#REF!,#REF!,Consultants Fees,80011817,GOWLING WLG,"1,265.00",07/08/2017
#REF!,#REF!,Consultants Fees,60083387,VISTA 3D LIMITED,"3,171.72",03/08/2017
#REF!,#REF!,Capital Construction and Works,10013851,RGE SERVICES,919.52,10/08/2017
#REF!,#REF!,Other Services,60084610,TRACSIS TRAFFIC DATA LIMITED,"6,870.00",23/08/2017
Commissioning,Commissioning,Professional Services,60085476,GENERAL DYNAMICS INFORMATION TECHNOLOGY,375.00,31/08/2017
#REF!,#REF!,Building Repairs & Maintenance,60082256,CONWAY AECOM LTD,"1,441.09",14/08/2017
#REF!,#REF!,Building Repairs & Maintenance,60085184,CONWAY AECOM LTD,979.24,29/08/2017
#REF!,#REF!,Building Repairs & Maintenance,60084995,S W BRUCE & CO LTD,"1,290.45",24/08/2017
#REF!,#REF!,Building Repairs & Maintenance,60085040,S W BRUCE & CO LTD,"1,789.96",24/08/2017
#REF!,#REF!,Capital Construction and Works,60084556,CLEVELAND SITESAFE LTD,"20,431.44",02/08/2017
#REF!,#REF!,Capital Construction and Works,60085300,CLEVELAND SITESAFE LTD,"4,089.65",29/08/2017
#REF!,#REF!,Equipment and Materials Purcha,60085692,DURAMEN CONSULTING LTD,"1,145.00",30/08/2017
#REF!,#REF!,Other Services,60084857,UK POWER NETWORKS,"1,315.00",07/08/2017
#REF!,#REF!,Other Services,10013846,SMS CONNECTIONS LTD,"11,581.75",02/08/2017
#REF!,#REF!,Consultants Fees,60085868,WILLMOTT DIXON CONSTRUCTION LTD,"462,956.00",25/08/2017
#REF!,#REF!,Building Repairs & Maintenance,60084990,EURO COMPLIANCE LTD,400.00,10/08/2017
#REF!,#REF!,Building Repairs & Maintenance,60085013,EURO COMPLIANCE LTD,400.00,10/08/2017
#REF!,#REF!,Building Repairs & Maintenance,60085077,EURO COMPLIANCE LTD,400.00,10/08/2017
#REF!,#REF!,Consultants Fees,10013810,GALLIFORD TRY,"(821,327.67)",02/08/2017
#REF!,#REF!,Consultants Fees,60084430,GALLIFORD TRY,"871,986.71",02/08/2017
#REF!,#REF!,Consultants Fees,60085145,GALLIFORD TRY,"908,396.39",24/08/2017
Commissioning,Commissioning,Ttl IT & Comms,60084814,STOR-A FILE LTD,"5,857.74",29/08/2017
Commissioning,Commissioning,Grant Payments,80011962,EAST FINCHLEY ARTS,"1,000.00",16/08/2017
Commissioning,Commissioning,Grant Payments,80012158,THE HOPE OF CHILDREN,"2,500.00",23/08/2017
Commissioning,Commissioning,Travelling Expenses,80011789,REDACTED - PERSONAL DATA,30.00,02/08/2017
Commissioning,Commissioning,Travelling Expenses,80012085,REDACTED - PERSONAL DATA,28.45,18/08/2017
Commissioning,Commissioning,Consultants Fees,60081294,CAPITA BUSINESS SERVICES LTD,"5,698.00",08/08/2017
Commissioning,Commissioning,Professional Services,60084717,KPMG FEES ACCOUNT,875.00,04/08/2017
Commissioning,Commissioning,Other Services,60084889,INSTITUTE OF REVENUES RATING,475.00,30/08/2017
Commissioning,Commissioning,Subscriptions,60084719,PDP TRAINING,550.00,04/08/2017
Commissioning,Commissioning,Subscriptions,60085540,PUBLIC POLICY EXCHANGE LTD,236.00,17/08/2017
Commissioning,Commissioning,Grant Payments,80011948,ADDISS,"9,999.00",16/08/2017
Commissioning,Commissioning,Grant Payments,80012023,THE BOYS' CLUB,"3,333.00",16/08/2017
Commissioning,Commissioning,Grant Payments,80012155,THE PAPERWEIGHT TRUST,"3,333.00",23/08/2017
Commissioning,Commissioning,Grant Payments,80011931,AIDEXCEL SUPPORT SERVICES LIMITED,"4,460.00",16/08/2017
Commissioning,Commissioning,Grant Payments,80011947,ADDISS,"9,999.00",16/08/2017
Commissioning,Commissioning,Grant Payments,80012022,THE BOYS' CLUB,"3,333.00",16/08/2017
Commissioning,Commissioning,Grant Payments,80012156,THE PAPERWEIGHT TRUST,"3,333.00",23/08/2017
Commissioning,Commissioning,Discretionary awards,80011946,ADDISS,"9,999.00",16/08/2017
Commissioning,Commissioning,Discretionary awards,80012020,COLINDALE COMMUNITIES TRUST,"9,999.00",16/08/2017
Commissioning,Commissioning,Discretionary awards,80012021,THE BOYS' CLUB,"3,333.00",16/08/2017
Commissioning,Commissioning,Discretionary awards,80012154,THE PAPERWEIGHT TRUST,"3,333.00",23/08/2017
Commissioning,Commissioning,Equipment and Materials Purcha,60085417,OCS GROUP UK LIMITED,"47,050.00",31/08/2017
Commissioning,Commissioning,Transport Hire Charges,60083997,BARNET COMMUNITY TRANSPORT,"1,500.00",23/08/2017
Commissioning,Commissioning,Early Retirement Service Contr,60085809,CAPITA BUSINESS SERVICES LTD,474.60,24/08/2017
Commissioning,Commissioning,Other Transfer Payments to Soc,60084168,COMMUNITY BARNET,"6,500.00",31/08/2017
Commissioning,Commissioning,Other Transfer Payments to Soc,60082002,S W BRUCE & CO LTD,"2,923.87",08/08/2017
Commissioning,Commissioning,Other Transfer Payments to Soc,60083902,SENATOR INTERNATIONAL,"6,870.60",16/08/2017
Commissioning,Commissioning,Consultants Fees,60083703,S W BRUCE & CO LTD,981.53,08/08/2017
Commissioning,Commissioning,Settlement of WOM Costs,60082909,S W BRUCE & CO LTD,683.75,04/08/2017
Commissioning,Commissioning,Consultants Fees,60084897,GOVNET COMMUNICATIONS,250.00,09/08/2017
Commissioning,Commissioning,Consultants Fees,60084839,JON SHEAFF AND ASSOCIATES,"20,975.00",22/08/2017
Commissioning,Commissioning,Training,60084622,FUTURE OF LONDON 2011 LTD,75.00,10/08/2017
Commissioning,Commissioning,Training,80011932,LIFESTORM,385.00,10/08/2017
Commissioning,Commissioning,Consultants Fees,60084977,31TEN CONSULTING LIMITED,"6,500.00",09/08/2017
Commissioning,Commissioning,Professional Services,60085845,MYSTERY SHOPPERS LTD,764.80,30/08/2017
Commissioning,Commissioning,Professional Services,60083978,WESTCO TRADING LTD,"17,000.00",17/08/2017
Commissioning,Commissioning,Professional Services,60083514,BANG THE TABLE UK PTY LTD,"8,000.00",10/08/2017
Commissioning,Commissioning,Grant Payments,80011840,BROADFIELDS ACADEMY,585.00,07/08/2017
Commissioning,Commissioning,Consultants Fees,60085700,FMG CONSULTING LTD,656.41,29/08/2017
Commissioning,Commissioning,Consultants Fees,60086119,FMG CONSULTING LTD,615.28,29/08/2017
Commissioning,Commissioning,Consultants Fees,60085707,PRIME PRODUCTION LTD,175.00,21/08/2017
Commissioning,Commissioning,Publications,60084669,LETTERBOX DISTRIBUTION.COM,395.00,03/08/2017
Commissioning,Commissioning,Agency/Interim Hays,60082933,SUE HILL RECRUITMENT & SERVICES LTD,631.96,03/08/2017
Commissioning,Commissioning,Other Services,60084800,BLUE 9 SECURITY LIMITED,"2,413.35",10/08/2017
Commissioning,Commissioning,Other Services,60084817,BLUE 9 SECURITY LIMITED,"2,833.74",10/08/2017
Commissioning,Commissioning,Other Services,60084856,BLUE 9 SECURITY LIMITED,"2,335.50",10/08/2017
Commissioning,Commissioning,Other Services,60084862,BLUE 9 SECURITY LIMITED,"1,977.39",10/08/2017
Commissioning,Commissioning,Other Services,60084832,BLUE 9 SECURITY LIMITED,"2,351.07",17/08/2017
Commissioning,Commissioning,Professional Services,60085095,THE DARTINGTON HALL TRUST,"28,027.50",31/08/2017
Commissioning,Commissioning,Professional Services,60082948,TRACEY HILL TRAINING & CONSULTANCY LTD,"13,204.65",07/08/2017
Commissioning,Commissioning,Other Local Authorities - Thir,EBX0183448,NORTH LONDON WASTE,"872,077.00",04/08/2017
Corporate Accounting,Corporate Accounting,Miscellaneous Expenses,20034513,REDACTED - PERSONAL DATA,491.17,14/08/2017
Corporate Accounting,Corporate Accounting,Miscellaneous Expenses,20034393,REDACTED - PERSONAL DATA,158.83,01/08/2017
Corporate Accounting,Corporate Accounting,Miscellaneous Expenses,20034417,REDACTED - PERSONAL DATA,95.31,01/08/2017
Corporate Accounting,Corporate Accounting,Miscellaneous Expenses,20034440,REDACTED - PERSONAL DATA,"2,180.02",07/08/2017
Corporate Accounting,Corporate Accounting,Miscellaneous Expenses,20034487,REDACTED - PERSONAL DATA,842.95,09/08/2017
Corporate Accounting,Corporate Accounting,Miscellaneous Expenses,20034550,REDACTED - PERSONAL DATA,"1,816.00",15/08/2017
Corporate Accounting,Corporate Accounting,Miscellaneous Expenses,20034551,REDACTED - PERSONAL DATA,"2,232.08",15/08/2017
Corporate Accounting,Corporate Accounting,Government departments - Third,80011783,DEPARTMENT FOR COMMUNITIES & LOCAL GOV.,"438,974.87",01/08/2017
Corporate Accounting,Corporate Accounting,Government departments - Third,80011819,DEPARTMENT FOR COMMUNITIES & LOCAL GOV.,"989,412.21",08/08/2017
Corporate Accounting,Corporate Accounting,Grant Payments,80011968,THE LARCHES CO,"2,500.00",16/08/2017
Corporate Accounting,Corporate Accounting,Grant Payments,80012157,HARTS THEATRE,"5,000.00",23/08/2017
Corporate Accounting,Corporate Accounting,Other Agencies - Third Party P,60083873,THE BARNETGROUP LIMITED,"91,666.67",03/08/2017
Corporate Accounting,Corporate Accounting,Other Agencies - Third Party P,60085678,THE BARNETGROUP LIMITED,"5,295,000.00",22/08/2017
Corporate Accounting,Corporate Accounting,Other Agencies - Third Party P,60085686,THE BARNETGROUP LIMITED,"91,666.67",22/08/2017
Corporate Accounting,Corporate Accounting,Other Transfer Payments to Soc,60083468,CITIBANK NA LONDON,96.72,01/08/2017
Corporate Accounting,Corporate Accounting,Other Transfer Payments to Soc,60085079,CITIBANK NA LONDON,135.00,10/08/2017
Corporate Accounting,Corporate Accounting,Other Transfer Payments to Soc,60085111,CITIBANK NA LONDON,479.66,10/08/2017
Corporate Accounting,Corporate Accounting,Other Transfer Payments to Soc,60085118,CITIBANK NA LONDON,588.80,10/08/2017
Corporate Accounting,Corporate Accounting,Other Transfer Payments to Soc,60085124,CITIBANK NA LONDON,527.50,11/08/2017
Corporate Accounting,Corporate Accounting,Other Transfer Payments to Soc,60085141,CITIBANK NA LONDON,60.00,11/08/2017
Corporate Accounting,Corporate Accounting,Other Transfer Payments to Soc,60085148,CITIBANK NA LONDON,481.00,11/08/2017
Corporate Accounting,Corporate Accounting,Other Transfer Payments to Soc,60085166,CITIBANK NA LONDON,"15,256.00",11/08/2017
Corporate Accounting,Corporate Accounting,Other Transfer Payments to Soc,60085190,CITIBANK NA LONDON,800.00,14/08/2017
Corporate Accounting,Corporate Accounting,Other Transfer Payments to Soc,60085229,CITIBANK NA LONDON,508.70,14/08/2017
Corporate Accounting,Corporate Accounting,Other Transfer Payments to Soc,60085234,CITIBANK NA LONDON,115.80,14/08/2017
Corporate Accounting,Corporate Accounting,Other Transfer Payments to Soc,60085253,CITIBANK NA LONDON,522.50,14/08/2017
Corporate Accounting,Corporate Accounting,Other Transfer Payments to Soc,60085275,CITIBANK NA LONDON,35.00,14/08/2017
Corporate Accounting,Corporate Accounting,Other Transfer Payments to Soc,60085279,CITIBANK NA LONDON,"2,564.25",14/08/2017
Corporate Accounting,Corporate Accounting,Other Transfer Payments to Soc,60085282,CITIBANK NA LONDON,"4,100.90",14/08/2017
Corporate Accounting,Corporate Accounting,Other Transfer Payments to Soc,60085284,CITIBANK NA LONDON,232.90,14/08/2017
Corporate Accounting,Corporate Accounting,Other Transfer Payments to Soc,10013854,CITIBANK NA LONDON,123.00,15/08/2017
Corporate Accounting,Corporate Accounting,Other Transfer Payments to Soc,60085366,CITIBANK NA LONDON,749.70,18/08/2017
Corporate Accounting,Corporate Accounting,Other Transfer Payments to Soc,60085367,CITIBANK NA LONDON,57.90,18/08/2017
Corporate Accounting,Corporate Accounting,Other Transfer Payments to Soc,60085387,CITIBANK NA LONDON,200.00,18/08/2017
Corporate Accounting,Corporate Accounting,Other Transfer Payments to Soc,60085400,CITIBANK NA LONDON,215.80,18/08/2017
Corporate Accounting,Corporate Accounting,Other Transfer Payments to Soc,60085437,CITIBANK NA LONDON,"2,512.30",18/08/2017
Corporate Accounting,Corporate Accounting,Other Transfer Payments to Soc,60085441,CITIBANK NA LONDON,"9,228.70",18/08/2017
Corporate Accounting,Corporate Accounting,Other Transfer Payments to Soc,60085447,CITIBANK NA LONDON,"7,219.20",18/08/2017
Corporate Accounting,Corporate Accounting,Other Transfer Payments to Soc,60085449,CITIBANK NA LONDON,48.50,18/08/2017
Corporate Accounting,Corporate Accounting,Other Transfer Payments to Soc,60085484,CITIBANK NA LONDON,168.00,18/08/2017
Corporate Accounting,Corporate Accounting,Other Transfer Payments to Soc,60085497,CITIBANK NA LONDON,20.00,18/08/2017
Corporate Accounting,Corporate Accounting,Other Transfer Payments to Soc,60085507,CITIBANK NA LONDON,11.09,18/08/2017
Corporate Accounting,Corporate Accounting,Other Transfer Payments to Soc,60085720,CITIBANK NA LONDON,"1,035.75",21/08/2017
Corporate Accounting,Corporate Accounting,Other Transfer Payments to Soc,60085739,CITIBANK NA LONDON,404.50,21/08/2017
Corporate Accounting,Corporate Accounting,Other Transfer Payments to Soc,60085767,CITIBANK NA LONDON,60.00,21/08/2017
Corporate Accounting,Corporate Accounting,Other Transfer Payments to Soc,60085768,CITIBANK NA LONDON,730.88,21/08/2017
Corporate Accounting,Corporate Accounting,Other Transfer Payments to Soc,60085328,CITIBANK NA LONDON,"2,054.30",22/08/2017
Corporate Accounting,Corporate Accounting,Other Transfer Payments to Soc,60085897,CITIBANK NA LONDON,473.20,24/08/2017
Corporate Accounting,Corporate Accounting,Other Transfer Payments to Soc,60085906,CITIBANK NA LONDON,420.00,24/08/2017
Corporate Accounting,Corporate Accounting,Other Transfer Payments to Soc,60085910,CITIBANK NA LONDON,395.00,24/08/2017
Corporate Accounting,Corporate Accounting,Other Transfer Payments to Soc,60085926,CITIBANK NA LONDON,221.20,24/08/2017
Corporate Accounting,Corporate Accounting,Other Transfer Payments to Soc,60085927,CITIBANK NA LONDON,900.66,24/08/2017
Corporate Accounting,Corporate Accounting,Other Transfer Payments to Soc,60085931,CITIBANK NA LONDON,"3,112.29",24/08/2017
Corporate Accounting,Corporate Accounting,Other Transfer Payments to Soc,60085934,CITIBANK NA LONDON,"1,499.40",24/08/2017
Corporate Accounting,Corporate Accounting,Other Transfer Payments to Soc,60085944,CITIBANK NA LONDON,286.50,24/08/2017
Corporate Accounting,Corporate Accounting,Other Transfer Payments to Soc,60085945,CITIBANK NA LONDON,"1,034.80",24/08/2017
Corporate Accounting,Corporate Accounting,Other Transfer Payments to Soc,60085949,CITIBANK NA LONDON,180.00,24/08/2017
Corporate Accounting,Corporate Accounting,Other Transfer Payments to Soc,60085953,CITIBANK NA LONDON,"4,418.57",25/08/2017
Corporate Accounting,Corporate Accounting,Other Transfer Payments to Soc,60085964,CITIBANK NA LONDON,"4,798.24",25/08/2017
Corporate Accounting,Corporate Accounting,Other Transfer Payments to Soc,60085980,CITIBANK NA LONDON,360.00,25/08/2017
Corporate Accounting,Corporate Accounting,Other Transfer Payments to Soc,60085990,CITIBANK NA LONDON,173.70,25/08/2017
Corporate Accounting,Corporate Accounting,Other Transfer Payments to Soc,60085999,CITIBANK NA LONDON,"4,858.29",25/08/2017
Corporate Accounting,Corporate Accounting,Other Transfer Payments to Soc,60086020,CITIBANK NA LONDON,849.50,30/08/2017
Corporate Accounting,Corporate Accounting,Refunds,80011921,THE BARNETGROUP LIMITED,"1,025.00",14/08/2017
Corporate Accounting,Corporate Accounting,Refunds,80011701,MOTT MACDONALD LTD/CAMBRIDGE EDUCATION,"1,740.00",03/08/2017
Corporate Accounting,Corporate Accounting,Employee Expenses,60086271,EDENRED,"1,504.25",31/08/2017
Corporate Accounting,Corporate Accounting,Other Local Authorities - Thir,EBX0183663,GREATER LONDON AUTHORITY,"49,828.80",09/08/2017
Corporate Accounting,Corporate Accounting,Other Local Authorities - Thir,EBX0182971,GREATER LONDON AUTHORITY,"4,014,752.61",02/08/2017
Corporate Accounting,Corporate Accounting,Other Local Authorities - Thir,EBX0184201,GREATER LONDON AUTHORITY,"3,428,215.84",11/08/2017
Corporate Accounting,Corporate Accounting,Other Local Authorities - Thir,EBX0185946,GREATER LONDON AUTHORITY,"234,605.00",23/08/2017
Delivery Units,Adults and Communities,Other Services,30169029,WILLOW HOUSING & CARE LTD.,711.38,24/08/2017
Delivery Units,Adults and Communities,Voluntary Associations - Third,30169018,ELEANOR PALMER TRUST NO 2 A/C.,486.50,24/08/2017
Delivery Units,Adults and Communities,Voluntary Associations - Third,30169017,CHRISTIAN ACTION (ENFIELD),365.80,24/08/2017
Delivery Units,Adults and Communities,Voluntary Associations - Third,30169014,ASRA GREATER LONDON HOUSING ASSOC,379.30,24/08/2017
Delivery Units,Adults and Communities,Voluntary Associations - Third,30169026,LINEN & WOOLLEN DRAPERS COTTAGE,730.11,24/08/2017
Delivery Units,Adults and Communities,Voluntary Associations - Third,30169020,HABINTEG HOUSING ASSOCIATION,446.37,24/08/2017
Delivery Units,Adults and Communities,Voluntary Associations - Third,30169024,ORCHARD HOUSING ASSOCIATION,196.62,22/08/2017
Delivery Units,Adults and Communities,Voluntary Associations - Third,30169025,ST PANCRAS & HUMANIST H.A.,661.55,24/08/2017
Delivery Units,Adults and Communities,Voluntary Associations - Third,30169021,JEWISH COMMUNITY HOUSING ASSOCIATIO,568.17,24/08/2017
Delivery Units,Adults and Communities,Voluntary Associations - Third,20034403,GENESIS HOUSING ASSOCIATION LIMITED,"35,676.00",01/08/2017
Delivery Units,Adults and Communities,Voluntary Associations - Third,30169019,GENESIS HOUSING ASSOCIATION LIMITED,"35,676.00",24/08/2017
Delivery Units,Adults and Communities,Voluntary Associations - Third,30169028,SCOTSCARE,361.52,24/08/2017
Delivery Units,Adults and Communities,Training,20034431,SKILLS FOR CARE SOLUTIONS LTD,"2,250.00",03/08/2017
Delivery Units,Adults and Communities,Other Services,60083605,M1 EXPRESS CAR SERVICES,203.00,30/08/2017
Delivery Units,Adults and Communities,Other Services,60082616,M1 EXPRESS CAR SERVICES,144.00,31/08/2017
Delivery Units,Adults and Communities,Other Agencies - Third Party P,90012950,JEWISH CARE,"1,624.26",11/08/2017
Delivery Units,Adults and Communities,Other Agencies - Third Party P,90012951,JEWISH CARE,"2,428.53",11/08/2017
Delivery Units,Adults and Communities,Other Agencies - Third Party P,90012952,JEWISH CARE,"2,273.96",11/08/2017
Delivery Units,Adults and Communities,Other Agencies - Third Party P,90012961,JEWISH CARE,"2,518.48",11/08/2017
Delivery Units,Adults and Communities,Other Agencies - Third Party P,90012962,JEWISH CARE,"2,273.96",11/08/2017
Delivery Units,Adults and Communities,Other Agencies - Third Party P,30168555,JEWISH CARE,243.64,14/08/2017
Delivery Units,Adults and Communities,Other Agencies - Third Party P,90011634,FERNBANK NURSING HOME.,"2,244.00",02/08/2017
Delivery Units,Adults and Communities,Other Agencies - Third Party P,30168511,BUPA NURSING HOMES LTD - ARKLEY,"2,227.40",09/08/2017
Delivery Units,Adults and Communities,Other Agencies - Third Party P,30168512,BUPA NURSING HOMES LTD - ARKLEY,79.55,09/08/2017
Delivery Units,Adults and Communities,Other Agencies - Third Party P,90015162,BUPA NURSING HOMES LTD - ARKLEY,928.15,24/08/2017
Delivery Units,Adults and Communities,Other Agencies - Third Party P,90015163,BUPA NURSING HOMES LTD - ARKLEY,773.46,24/08/2017
Delivery Units,Adults and Communities,Other Agencies - Third Party P,90015164,BUPA NURSING HOMES LTD - ARKLEY,"2,214.76",24/08/2017
Delivery Units,Adults and Communities,Other Agencies - Third Party P,90015165,BUPA NURSING HOMES LTD - ARKLEY,"2,227.40",24/08/2017
Delivery Units,Adults and Communities,Other Agencies - Third Party P,90015167,BUPA NURSING HOMES LTD - ARKLEY,"2,227.24",24/08/2017
Delivery Units,Adults and Communities,Other Agencies - Third Party P,90015168,BUPA NURSING HOMES LTD - ARKLEY,"2,227.24",24/08/2017
Delivery Units,Adults and Communities,Other Agencies - Third Party P,90015169,BUPA NURSING HOMES LTD - ARKLEY,"2,227.52",24/08/2017
Delivery Units,Adults and Communities,Other Agencies - Third Party P,90011910,AGUDAS ISRAEL HOUSING ASSCTN LTD,"2,736.86",14/08/2017
Delivery Units,Adults and Communities,Other Agencies - Third Party P,90011911,AGUDAS ISRAEL HOUSING ASSCTN LTD,"3,154.25",14/08/2017
Delivery Units,Adults and Communities,Other Agencies - Third Party P,90013693,WESTMINSTER HEALTH CARE LTD,"2,318.93",15/08/2017
Delivery Units,Adults and Communities,Other Agencies - Third Party P,90011728,HENRY NIHILL HOUSE,"2,165.68",04/08/2017
Delivery Units,Adults and Communities,Other Agencies - Third Party P,90011729,HENRY NIHILL HOUSE,"2,165.68",04/08/2017
Delivery Units,Adults and Communities,Other Agencies - Third Party P,90011731,HENRY NIHILL HOUSE,"2,165.68",04/08/2017
Delivery Units,Adults and Communities,Other Agencies - Third Party P,90011732,HENRY NIHILL HOUSE,"2,165.68",04/08/2017
Delivery Units,Adults and Communities,Other Agencies - Third Party P,90011733,HENRY NIHILL HOUSE,"2,165.68",04/08/2017
Delivery Units,Adults and Communities,Other Agencies - Third Party P,90011735,HENRY NIHILL HOUSE,"6,497.04",04/08/2017
Delivery Units,Adults and Communities,Other Agencies - Third Party P,90011989,THE LEONARD CHESHIRE FOUNDATION,"5,900.00",04/08/2017
Delivery Units,Adults and Communities,Other Agencies - Third Party P,90011990,THE LEONARD CHESHIRE FOUNDATION,"6,532.14",04/08/2017
Delivery Units,Adults and Communities,Other Agencies - Third Party P,90011991,THE LEONARD CHESHIRE FOUNDATION,"6,321.43",04/08/2017
Delivery Units,Adults and Communities,Other Agencies - Third Party P,90011966,THE LEONARD CHESHIRE FOUNDATION,"6,532.14",24/08/2017
Delivery Units,Adults and Communities,Other Agencies - Third Party P,90011679,LIFESTYLE CARE PLC,"2,165.68",02/08/2017
Delivery Units,Adults and Communities,Other Agencies - Third Party P,90011680,LIFESTYLE CARE PLC,"2,398.56",02/08/2017
Delivery Units,Adults and Communities,Other Agencies - Third Party P,90011681,LIFESTYLE CARE PLC,"2,165.68",02/08/2017
Delivery Units,Adults and Communities,Other Agencies - Third Party P,90011682,LIFESTYLE CARE PLC,"2,165.68",02/08/2017
Delivery Units,Adults and Communities,Other Agencies - Third Party P,90011684,LIFESTYLE CARE PLC,"2,165.68",02/08/2017
Delivery Units,Adults and Communities,Other Agencies - Third Party P,90011686,LIFESTYLE CARE PLC,"2,165.68",02/08/2017
Delivery Units,Adults and Communities,Other Agencies - Third Party P,90011687,LIFESTYLE CARE PLC,"2,165.68",02/08/2017
Delivery Units,Adults and Communities,Other Agencies - Third Party P,90011688,LIFESTYLE CARE PLC,"2,165.68",02/08/2017
Delivery Units,Adults and Communities,Other Agencies - Third Party P,90011690,LIFESTYLE CARE PLC,"2,165.68",02/08/2017
Delivery Units,Adults and Communities,Other Agencies - Third Party P,90011692,LIFESTYLE CARE PLC,"2,165.68",02/08/2017
Delivery Units,Adults and Communities,Other Agencies - Third Party P,90011693,LIFESTYLE CARE PLC,"2,165.68",02/08/2017
Delivery Units,Adults and Communities,Other Agencies - Third Party P,90011694,LIFESTYLE CARE PLC,"2,165.68",02/08/2017
Delivery Units,Adults and Communities,Other Agencies - Third Party P,90011696,LIFESTYLE CARE PLC,"2,165.68",02/08/2017
Delivery Units,Adults and Communities,Other Agencies - Third Party P,90013955,LIFESTYLE CARE PLC,"1,970.25",16/08/2017
Delivery Units,Adults and Communities,Other Agencies - Third Party P,90013956,LIFESTYLE CARE PLC,"1,970.25",16/08/2017
Delivery Units,Adults and Communities,Other Agencies - Third Party P,90013957,LIFESTYLE CARE PLC,"1,970.25",16/08/2017
Delivery Units,Adults and Communities,Other Agencies - Third Party P,90013958,LIFESTYLE CARE PLC,"1,778.95",16/08/2017
Delivery Units,Adults and Communities,Other Agencies - Third Party P,90013959,LIFESTYLE CARE PLC,"1,778.95",16/08/2017
Delivery Units,Adults and Communities,Other Agencies - Third Party P,90013960,LIFESTYLE CARE PLC,"1,720.50",16/08/2017
Delivery Units,Adults and Communities,Other Agencies - Third Party P,90013901,SONESTA NURSING HOME LTD.,"2,397.72",16/08/2017
Delivery Units,Adults and Communities,Other Agencies - Third Party P,90013903,SONESTA NURSING HOME LTD.,"2,655.55",16/08/2017
Delivery Units,Adults and Communities,Other Agencies - Third Party P,90015144,MEERA NURSING HOME LIMITED,"2,758.93",22/08/2017
Delivery Units,Adults and Communities,Other Agencies - Third Party P,90011984,NEWCENTURY CARE LTD,"2,398.56",04/08/2017
Delivery Units,Adults and Communities,Other Agencies - Third Party P,90011986,NEWCENTURY CARE LTD,"2,165.68",04/08/2017
Delivery Units,Adults and Communities,Other Agencies - Third Party P,90011987,NEWCENTURY CARE LTD,"2,398.56",04/08/2017
Delivery Units,Adults and Communities,Other Agencies - Third Party P,90011931,BUPA CARE HOMES,"2,228.05",04/08/2017
Delivery Units,Adults and Communities,Other Agencies - Third Party P,30168435,BUPA CARE HOMES,159.14,07/08/2017
Delivery Units,Adults and Communities,Other Agencies - Third Party P,90011924,BUPA CARE HOMES,"(2,167.82)",10/08/2017
Delivery Units,Adults and Communities,Other Agencies - Third Party P,90011937,BUPA CARE HOMES,"2,466.76",10/08/2017
Delivery Units,Adults and Communities,Other Agencies - Third Party P,90013905,BUPA CARE HOMES,"2,466.76",16/08/2017
Delivery Units,Adults and Communities,Other Agencies - Third Party P,90013952,BUPA CARE HOMES,"2,165.68",16/08/2017
Delivery Units,Adults and Communities,Other Agencies - Third Party P,90011934,BUPA CARE HOMES,"2,730.97",10/08/2017
Delivery Units,Adults and Communities,Other Agencies - Third Party P,90012907,FOUR SEASONS HEALTH CARE,"2,550.72",10/08/2017
Delivery Units,Adults and Communities,Other Agencies - Third Party P,90012908,FOUR SEASONS HEALTH CARE,"2,291.36",10/08/2017
Delivery Units,Adults and Communities,Other Agencies - Third Party P,90012911,FOUR SEASONS HEALTH CARE,"2,291.36",10/08/2017
Delivery Units,Adults and Communities,Other Agencies - Third Party P,90012912,FOUR SEASONS HEALTH CARE,"2,551.52",10/08/2017
Delivery Units,Adults and Communities,Other Agencies - Third Party P,90012913,FOUR SEASONS HEALTH CARE,"2,291.36",10/08/2017
Delivery Units,Adults and Communities,Other Agencies - Third Party P,90012915,FOUR SEASONS HEALTH CARE,"2,291.36",10/08/2017
Delivery Units,Adults and Communities,Other Agencies - Third Party P,90012935,SANCTUARY CARE LTD,"2,490.81",10/08/2017
Delivery Units,Adults and Communities,Other Agencies - Third Party P,90013936,SANCTUARY CARE LTD,"2,573.84",16/08/2017
Delivery Units,Adults and Communities,Other Agencies - Third Party P,90011925,BUPA CARE HOMES,"2,466.05",14/08/2017
Delivery Units,Adults and Communities,Other Agencies - Third Party P,90011927,BUPA CARE HOMES,"2,466.05",14/08/2017
Delivery Units,Adults and Communities,Other Agencies - Third Party P,90012459,SAGE NURSING HOME,"2,436.30",08/08/2017
Delivery Units,Adults and Communities,Other Agencies - Third Party P,90012467,SAGE NURSING HOME,"4,791.39",08/08/2017
Delivery Units,Adults and Communities,Other Agencies - Third Party P,30168526,SAGE NURSING HOME,"7,146.48",09/08/2017
Delivery Units,Adults and Communities,Other Agencies - Third Party P,90012450,SAGE NURSING HOME,"5,314.29",09/08/2017
Delivery Units,Adults and Communities,Other Agencies - Third Party P,90012453,SAGE NURSING HOME,"2,397.72",09/08/2017
Delivery Units,Adults and Communities,Other Agencies - Third Party P,90012454,SAGE NURSING HOME,"2,397.72",09/08/2017
Delivery Units,Adults and Communities,Other Agencies - Third Party P,90012456,SAGE NURSING HOME,"2,788.32",09/08/2017
Delivery Units,Adults and Communities,Other Agencies - Third Party P,90012457,SAGE NURSING HOME,"2,517.60",09/08/2017
Delivery Units,Adults and Communities,Other Agencies - Third Party P,90012458,SAGE NURSING HOME,"2,517.60",09/08/2017
Delivery Units,Adults and Communities,Other Agencies - Third Party P,90013667,APPLE TREE COURT CARE HOME,"2,487.77",15/08/2017
Delivery Units,Adults and Communities,Other Agencies - Third Party P,90013668,APPLE TREE COURT CARE HOME,"3,764.29",15/08/2017
Delivery Units,Adults and Communities,Other Agencies - Third Party P,90013669,APPLE TREE COURT CARE HOME,"2,570.70",15/08/2017
Delivery Units,Adults and Communities,Other Agencies - Third Party P,90013670,APPLE TREE COURT CARE HOME,"2,570.70",15/08/2017
Delivery Units,Adults and Communities,Other Agencies - Third Party P,90013675,APPLE TREE COURT CARE HOME,"2,397.72",15/08/2017
Delivery Units,Adults and Communities,Other Agencies - Third Party P,90013896,AUTUMN GARDENS,"4,800.00",16/08/2017
Delivery Units,Adults and Communities,Other Agencies - Third Party P,90013230,CARE UK COMMUNITY PARTNERSHIPS,"3,426.61",14/08/2017
Delivery Units,Adults and Communities,Other Agencies - Third Party P,90015446,ABBEY RAVENSCROFT PARK NURSING HOME,"3,214.29",24/08/2017
Delivery Units,Adults and Communities,Other Agencies - Third Party P,90015447,ABBEY RAVENSCROFT PARK NURSING HOME,"3,857.14",24/08/2017
Delivery Units,Adults and Communities,Other Agencies - Third Party P,90015448,ABBEY RAVENSCROFT PARK NURSING HOME,"3,985.71",24/08/2017
Delivery Units,Adults and Communities,Other Agencies - Third Party P,90015449,ABBEY RAVENSCROFT PARK NURSING HOME,"3,321.43",24/08/2017
Delivery Units,Adults and Communities,Other Agencies - Third Party P,90015451,ABBEY RAVENSCROFT PARK NURSING HOME,"2,698.37",24/08/2017
Delivery Units,Adults and Communities,Other Agencies - Third Party P,90015452,ABBEY RAVENSCROFT PARK NURSING HOME,"3,150.00",24/08/2017
Delivery Units,Adults and Communities,Other Agencies - Third Party P,90015453,ABBEY RAVENSCROFT PARK NURSING HOME,"3,321.43",24/08/2017
Delivery Units,Adults and Communities,Other Agencies - Third Party P,90015454,ABBEY RAVENSCROFT PARK NURSING HOME,"3,214.29",24/08/2017
Delivery Units,Adults and Communities,Other Agencies - Third Party P,90015477,ABBEY RAVENSCROFT PARK NURSING HOME,"3,321.43",24/08/2017
Delivery Units,Adults and Communities,Other Agencies - Third Party P,90015479,ABBEY RAVENSCROFT PARK NURSING HOME,"3,321.43",24/08/2017
Delivery Units,Adults and Communities,Other Agencies - Third Party P,90015480,ABBEY RAVENSCROFT PARK NURSING HOME,"3,985.71",24/08/2017
Delivery Units,Adults and Communities,Other Agencies - Third Party P,90015553,ABBEY RAVENSCROFT PARK NURSING HOME,"1,414.29",24/08/2017
Delivery Units,Adults and Communities,Other Agencies - Third Party P,90015554,ABBEY RAVENSCROFT PARK NURSING HOME,"2,571.43",24/08/2017
Delivery Units,Adults and Communities,Other Agencies - Third Party P,90015555,ABBEY RAVENSCROFT PARK NURSING HOME,"1,821.43",24/08/2017
Delivery Units,Adults and Communities,Other Agencies - Third Party P,30169247,ABBEY RAVENSCROFT PARK NURSING HOME,200.00,29/08/2017
Delivery Units,Adults and Communities,Other Agencies - Third Party P,30169248,ABBEY RAVENSCROFT PARK NURSING HOME,210.00,29/08/2017
Delivery Units,Adults and Communities,Other Agencies - Third Party P,30169249,ABBEY RAVENSCROFT PARK NURSING HOME,210.00,29/08/2017
Delivery Units,Adults and Communities,Other Agencies - Third Party P,30169250,ABBEY RAVENSCROFT PARK NURSING HOME,210.00,29/08/2017
Delivery Units,Adults and Communities,Other Agencies - Third Party P,30169251,ABBEY RAVENSCROFT PARK NURSING HOME,179.89,29/08/2017
Delivery Units,Adults and Communities,Other Agencies - Third Party P,30169252,ABBEY RAVENSCROFT PARK NURSING HOME,179.89,29/08/2017
Delivery Units,Adults and Communities,Other Agencies - Third Party P,30169253,ABBEY RAVENSCROFT PARK NURSING HOME,179.89,29/08/2017
Delivery Units,Adults and Communities,Other Agencies - Third Party P,30169254,ABBEY RAVENSCROFT PARK NURSING HOME,179.89,29/08/2017
Delivery Units,Adults and Communities,Other Agencies - Third Party P,30169256,ABBEY RAVENSCROFT PARK NURSING HOME,210.00,29/08/2017
Delivery Units,Adults and Communities,Other Agencies - Third Party P,30169258,ABBEY RAVENSCROFT PARK NURSING HOME,179.89,29/08/2017
Delivery Units,Adults and Communities,Other Agencies - Third Party P,30169259,ABBEY RAVENSCROFT PARK NURSING HOME,179.89,29/08/2017
Delivery Units,Adults and Communities,Other Agencies - Third Party P,30169261,ABBEY RAVENSCROFT PARK NURSING HOME,210.00,29/08/2017
Delivery Units,Adults and Communities,Other Agencies - Third Party P,30169262,ABBEY RAVENSCROFT PARK NURSING HOME,179.89,29/08/2017
Delivery Units,Adults and Communities,Other Agencies - Third Party P,30169265,ABBEY RAVENSCROFT PARK NURSING HOME,214.29,29/08/2017
Delivery Units,Adults and Communities,Other Agencies - Third Party P,30169266,ABBEY RAVENSCROFT PARK NURSING HOME,179.89,29/08/2017
Delivery Units,Adults and Communities,Other Agencies - Third Party P,30169267,ABBEY RAVENSCROFT PARK NURSING HOME,162.43,29/08/2017
Delivery Units,Adults and Communities,Other Agencies - Third Party P,90015621,ABBEY RAVENSCROFT PARK NURSING HOME,"2,273.96",29/08/2017
Delivery Units,Adults and Communities,Other Agencies - Third Party P,90015622,ABBEY RAVENSCROFT PARK NURSING HOME,"2,518.48",29/08/2017
Delivery Units,Adults and Communities,Other Agencies - Third Party P,90015623,ABBEY RAVENSCROFT PARK NURSING HOME,"3,000.00",29/08/2017
Delivery Units,Adults and Communities,Other Agencies - Third Party P,90015626,ABBEY RAVENSCROFT PARK NURSING HOME,"2,518.48",29/08/2017
Delivery Units,Adults and Communities,Other Agencies - Third Party P,90015627,ABBEY RAVENSCROFT PARK NURSING HOME,"2,940.00",29/08/2017
Delivery Units,Adults and Communities,Other Agencies - Third Party P,90015629,ABBEY RAVENSCROFT PARK NURSING HOME,"2,518.48",29/08/2017
Delivery Units,Adults and Communities,Other Agencies - Third Party P,90015630,ABBEY RAVENSCROFT PARK NURSING HOME,"2,518.48",29/08/2017
Delivery Units,Adults and Communities,Other Agencies - Third Party P,90015632,ABBEY RAVENSCROFT PARK NURSING HOME,"2,940.00",29/08/2017
Delivery Units,Adults and Communities,Other Agencies - Third Party P,90015634,ABBEY RAVENSCROFT PARK NURSING HOME,"2,518.48",29/08/2017
Delivery Units,Adults and Communities,Other Agencies - Third Party P,90015635,ABBEY RAVENSCROFT PARK NURSING HOME,"2,518.48",29/08/2017
Delivery Units,Adults and Communities,Other Agencies - Third Party P,90015636,ABBEY RAVENSCROFT PARK NURSING HOME,"2,518.48",29/08/2017
Delivery Units,Adults and Communities,Other Agencies - Third Party P,90015637,ABBEY RAVENSCROFT PARK NURSING HOME,"2,518.48",29/08/2017
Delivery Units,Adults and Communities,Other Agencies - Third Party P,90015638,ABBEY RAVENSCROFT PARK NURSING HOME,"2,940.00",29/08/2017
Delivery Units,Adults and Communities,Other Agencies - Third Party P,90015639,ABBEY RAVENSCROFT PARK NURSING HOME,"2,940.00",29/08/2017
Delivery Units,Adults and Communities,Other Agencies - Third Party P,90015640,ABBEY RAVENSCROFT PARK NURSING HOME,"2,800.00",29/08/2017
Delivery Units,Adults and Communities,Other Agencies - Third Party P,90015641,ABBEY RAVENSCROFT PARK NURSING HOME,"3,200.00",29/08/2017
Delivery Units,Adults and Communities,Other Agencies - Third Party P,90012159,CARLTON COURT (TLC GROUP),"3,142.92",07/08/2017
Delivery Units,Adults and Communities,Other Agencies - Third Party P,30168525,CARLTON COURT (TLC GROUP),"25,571.94",09/08/2017
Delivery Units,Adults and Communities,Other Agencies - Third Party P,90011890,ASHTON LODGE CARE CENTRE,"3,397.48",04/08/2017
Delivery Units,Adults and Communities,Other Agencies - Third Party P,90011914,ASHTON LODGE CARE CENTRE,"3,314.23",04/08/2017
Delivery Units,Adults and Communities,Other Agencies - Third Party P,90011915,ASHTON LODGE CARE CENTRE,"4,004.45",04/08/2017
Delivery Units,Adults and Communities,Other Agencies - Third Party P,90011916,ASHTON LODGE CARE CENTRE,"3,105.14",04/08/2017
Delivery Units,Adults and Communities,Other Agencies - Third Party P,90011918,ASHTON LODGE CARE CENTRE,"3,397.48",04/08/2017
Delivery Units,Adults and Communities,Other Agencies - Third Party P,90011919,ASHTON LODGE CARE CENTRE,"3,007.74",04/08/2017
Delivery Units,Adults and Communities,Other Agencies - Third Party P,90011921,ASHTON LODGE CARE CENTRE,"3,314.23",04/08/2017
Delivery Units,Adults and Communities,Other Agencies - Third Party P,90011922,ASHTON LODGE CARE CENTRE,"3,067.67",04/08/2017
Delivery Units,Adults and Communities,Other Agencies - Third Party P,90013232,WESTGATE HOUSE CARE CENTRE,"3,725.76",11/08/2017
Delivery Units,Adults and Communities,Other Agencies - Third Party P,90009531,ERSKINE HALL (BUPA),"3,498.57",02/08/2017
Delivery Units,Adults and Communities,Other Agencies - Third Party P,90015106,DR FRENCH MEMORIAL HOME LTD,"2,448.78",22/08/2017
Delivery Units,Adults and Communities,Other Agencies - Third Party P,90015107,DR FRENCH MEMORIAL HOME LTD,"3,321.43",22/08/2017
Delivery Units,Adults and Communities,Other Agencies - Third Party P,90012886,ROSEACRES CARE HOME LIMITED,"2,542.31",10/08/2017
Delivery Units,Adults and Communities,Other Agencies - Third Party P,90012889,ROSEACRES CARE HOME LIMITED,"2,335.36",10/08/2017
Delivery Units,Adults and Communities,Other Agencies - Third Party P,90012890,ROSEACRES CARE HOME LIMITED,"2,542.31",10/08/2017
Delivery Units,Adults and Communities,Other Agencies - Third Party P,90012891,ROSEACRES CARE HOME LIMITED,"2,542.31",10/08/2017
Delivery Units,Adults and Communities,Other Agencies - Third Party P,90012892,ROSEACRES CARE HOME LIMITED,"2,542.31",10/08/2017
Delivery Units,Adults and Communities,Other Agencies - Third Party P,90012894,ROSEACRES CARE HOME LIMITED,"2,892.13",10/08/2017
Delivery Units,Adults and Communities,Other Agencies - Third Party P,90012896,ROSEACRES CARE HOME LIMITED,"2,542.31",10/08/2017
Delivery Units,Adults and Communities,Other Agencies - Third Party P,90012898,ROSEACRES CARE HOME LIMITED,"2,448.78",10/08/2017
Delivery Units,Adults and Communities,Other Agencies - Third Party P,90012899,ROSEACRES CARE HOME LIMITED,"3,321.43",10/08/2017
Delivery Units,Adults and Communities,Other Agencies - Third Party P,90012905,ROSEACRES CARE HOME LIMITED,"2,542.31",10/08/2017
Delivery Units,Adults and Communities,Other Agencies - Third Party P,90015104,ROSEACRES CARE HOME LIMITED,"2,448.78",22/08/2017
Delivery Units,Adults and Communities,Other Agencies - Third Party P,90015105,ROSEACRES CARE HOME LIMITED,"2,460.30",22/08/2017
Delivery Units,Adults and Communities,Other Agencies - Third Party P,90012478,SEAFORTH LODGE,"2,657.14",08/08/2017
Delivery Units,Adults and Communities,Other Agencies - Third Party P,90012476,SEAFORTH LODGE,"2,657.14",10/08/2017
Delivery Units,Adults and Communities,Other Agencies - Third Party P,90012477,SEAFORTH LODGE,"2,571.43",10/08/2017
Delivery Units,Adults and Communities,Other Agencies - Third Party P,90013962,SEAFORTH LODGE,"2,448.78",16/08/2017
Delivery Units,Adults and Communities,Other Agencies - Third Party P,90013963,SEAFORTH LODGE,"2,448.78",16/08/2017
Delivery Units,Adults and Communities,Other Agencies - Third Party P,90013964,SEAFORTH LODGE,"2,448.78",16/08/2017
Delivery Units,Adults and Communities,Other Agencies - Third Party P,90013965,SEAFORTH LODGE,"2,448.78",16/08/2017
Delivery Units,Adults and Communities,Other Agencies - Third Party P,90013966,SEAFORTH LODGE,"2,448.78",16/08/2017
Delivery Units,Adults and Communities,Other Agencies - Third Party P,90013967,SEAFORTH LODGE,"2,448.78",16/08/2017
Delivery Units,Adults and Communities,Other Agencies - Third Party P,90011954,ELEANOR PALMER TRUST NO 2 A/C.,"2,546.74",04/08/2017
Delivery Units,Adults and Communities,Other Agencies - Third Party P,90011955,ELEANOR PALMER TRUST NO 2 A/C.,"2,546.74",04/08/2017
Delivery Units,Adults and Communities,Other Agencies - Third Party P,90011956,ELEANOR PALMER TRUST NO 2 A/C.,"2,339.44",04/08/2017
Delivery Units,Adults and Communities,Other Agencies - Third Party P,90011957,ELEANOR PALMER TRUST NO 2 A/C.,"2,339.44",04/08/2017
Delivery Units,Adults and Communities,Other Agencies - Third Party P,90011958,ELEANOR PALMER TRUST NO 2 A/C.,"2,546.74",04/08/2017
Delivery Units,Adults and Communities,Other Agencies - Third Party P,90011959,ELEANOR PALMER TRUST NO 2 A/C.,"2,546.74",04/08/2017
Delivery Units,Adults and Communities,Other Agencies - Third Party P,90011961,ELEANOR PALMER TRUST NO 2 A/C.,"2,339.44",04/08/2017
Delivery Units,Adults and Communities,Other Agencies - Third Party P,90011962,ELEANOR PALMER TRUST NO 2 A/C.,"2,546.74",04/08/2017
Delivery Units,Adults and Communities,Other Agencies - Third Party P,90011964,ELEANOR PALMER TRUST NO 2 A/C.,"2,339.44",04/08/2017
Delivery Units,Adults and Communities,Other Agencies - Third Party P,90011965,ELEANOR PALMER TRUST NO 2 A/C.,"2,546.74",04/08/2017
Delivery Units,Adults and Communities,Other Agencies - Third Party P,90011968,ELEANOR PALMER TRUST NO 2 A/C.,"2,464.59",04/08/2017
Delivery Units,Adults and Communities,Other Agencies - Third Party P,90011969,ELEANOR PALMER TRUST NO 2 A/C.,"2,464.59",04/08/2017
Delivery Units,Adults and Communities,Other Agencies - Third Party P,90011970,ELEANOR PALMER TRUST NO 2 A/C.,"2,263.97",04/08/2017
Delivery Units,Adults and Communities,Other Agencies - Third Party P,90011971,ELEANOR PALMER TRUST NO 2 A/C.,"2,263.97",04/08/2017
Delivery Units,Adults and Communities,Other Agencies - Third Party P,90011972,ELEANOR PALMER TRUST NO 2 A/C.,"2,464.59",04/08/2017
Delivery Units,Adults and Communities,Other Agencies - Third Party P,90011973,ELEANOR PALMER TRUST NO 2 A/C.,"2,464.59",04/08/2017
Delivery Units,Adults and Communities,Other Agencies - Third Party P,90011975,ELEANOR PALMER TRUST NO 2 A/C.,"2,464.59",04/08/2017
Delivery Units,Adults and Communities,Other Agencies - Third Party P,90011976,ELEANOR PALMER TRUST NO 2 A/C.,"2,263.97",04/08/2017
Delivery Units,Adults and Communities,Other Agencies - Third Party P,90011977,ELEANOR PALMER TRUST NO 2 A/C.,"2,464.59",04/08/2017
Delivery Units,Adults and Communities,Other Agencies - Third Party P,90011979,ELEANOR PALMER TRUST NO 2 A/C.,"2,263.97",04/08/2017
Delivery Units,Adults and Communities,Other Agencies - Third Party P,90011980,ELEANOR PALMER TRUST NO 2 A/C.,"2,464.59",04/08/2017
Delivery Units,Adults and Communities,Other Agencies - Third Party P,90011981,ELEANOR PALMER TRUST NO 2 A/C.,(246.46),04/08/2017
Delivery Units,Adults and Communities,Other Agencies - Third Party P,90015083,ELEANOR PALMER TRUST NO 2 A/C.,"2,546.74",22/08/2017
Delivery Units,Adults and Communities,Other Agencies - Third Party P,90015084,ELEANOR PALMER TRUST NO 2 A/C.,"2,546.74",22/08/2017
Delivery Units,Adults and Communities,Other Agencies - Third Party P,90015085,ELEANOR PALMER TRUST NO 2 A/C.,"2,339.44",22/08/2017
Delivery Units,Adults and Communities,Other Agencies - Third Party P,90015086,ELEANOR PALMER TRUST NO 2 A/C.,"2,339.44",22/08/2017
Delivery Units,Adults and Communities,Other Agencies - Third Party P,90015087,ELEANOR PALMER TRUST NO 2 A/C.,"2,546.74",22/08/2017
Delivery Units,Adults and Communities,Other Agencies - Third Party P,90015088,ELEANOR PALMER TRUST NO 2 A/C.,"2,546.74",22/08/2017
Delivery Units,Adults and Communities,Other Agencies - Third Party P,90015090,ELEANOR PALMER TRUST NO 2 A/C.,"2,339.44",22/08/2017
Delivery Units,Adults and Communities,Other Agencies - Third Party P,90015091,ELEANOR PALMER TRUST NO 2 A/C.,"2,546.74",22/08/2017
Delivery Units,Adults and Communities,Other Agencies - Third Party P,90015093,ELEANOR PALMER TRUST NO 2 A/C.,"2,339.44",22/08/2017
Delivery Units,Adults and Communities,Other Agencies - Third Party P,90015095,ELEANOR PALMER TRUST NO 2 A/C.,"2,546.74",22/08/2017
Delivery Units,Adults and Communities,Other Agencies - Third Party P,90011892,ELM PARK LODGE,"3,170.86",09/08/2017
Delivery Units,Adults and Communities,Other Agencies - Third Party P,90013665,TORRINGTON HOMES,"2,448.78",15/08/2017
Delivery Units,Adults and Communities,Other Agencies - Third Party P,90013946,TORRINGTON HOMES,"2,448.78",16/08/2017
Delivery Units,Adults and Communities,Other Agencies - Third Party P,90015116,TORRINGTON HOMES,"2,249.45",22/08/2017
Delivery Units,Adults and Communities,Other Agencies - Third Party P,90011713,THE GRANGE,"2,211.80",02/08/2017
Delivery Units,Adults and Communities,Other Agencies - Third Party P,90011717,THE GRANGE,"2,400.00",02/08/2017
Delivery Units,Adults and Communities,Other Agencies - Third Party P,90013938,THE GRANGE,"2,300.28",16/08/2017
Delivery Units,Adults and Communities,Other Agencies - Third Party P,90013942,THE GRANGE,"2,496.00",16/08/2017
Delivery Units,Adults and Communities,Other Agencies - Third Party P,90011712,JEWISH CARE,"8,626.06",02/08/2017
Delivery Units,Adults and Communities,Other Agencies - Third Party P,30168510,JEWISH CARE,"3,815.37",09/08/2017
Delivery Units,Adults and Communities,Other Agencies - Third Party P,90012958,JEWISH CARE,"2,322.40",11/08/2017
Delivery Units,Adults and Communities,Other Agencies - Third Party P,90012959,JEWISH CARE,"2,322.40",11/08/2017
Delivery Units,Adults and Communities,Other Agencies - Third Party P,90012960,JEWISH CARE,"2,322.40",11/08/2017
Delivery Units,Adults and Communities,Other Agencies - Third Party P,90012963,JEWISH CARE,228.57,11/08/2017
Delivery Units,Adults and Communities,Other Agencies - Third Party P,90012964,JEWISH CARE,"1,447.64",11/08/2017
Delivery Units,Adults and Communities,Other Agencies - Third Party P,90012968,JEWISH CARE,"2,209.55",11/08/2017
Delivery Units,Adults and Communities,Other Agencies - Third Party P,90012970,JEWISH CARE,990.49,11/08/2017
Delivery Units,Adults and Communities,Other Agencies - Third Party P,90012971,JEWISH CARE,"1,658.86",11/08/2017
Delivery Units,Adults and Communities,Other Agencies - Third Party P,90012973,JEWISH CARE,"2,322.40",11/08/2017
Delivery Units,Adults and Communities,Other Agencies - Third Party P,90012974,JEWISH CARE,(58.06),11/08/2017
Delivery Units,Adults and Communities,Other Agencies - Third Party P,30168556,JEWISH CARE,609.53,14/08/2017
Delivery Units,Adults and Communities,Other Agencies - Third Party P,80011474,CLOVELLY HOUSE RESID. HOME LTD,"2,780.00",01/08/2017
Delivery Units,Adults and Communities,Other Agencies - Third Party P,90012461,CATHERINE LODGE,"2,211.80",10/08/2017
Delivery Units,Adults and Communities,Other Agencies - Third Party P,90012463,CATHERINE LODGE,"2,211.80",10/08/2017
Delivery Units,Adults and Communities,Other Agencies - Third Party P,90012464,CATHERINE LODGE,"2,211.80",10/08/2017
Delivery Units,Adults and Communities,Other Agencies - Third Party P,90012465,CATHERINE LODGE,"2,211.80",10/08/2017
Delivery Units,Adults and Communities,Other Agencies - Third Party P,90012466,CATHERINE LODGE,"2,920.00",10/08/2017
Delivery Units,Adults and Communities,Other Agencies - Third Party P,90014451,CATHERINE LODGE,"2,211.80",21/08/2017
Delivery Units,Adults and Communities,Other Agencies - Third Party P,90014452,CATHERINE LODGE,"2,211.80",21/08/2017
Delivery Units,Adults and Communities,Other Agencies - Third Party P,90014453,CATHERINE LODGE,"2,211.80",21/08/2017
Delivery Units,Adults and Communities,Other Agencies - Third Party P,90014454,CATHERINE LODGE,"2,920.00",21/08/2017
Delivery Units,Adults and Communities,Other Agencies - Third Party P,90014455,CATHERINE LODGE,"2,211.80",21/08/2017
Delivery Units,Adults and Communities,Other Agencies - Third Party P,90015166,BUPA NURSING HOMES LTD - ARKLEY,"2,089.68",24/08/2017
Delivery Units,Adults and Communities,Other Agencies - Third Party P,90015584,SUNRIDGE HOUSING ASSOCIATION LTD,"2,902.40",29/08/2017
Delivery Units,Adults and Communities,Other Agencies - Third Party P,90015585,SUNRIDGE HOUSING ASSOCIATION LTD,"2,989.58",29/08/2017
Delivery Units,Adults and Communities,Other Agencies - Third Party P,30168199,NAZARETH HOUSE,507.94,03/08/2017
Delivery Units,Adults and Communities,Other Agencies - Third Party P,30168200,NAZARETH HOUSE,662.60,03/08/2017
Delivery Units,Adults and Communities,Other Agencies - Third Party P,30168201,NAZARETH HOUSE,507.94,03/08/2017
Delivery Units,Adults and Communities,Other Agencies - Third Party P,30168202,NAZARETH HOUSE,507.94,03/08/2017
Delivery Units,Adults and Communities,Other Agencies - Third Party P,30168203,NAZARETH HOUSE,759.00,03/08/2017
Delivery Units,Adults and Communities,Other Agencies - Third Party P,30168204,NAZARETH HOUSE,507.94,03/08/2017
Delivery Units,Adults and Communities,Other Agencies - Third Party P,30168205,NAZARETH HOUSE,507.94,03/08/2017
Delivery Units,Adults and Communities,Other Agencies - Third Party P,30168206,NAZARETH HOUSE,507.94,03/08/2017
Delivery Units,Adults and Communities,Other Agencies - Third Party P,30168207,NAZARETH HOUSE,552.95,03/08/2017
Delivery Units,Adults and Communities,Other Agencies - Third Party P,30168208,NAZARETH HOUSE,507.94,03/08/2017
Delivery Units,Adults and Communities,Other Agencies - Third Party P,30168210,NAZARETH HOUSE,507.94,03/08/2017
Delivery Units,Adults and Communities,Other Agencies - Third Party P,30168211,NAZARETH HOUSE,552.95,03/08/2017
Delivery Units,Adults and Communities,Other Agencies - Third Party P,30168212,NAZARETH HOUSE,507.94,03/08/2017
Delivery Units,Adults and Communities,Other Agencies - Third Party P,30168213,NAZARETH HOUSE,507.94,03/08/2017
Delivery Units,Adults and Communities,Other Agencies - Third Party P,30168214,NAZARETH HOUSE,507.94,03/08/2017
Delivery Units,Adults and Communities,Other Agencies - Third Party P,30168215,NAZARETH HOUSE,552.95,03/08/2017
Delivery Units,Adults and Communities,Other Agencies - Third Party P,30168216,NAZARETH HOUSE,507.94,03/08/2017
Delivery Units,Adults and Communities,Other Agencies - Third Party P,30168217,NAZARETH HOUSE,507.94,03/08/2017
Delivery Units,Adults and Communities,Other Agencies - Third Party P,30168218,NAZARETH HOUSE,507.94,03/08/2017
Delivery Units,Adults and Communities,Other Agencies - Third Party P,90011310,NAZARETH HOUSE,"1,523.82",03/08/2017
Delivery Units,Adults and Communities,Other Agencies - Third Party P,90011311,NAZARETH HOUSE,"1,523.82",03/08/2017
Delivery Units,Adults and Communities,Other Agencies - Third Party P,90011312,NAZARETH HOUSE,"1,523.82",03/08/2017
Delivery Units,Adults and Communities,Other Agencies - Third Party P,90011313,NAZARETH HOUSE,"1,523.82",03/08/2017
Delivery Units,Adults and Communities,Other Agencies - Third Party P,90011314,NAZARETH HOUSE,"1,523.82",03/08/2017
Delivery Units,Adults and Communities,Other Agencies - Third Party P,90011315,NAZARETH HOUSE,"1,523.82",03/08/2017
Delivery Units,Adults and Communities,Other Agencies - Third Party P,90011317,NAZARETH HOUSE,"1,523.82",03/08/2017
Delivery Units,Adults and Communities,Other Agencies - Third Party P,90011318,NAZARETH HOUSE,"1,523.82",03/08/2017
Delivery Units,Adults and Communities,Other Agencies - Third Party P,90011319,NAZARETH HOUSE,"1,523.82",03/08/2017
Delivery Units,Adults and Communities,Other Agencies - Third Party P,90011320,NAZARETH HOUSE,"1,523.82",03/08/2017
Delivery Units,Adults and Communities,Other Agencies - Third Party P,90011321,NAZARETH HOUSE,"1,523.82",03/08/2017
Delivery Units,Adults and Communities,Other Agencies - Third Party P,90011322,NAZARETH HOUSE,"1,523.82",03/08/2017
Delivery Units,Adults and Communities,Other Agencies - Third Party P,90011323,NAZARETH HOUSE,"1,658.85",03/08/2017
Delivery Units,Adults and Communities,Other Agencies - Third Party P,90011324,NAZARETH HOUSE,"1,658.85",03/08/2017
Delivery Units,Adults and Communities,Other Agencies - Third Party P,90011325,NAZARETH HOUSE,"1,987.80",03/08/2017
Delivery Units,Adults and Communities,Other Agencies - Third Party P,90011326,NAZARETH HOUSE,"2,277.00",03/08/2017
Delivery Units,Adults and Communities,Other Agencies - Third Party P,90011328,NAZARETH HOUSE,"1,523.82",03/08/2017
Delivery Units,Adults and Communities,Other Agencies - Third Party P,30168513,NAZARETH HOUSE,"2,031.76",09/08/2017
Delivery Units,Adults and Communities,Other Agencies - Third Party P,30168514,NAZARETH HOUSE,"1,451.26",09/08/2017
Delivery Units,Adults and Communities,Other Agencies - Third Party P,30168515,NAZARETH HOUSE,145.13,09/08/2017
Delivery Units,Adults and Communities,Other Agencies - Third Party P,90013873,NAZARETH HOUSE,"2,031.76",16/08/2017
Delivery Units,Adults and Communities,Other Agencies - Third Party P,90013874,NAZARETH HOUSE,"3,036.00",16/08/2017
Delivery Units,Adults and Communities,Other Agencies - Third Party P,90013875,NAZARETH HOUSE,"2,031.76",16/08/2017
Delivery Units,Adults and Communities,Other Agencies - Third Party P,90013876,NAZARETH HOUSE,"2,031.76",16/08/2017
Delivery Units,Adults and Communities,Other Agencies - Third Party P,90013877,NAZARETH HOUSE,"2,031.76",16/08/2017
Delivery Units,Adults and Communities,Other Agencies - Third Party P,90013878,NAZARETH HOUSE,"2,031.76",16/08/2017
Delivery Units,Adults and Communities,Other Agencies - Third Party P,90013880,NAZARETH HOUSE,"2,650.40",16/08/2017
Delivery Units,Adults and Communities,Other Agencies - Third Party P,90013881,NAZARETH HOUSE,"2,211.80",16/08/2017
Delivery Units,Adults and Communities,Other Agencies - Third Party P,90013882,NAZARETH HOUSE,"2,031.76",16/08/2017
Delivery Units,Adults and Communities,Other Agencies - Third Party P,90013883,NAZARETH HOUSE,"2,031.76",16/08/2017
Delivery Units,Adults and Communities,Other Agencies - Third Party P,90013884,NAZARETH HOUSE,"2,031.76",16/08/2017
Delivery Units,Adults and Communities,Other Agencies - Third Party P,90013885,NAZARETH HOUSE,"2,211.80",16/08/2017
Delivery Units,Adults and Communities,Other Agencies - Third Party P,90013886,NAZARETH HOUSE,"2,031.76",16/08/2017
Delivery Units,Adults and Communities,Other Agencies - Third Party P,90013887,NAZARETH HOUSE,"2,031.76",16/08/2017
Delivery Units,Adults and Communities,Other Agencies - Third Party P,90013888,NAZARETH HOUSE,"2,031.76",16/08/2017
Delivery Units,Adults and Communities,Other Agencies - Third Party P,90013889,NAZARETH HOUSE,"(1,451.26)",16/08/2017
Delivery Units,Adults and Communities,Other Agencies - Third Party P,90013891,NAZARETH HOUSE,"2,031.76",16/08/2017
Delivery Units,Adults and Communities,Other Agencies - Third Party P,90013898,NAZARETH HOUSE,"9,650.86",16/08/2017
Delivery Units,Adults and Communities,Other Agencies - Third Party P,90015413,NAZARETH HOUSE,"7,619.10",22/08/2017
Delivery Units,Adults and Communities,Other Agencies - Third Party P,90011561,THE KINGSDOWNE SOCIETY,"2,249.44",01/08/2017
Delivery Units,Adults and Communities,Other Agencies - Third Party P,90012934,THE KINGSDOWNE SOCIETY,"2,318.99",10/08/2017
Delivery Units,Adults and Communities,Other Agencies - Third Party P,90012939,THE KINGSDOWNE SOCIETY,943.31,10/08/2017
Delivery Units,Adults and Communities,Other Agencies - Third Party P,90013910,THE WOODSIDE HOME,"2,543.60",16/08/2017
Delivery Units,Adults and Communities,Other Agencies - Third Party P,90013911,THE WOODSIDE HOME,"2,336.56",16/08/2017
Delivery Units,Adults and Communities,Other Agencies - Third Party P,90013912,THE WOODSIDE HOME,"2,336.56",16/08/2017
Delivery Units,Adults and Communities,Other Agencies - Third Party P,90013914,THE WOODSIDE HOME,"2,336.56",16/08/2017
Delivery Units,Adults and Communities,Other Agencies - Third Party P,90013915,THE WOODSIDE HOME,"2,543.60",16/08/2017
Delivery Units,Adults and Communities,Other Agencies - Third Party P,90013916,THE WOODSIDE HOME,"2,336.56",16/08/2017
Delivery Units,Adults and Communities,Other Agencies - Third Party P,90015096,THE WOODSIDE HOME,"1,886.63",22/08/2017
Delivery Units,Adults and Communities,Other Agencies - Third Party P,90015097,THE WOODSIDE HOME,"1,161.00",22/08/2017
Delivery Units,Adults and Communities,Other Agencies - Third Party P,30168719,THE WOODSIDE HOME,217.69,23/08/2017
Delivery Units,Adults and Communities,Other Agencies - Third Party P,30168721,THE WOODSIDE HOME,"2,104.24",23/08/2017
Delivery Units,Adults and Communities,Other Agencies - Third Party P,90015614,THE WOODSIDE HOME,"2,336.56",29/08/2017
Delivery Units,Adults and Communities,Other Agencies - Third Party P,90013234,METHODIST HOMES FOR THE AGED,"2,631.76",14/08/2017
Delivery Units,Adults and Communities,Other Agencies - Third Party P,90013909,METHODIST HOMES FOR THE AGED,"2,001.92",16/08/2017
Delivery Units,Adults and Communities,Other Agencies - Third Party P,90013927,SYDMAR LODGE,"2,327.21",16/08/2017
Delivery Units,Adults and Communities,Other Agencies - Third Party P,90013928,SYDMAR LODGE,"2,790.00",16/08/2017
Delivery Units,Adults and Communities,Other Agencies - Third Party P,90013929,SYDMAR LODGE,"2,361.93",16/08/2017
Delivery Units,Adults and Communities,Other Agencies - Third Party P,90013930,SYDMAR LODGE,"2,361.93",16/08/2017
Delivery Units,Adults and Communities,Other Agencies - Third Party P,90013931,SYDMAR LODGE,"2,571.23",16/08/2017
Delivery Units,Adults and Communities,Other Agencies - Third Party P,90013932,SYDMAR LODGE,"2,361.93",16/08/2017
Delivery Units,Adults and Communities,Other Agencies - Third Party P,90013933,SYDMAR LODGE,"2,361.93",16/08/2017
Delivery Units,Adults and Communities,Other Agencies - Third Party P,90013934,SYDMAR LODGE,"3,022.50",16/08/2017
Delivery Units,Adults and Communities,Other Agencies - Third Party P,90012470,THE LIMES RESIDENTIAL HOME,835.71,08/08/2017
Delivery Units,Adults and Communities,Other Agencies - Third Party P,90012471,THE LIMES RESIDENTIAL HOME,"2,878.57",08/08/2017
Delivery Units,Adults and Communities,Other Agencies - Third Party P,90012472,THE LIMES RESIDENTIAL HOME,"1,105.90",08/08/2017
Delivery Units,Adults and Communities,Other Agencies - Third Party P,90012473,THE LIMES RESIDENTIAL HOME,"2,448.78",08/08/2017
Delivery Units,Adults and Communities,Other Agencies - Third Party P,90015117,THE LIMES RESIDENTIAL HOME,"2,448.78",23/08/2017
Delivery Units,Adults and Communities,Other Agencies - Third Party P,90015119,THE LIMES RESIDENTIAL HOME,"2,249.45",23/08/2017
Delivery Units,Adults and Communities,Other Agencies - Third Party P,90015120,THE LIMES RESIDENTIAL HOME,"2,448.78",23/08/2017
Delivery Units,Adults and Communities,Other Agencies - Third Party P,90015121,THE LIMES RESIDENTIAL HOME,"2,249.45",23/08/2017
Delivery Units,Adults and Communities,Other Agencies - Third Party P,90015122,THE LIMES RESIDENTIAL HOME,"2,448.78",23/08/2017
Delivery Units,Adults and Communities,Other Agencies - Third Party P,90015123,THE LIMES RESIDENTIAL HOME,"2,448.78",23/08/2017
Delivery Units,Adults and Communities,Other Agencies - Third Party P,90015124,THE LIMES RESIDENTIAL HOME,"2,249.45",23/08/2017
Delivery Units,Adults and Communities,Other Agencies - Third Party P,90015126,THE LIMES RESIDENTIAL HOME,"2,249.45",23/08/2017
Delivery Units,Adults and Communities,Other Agencies - Third Party P,90015127,THE LIMES RESIDENTIAL HOME,"2,448.78",23/08/2017
Delivery Units,Adults and Communities,Other Agencies - Third Party P,90015128,THE LIMES RESIDENTIAL HOME,"2,448.78",23/08/2017
Delivery Units,Adults and Communities,Other Agencies - Third Party P,90013385,SPRINGDENE,"3,321.43",15/08/2017
Delivery Units,Adults and Communities,Other Agencies - Third Party P,90012157,SCIMITAR CARE HOTELS PLC,"3,976.86",07/08/2017
Delivery Units,Adults and Communities,Other Agencies - Third Party P,90012158,SCIMITAR CARE HOTELS PLC,"3,321.43",07/08/2017
Delivery Units,Adults and Communities,Other Agencies - Third Party P,90014416,FREMANTLE TRUST,"2,660.03",18/08/2017
Delivery Units,Adults and Communities,Other Agencies - Third Party P,90014417,FREMANTLE TRUST,"2,660.03",18/08/2017
Delivery Units,Adults and Communities,Other Agencies - Third Party P,90014420,FREMANTLE TRUST,"2,653.72",18/08/2017
Delivery Units,Adults and Communities,Other Agencies - Third Party P,90014421,FREMANTLE TRUST,"2,653.72",18/08/2017
Delivery Units,Adults and Communities,Other Agencies - Third Party P,90014422,FREMANTLE TRUST,"2,660.03",18/08/2017
Delivery Units,Adults and Communities,Other Agencies - Third Party P,90014424,FREMANTLE TRUST,"2,660.03",18/08/2017
Delivery Units,Adults and Communities,Other Agencies - Third Party P,90014426,FREMANTLE TRUST,"2,653.72",18/08/2017
Delivery Units,Adults and Communities,Other Agencies - Third Party P,90014427,FREMANTLE TRUST,"2,653.72",18/08/2017
Delivery Units,Adults and Communities,Other Agencies - Third Party P,90014428,FREMANTLE TRUST,"2,653.72",18/08/2017
Delivery Units,Adults and Communities,Other Agencies - Third Party P,90014429,FREMANTLE TRUST,"2,660.03",18/08/2017
Delivery Units,Adults and Communities,Other Agencies - Third Party P,90014430,FREMANTLE TRUST,"2,660.03",18/08/2017
Delivery Units,Adults and Communities,Other Agencies - Third Party P,90014431,FREMANTLE TRUST,"2,653.72",18/08/2017
Delivery Units,Adults and Communities,Other Agencies - Third Party P,90014432,FREMANTLE TRUST,"2,660.03",18/08/2017
Delivery Units,Adults and Communities,Other Agencies - Third Party P,90014433,FREMANTLE TRUST,"2,660.03",18/08/2017
Delivery Units,Adults and Communities,Other Agencies - Third Party P,90014434,FREMANTLE TRUST,"2,660.03",18/08/2017
Delivery Units,Adults and Communities,Other Agencies - Third Party P,90014435,FREMANTLE TRUST,"2,660.03",18/08/2017
Delivery Units,Adults and Communities,Other Agencies - Third Party P,90014440,FREMANTLE TRUST,"2,653.72",18/08/2017
Delivery Units,Adults and Communities,Other Agencies - Third Party P,90014441,FREMANTLE TRUST,"2,653.72",18/08/2017
Delivery Units,Adults and Communities,Other Agencies - Third Party P,90014442,FREMANTLE TRUST,"2,653.72",18/08/2017
Delivery Units,Adults and Communities,Other Agencies - Third Party P,90014443,FREMANTLE TRUST,"2,653.72",18/08/2017
Delivery Units,Adults and Communities,Other Agencies - Third Party P,90014444,FREMANTLE TRUST,"2,660.03",18/08/2017
Delivery Units,Adults and Communities,Other Agencies - Third Party P,90014445,FREMANTLE TRUST,"2,653.72",18/08/2017
Delivery Units,Adults and Communities,Other Agencies - Third Party P,90014446,FREMANTLE TRUST,"2,653.72",18/08/2017
Delivery Units,Adults and Communities,Other Agencies - Third Party P,90014447,FREMANTLE TRUST,"2,653.72",18/08/2017
Delivery Units,Adults and Communities,Other Agencies - Third Party P,90014448,FREMANTLE TRUST,325.58,18/08/2017
Delivery Units,Adults and Communities,Other Agencies - Third Party P,90014456,FREMANTLE TRUST,"2,653.72",21/08/2017
Delivery Units,Adults and Communities,Other Agencies - Third Party P,90014458,FREMANTLE TRUST,"2,653.72",21/08/2017
Delivery Units,Adults and Communities,Other Agencies - Third Party P,90014460,FREMANTLE TRUST,"2,653.72",21/08/2017
Delivery Units,Adults and Communities,Other Agencies - Third Party P,90014461,FREMANTLE TRUST,"2,653.72",21/08/2017
Delivery Units,Adults and Communities,Other Agencies - Third Party P,90014463,FREMANTLE TRUST,"2,653.72",21/08/2017
Delivery Units,Adults and Communities,Other Agencies - Third Party P,90014465,FREMANTLE TRUST,"2,653.72",21/08/2017
Delivery Units,Adults and Communities,Other Agencies - Third Party P,90014467,FREMANTLE TRUST,"2,653.72",21/08/2017
Delivery Units,Adults and Communities,Other Agencies - Third Party P,90014468,FREMANTLE TRUST,"2,653.72",21/08/2017
Delivery Units,Adults and Communities,Other Agencies - Third Party P,90014469,FREMANTLE TRUST,34.01,21/08/2017
Delivery Units,Adults and Communities,Other Agencies - Third Party P,90014470,FREMANTLE TRUST,"2,660.03",21/08/2017
Delivery Units,Adults and Communities,Other Agencies - Third Party P,90014471,FREMANTLE TRUST,"2,653.72",21/08/2017
Delivery Units,Adults and Communities,Other Agencies - Third Party P,90014472,FREMANTLE TRUST,"2,660.03",21/08/2017
Delivery Units,Adults and Communities,Other Agencies - Third Party P,90014473,FREMANTLE TRUST,"2,653.72",21/08/2017
Delivery Units,Adults and Communities,Other Agencies - Third Party P,90014474,FREMANTLE TRUST,"2,660.03",21/08/2017
Delivery Units,Adults and Communities,Other Agencies - Third Party P,90014475,FREMANTLE TRUST,"2,660.03",21/08/2017
Delivery Units,Adults and Communities,Other Agencies - Third Party P,90014476,FREMANTLE TRUST,"2,660.03",21/08/2017
Delivery Units,Adults and Communities,Other Agencies - Third Party P,90014479,FREMANTLE TRUST,"2,660.03",21/08/2017
Delivery Units,Adults and Communities,Other Agencies - Third Party P,90014480,FREMANTLE TRUST,"2,653.72",21/08/2017
Delivery Units,Adults and Communities,Other Agencies - Third Party P,90014481,FREMANTLE TRUST,"2,653.72",21/08/2017
Delivery Units,Adults and Communities,Other Agencies - Third Party P,90014482,FREMANTLE TRUST,"2,591.25",21/08/2017
Delivery Units,Adults and Communities,Other Agencies - Third Party P,90014483,FREMANTLE TRUST,"2,653.72",21/08/2017
Delivery Units,Adults and Communities,Other Agencies - Third Party P,90014485,FREMANTLE TRUST,"2,660.03",21/08/2017
Delivery Units,Adults and Communities,Other Agencies - Third Party P,90014487,FREMANTLE TRUST,229.28,21/08/2017
Delivery Units,Adults and Communities,Other Agencies - Third Party P,90014488,FREMANTLE TRUST,"2,653.72",21/08/2017
Delivery Units,Adults and Communities,Other Agencies - Third Party P,90014489,FREMANTLE TRUST,"2,660.03",21/08/2017
Delivery Units,Adults and Communities,Other Agencies - Third Party P,90014491,FREMANTLE TRUST,"2,653.72",21/08/2017
Delivery Units,Adults and Communities,Other Agencies - Third Party P,90014494,FREMANTLE TRUST,"2,653.72",21/08/2017
Delivery Units,Adults and Communities,Other Agencies - Third Party P,90014495,FREMANTLE TRUST,"2,660.03",21/08/2017
Delivery Units,Adults and Communities,Other Agencies - Third Party P,90014496,FREMANTLE TRUST,"2,660.03",21/08/2017
Delivery Units,Adults and Communities,Other Agencies - Third Party P,90014498,FREMANTLE TRUST,"2,660.03",21/08/2017
Delivery Units,Adults and Communities,Other Agencies - Third Party P,90014499,FREMANTLE TRUST,"2,653.72",21/08/2017
Delivery Units,Adults and Communities,Other Agencies - Third Party P,90014500,FREMANTLE TRUST,"2,660.03",21/08/2017
Delivery Units,Adults and Communities,Other Agencies - Third Party P,90014502,FREMANTLE TRUST,"2,660.03",21/08/2017
Delivery Units,Adults and Communities,Other Agencies - Third Party P,90014503,FREMANTLE TRUST,"2,660.03",21/08/2017
Delivery Units,Adults and Communities,Other Agencies - Third Party P,90014504,FREMANTLE TRUST,"2,660.03",21/08/2017
Delivery Units,Adults and Communities,Other Agencies - Third Party P,90014505,FREMANTLE TRUST,"2,653.72",21/08/2017
Delivery Units,Adults and Communities,Other Agencies - Third Party P,90014507,FREMANTLE TRUST,"2,653.72",21/08/2017
Delivery Units,Adults and Communities,Other Agencies - Third Party P,90014508,FREMANTLE TRUST,"2,660.03",21/08/2017
Delivery Units,Adults and Communities,Other Agencies - Third Party P,90014509,FREMANTLE TRUST,"2,660.03",21/08/2017
Delivery Units,Adults and Communities,Other Agencies - Third Party P,90014510,FREMANTLE TRUST,"2,653.72",21/08/2017
Delivery Units,Adults and Communities,Other Agencies - Third Party P,90014511,FREMANTLE TRUST,"2,660.03",21/08/2017
Delivery Units,Adults and Communities,Other Agencies - Third Party P,90014512,FREMANTLE TRUST,"2,660.03",21/08/2017
Delivery Units,Adults and Communities,Other Agencies - Third Party P,90014515,FREMANTLE TRUST,"2,660.03",21/08/2017
Delivery Units,Adults and Communities,Other Agencies - Third Party P,90014516,FREMANTLE TRUST,"2,660.03",21/08/2017
Delivery Units,Adults and Communities,Other Agencies - Third Party P,90014517,FREMANTLE TRUST,270.56,21/08/2017
Delivery Units,Adults and Communities,Other Agencies - Third Party P,90011929,BUPA CARE HOMES,"2,090.29",04/08/2017
Delivery Units,Adults and Communities,Other Agencies - Third Party P,90011930,BUPA CARE HOMES,"2,211.80",04/08/2017
Delivery Units,Adults and Communities,Other Agencies - Third Party P,30168436,BUPA CARE HOMES,157.99,07/08/2017
Delivery Units,Adults and Communities,Other Agencies - Third Party P,30168437,BUPA CARE HOMES,149.30,07/08/2017
Delivery Units,Adults and Communities,Other Agencies - Third Party P,90011935,BUPA CARE HOMES,"2,314.24",10/08/2017
Delivery Units,Adults and Communities,Other Agencies - Third Party P,90011936,BUPA CARE HOMES,"2,448.78",10/08/2017
Delivery Units,Adults and Communities,Other Agencies - Third Party P,90013892,ANASTASIA LODGE,"3,000.00",16/08/2017
Delivery Units,Adults and Communities,Other Agencies - Third Party P,90013897,ANASTASIA LODGE,"2,800.00",16/08/2017
Delivery Units,Adults and Communities,Other Agencies - Third Party P,90011579,HILTON LODGE LTD.,"3,000.00",01/08/2017
Delivery Units,Adults and Communities,Other Agencies - Third Party P,90013924,HILTON LODGE LTD.,"2,480.00",16/08/2017
Delivery Units,Adults and Communities,Other Agencies - Third Party P,90011633,FOUR SEASONS HEALTH CARE,"1,786.23",02/08/2017
Delivery Units,Adults and Communities,Other Agencies - Third Party P,90012909,FOUR SEASONS HEALTH CARE,"2,291.36",10/08/2017
Delivery Units,Adults and Communities,Other Agencies - Third Party P,90015574,VENTRY RESIDENTIAL CARE LTD,"2,211.80",29/08/2017
Delivery Units,Adults and Communities,Other Agencies - Third Party P,90015145,LEWIS.W.HAMMERSON MEMORIAL HOME,"2,310.34",22/08/2017
Delivery Units,Adults and Communities,Other Agencies - Third Party P,90015146,LEWIS.W.HAMMERSON MEMORIAL HOME,"2,310.34",22/08/2017
Delivery Units,Adults and Communities,Other Agencies - Third Party P,90015148,LEWIS.W.HAMMERSON MEMORIAL HOME,"2,387.35",22/08/2017
Delivery Units,Adults and Communities,Other Agencies - Third Party P,90015150,LEWIS.W.HAMMERSON MEMORIAL HOME,"2,387.35",22/08/2017
Delivery Units,Adults and Communities,Other Agencies - Third Party P,90015153,LEWIS.W.HAMMERSON MEMORIAL HOME,"2,387.35",22/08/2017
Delivery Units,Adults and Communities,Other Agencies - Third Party P,90015155,LEWIS.W.HAMMERSON MEMORIAL HOME,136.81,22/08/2017
Delivery Units,Adults and Communities,Other Agencies - Third Party P,90011926,BUPA CARE HOMES,"3,007.40",14/08/2017
Delivery Units,Adults and Communities,Other Agencies - Third Party P,90013904,BUPA CARE HOMES,"2,518.48",16/08/2017
Delivery Units,Adults and Communities,Other Agencies - Third Party P,90013919,HALLMARK CARE (KINGS LYNN) LTD,"2,890.31",16/08/2017
Delivery Units,Adults and Communities,Other Agencies - Third Party P,90012452,SAGE NURSING HOME,"2,249.45",09/08/2017
Delivery Units,Adults and Communities,Other Agencies - Third Party P,90012455,SAGE NURSING HOME,"2,657.14",09/08/2017
Delivery Units,Adults and Communities,Other Agencies - Third Party P,90015151,EASTSIDE HOUSE RESIDENTIAL CARE HOM,"3,080.00",22/08/2017
Delivery Units,Adults and Communities,Other Agencies - Third Party P,90015152,EASTSIDE HOUSE RESIDENTIAL CARE HOM,"6,160.00",22/08/2017
Delivery Units,Adults and Communities,Other Agencies - Third Party P,90015130,NAZARETH HOUSE,"2,216.41",22/08/2017
Delivery Units,Adults and Communities,Other Agencies - Third Party P,90015131,NAZARETH HOUSE,"2,216.41",22/08/2017
Delivery Units,Adults and Communities,Other Agencies - Third Party P,90015132,NAZARETH HOUSE,"2,216.41",22/08/2017
Delivery Units,Adults and Communities,Other Agencies - Third Party P,90013671,APPLE TREE COURT CARE HOME,"2,418.04",15/08/2017
Delivery Units,Adults and Communities,Other Agencies - Third Party P,90013673,APPLE TREE COURT CARE HOME,"2,448.78",15/08/2017
Delivery Units,Adults and Communities,Other Agencies - Third Party P,90012931,SWANBOROUGH HOUSE,"3,722.44",10/08/2017
Delivery Units,Adults and Communities,Other Agencies - Third Party P,90011571,ASHFIELDS RESIDENTIAL CARE HOME,"2,176.71",01/08/2017
Delivery Units,Adults and Communities,Other Agencies - Third Party P,90011573,ASHFIELDS RESIDENTIAL CARE HOME,"2,369.79",01/08/2017
Delivery Units,Adults and Communities,Other Agencies - Third Party P,90011574,ASHFIELDS RESIDENTIAL CARE HOME,"2,369.79",01/08/2017
Delivery Units,Adults and Communities,Other Agencies - Third Party P,90011575,ASHFIELDS RESIDENTIAL CARE HOME,"2,369.79",01/08/2017
Delivery Units,Adults and Communities,Other Agencies - Third Party P,90011576,ASHFIELDS RESIDENTIAL CARE HOME,"2,369.79",01/08/2017
Delivery Units,Adults and Communities,Other Agencies - Third Party P,90011720,ASHFIELDS RESIDENTIAL CARE HOME,"2,448.78",02/08/2017
Delivery Units,Adults and Communities,Other Agencies - Third Party P,90011722,ASHFIELDS RESIDENTIAL CARE HOME,"2,448.78",02/08/2017
Delivery Units,Adults and Communities,Other Agencies - Third Party P,90011724,ASHFIELDS RESIDENTIAL CARE HOME,"2,448.78",02/08/2017
Delivery Units,Adults and Communities,Other Agencies - Third Party P,90011725,ASHFIELDS RESIDENTIAL CARE HOME,"2,249.27",02/08/2017
Delivery Units,Adults and Communities,Other Agencies - Third Party P,90011726,ASHFIELDS RESIDENTIAL CARE HOME,"2,448.78",02/08/2017
Delivery Units,Adults and Communities,Other Agencies - Third Party P,90011727,ASHFIELDS RESIDENTIAL CARE HOME,"2,843.74",02/08/2017
Delivery Units,Adults and Communities,Other Agencies - Third Party P,90013893,AUTUMN GARDENS,"3,160.00",16/08/2017
Delivery Units,Adults and Communities,Other Agencies - Third Party P,90013894,AUTUMN GARDENS,"2,880.00",16/08/2017
Delivery Units,Adults and Communities,Other Agencies - Third Party P,90015575,THE CHRISTIAN CARE TRUST,"2,031.76",29/08/2017
Delivery Units,Adults and Communities,Other Agencies - Third Party P,90015576,THE CHRISTIAN CARE TRUST,"2,211.80",29/08/2017
Delivery Units,Adults and Communities,Other Agencies - Third Party P,90013386,SPRINGVIEW,"3,100.00",15/08/2017
Delivery Units,Adults and Communities,Other Agencies - Third Party P,90015478,ABBEY RAVENSCROFT PARK NURSING HOME,"2,657.14",24/08/2017
Delivery Units,Adults and Communities,Other Agencies - Third Party P,90011581,HUSKARDS NEW CARE LTD,"2,249.36",01/08/2017
Delivery Units,Adults and Communities,Other Agencies - Third Party P,90011913,ASHTON LODGE CARE CENTRE,"3,133.02",04/08/2017
Delivery Units,Adults and Communities,Other Agencies - Third Party P,90011917,ASHTON LODGE CARE CENTRE,"3,133.02",04/08/2017
Delivery Units,Adults and Communities,Other Agencies - Third Party P,90015618,ELIZABETH HOUSE,"2,448.78",29/08/2017
Delivery Units,Adults and Communities,Other Agencies - Third Party P,80011694,MADELAYNE COURT,"2,001.92",10/08/2017
Delivery Units,Adults and Communities,Other Agencies - Third Party P,90015423,MADELAYNE COURT,"2,216.41",22/08/2017
Delivery Units,Adults and Communities,Other Agencies - Third Party P,90015416,AARON COURT CARE HOME,"2,216.41",22/08/2017
Delivery Units,Adults and Communities,Other Agencies - Third Party P,90013236,Z & M CARE LTD,"2,322.40",14/08/2017
Delivery Units,Adults and Communities,Other Agencies - Third Party P,30168592,LEEMING BAR CARE HOME,142.78,18/08/2017
Delivery Units,Adults and Communities,Other Agencies - Third Party P,90015100,LEEMING BAR CARE HOME,"1,998.92",22/08/2017
Delivery Units,Adults and Communities,Other Agencies - Third Party P,90015101,LEEMING BAR CARE HOME,"2,213.09",22/08/2017
Delivery Units,Adults and Communities,Other Agencies - Third Party P,90015102,LEEMING BAR CARE HOME,"2,141.70",22/08/2017
Delivery Units,Adults and Communities,Other Agencies - Third Party P,90015103,LEEMING BAR CARE HOME,"2,213.09",22/08/2017
Delivery Units,Adults and Communities,Other Agencies - Third Party P,80011693,THE RED HOUSE,"2,094.52",10/08/2017
Delivery Units,Adults and Communities,Other Agencies - Third Party P,90012921,THE RED HOUSE,"2,094.52",10/08/2017
Delivery Units,Adults and Communities,Other Agencies - Third Party P,90015442,THE RED HOUSE,"2,094.52",24/08/2017
Delivery Units,Adults and Communities,Other Agencies - Third Party P,90015433,ANGEL HEALTHCARE LTD - GLENMUIR HOUSE,"8,293.95",22/08/2017
Delivery Units,Adults and Communities,Other Agencies - Third Party P,90011932,ALEXANDRA HOUSE (RUNWOOD HOMES),"2,262.69",04/08/2017
Delivery Units,Adults and Communities,Other Agencies - Third Party P,90013239,PARCS HEALTHCARE LTD - VRANDAN CARE HOME,"2,080.00",14/08/2017
Delivery Units,Adults and Communities,Other Agencies - Third Party P,90013231,AARANDALE LODGE,"2,600.00",14/08/2017
Delivery Units,Adults and Communities,Other Agencies - Third Party P,90015481,SONNET CARE HOMES (ESSEX) LTD,"2,042.86",24/08/2017
Delivery Units,Adults and Communities,Direct Transfer Payments to So,90014084,CITIBANK NA LONDON,480.80,16/08/2017
Delivery Units,Adults and Communities,Direct Transfer Payments to So,90014091,CITIBANK NA LONDON,"1,612.56",16/08/2017
Delivery Units,Adults and Communities,Direct Transfer Payments to So,90014101,CITIBANK NA LONDON,301.20,16/08/2017
Delivery Units,Adults and Communities,Direct Transfer Payments to So,90014115,CITIBANK NA LONDON,805.20,16/08/2017
Delivery Units,Adults and Communities,Direct Transfer Payments to So,90014126,CITIBANK NA LONDON,966.84,16/08/2017
Delivery Units,Adults and Communities,Direct Transfer Payments to So,90014134,CITIBANK NA LONDON,520.52,16/08/2017
Delivery Units,Adults and Communities,Direct Transfer Payments to So,90014136,CITIBANK NA LONDON,384.64,16/08/2017
Delivery Units,Adults and Communities,Direct Transfer Payments to So,90014171,CITIBANK NA LONDON,462.00,16/08/2017
Delivery Units,Adults and Communities,Direct Transfer Payments to So,90014182,CITIBANK NA LONDON,454.32,16/08/2017
Delivery Units,Adults and Communities,Direct Transfer Payments to So,90014200,CITIBANK NA LONDON,280.00,16/08/2017
Delivery Units,Adults and Communities,Direct Transfer Payments to So,90014027,REDACTED - PERSONAL DATA,"1,881.00",16/08/2017
Delivery Units,Adults and Communities,Direct Transfer Payments to So,30168906,REDACTED - PERSONAL DATA,"2,658.76",23/08/2017
Delivery Units,Adults and Communities,Direct Transfer Payments to So,30168803,REDACTED - PERSONAL DATA,"1,627.48",23/08/2017
Delivery Units,Adults and Communities,Direct Transfer Payments to So,30168849,REDACTED - PERSONAL DATA,"3,846.40",23/08/2017
Delivery Units,Adults and Communities,Direct Transfer Payments to So,30168791,REDACTED - PERSONAL DATA,"1,185.52",23/08/2017
Delivery Units,Adults and Communities,Direct Transfer Payments to So,90014011,REDACTED - PERSONAL DATA,"3,834.44",16/08/2017
Delivery Units,Adults and Communities,Direct Transfer Payments to So,30168817,REDACTED - PERSONAL DATA,"1,402.16",23/08/2017
Delivery Units,Adults and Communities,Direct Transfer Payments to So,30168867,REDACTED - PERSONAL DATA,665.32,23/08/2017
Delivery Units,Adults and Communities,Direct Transfer Payments to So,90014905,REDACTED - PERSONAL DATA,733.72,21/08/2017
Delivery Units,Adults and Communities,Direct Transfer Payments to So,90014036,REDACTED - PERSONAL DATA,295.68,16/08/2017
Delivery Units,Adults and Communities,Direct Transfer Payments to So,30168753,REDACTED - PERSONAL DATA,"2,500.68",23/08/2017
Delivery Units,Adults and Communities,Direct Transfer Payments to So,30168781,REDACTED - PERSONAL DATA,"1,195.64",23/08/2017
Delivery Units,Adults and Communities,Direct Transfer Payments to So,30168840,REDACTED - PERSONAL DATA,837.68,23/08/2017
Delivery Units,Adults and Communities,Direct Transfer Payments to So,30168846,REDACTED - PERSONAL DATA,666.08,23/08/2017
Delivery Units,Adults and Communities,Direct Transfer Payments to So,30168761,REDACTED - PERSONAL DATA,368.88,23/08/2017
Delivery Units,Adults and Communities,Direct Transfer Payments to So,30168764,REDACTED - PERSONAL DATA,961.60,23/08/2017
Delivery Units,Adults and Communities,Direct Transfer Payments to So,30168802,REDACTED - PERSONAL DATA,755.52,23/08/2017
Delivery Units,Adults and Communities,Direct Transfer Payments to So,90014582,REDACTED - PERSONAL DATA,600.00,21/08/2017
Delivery Units,Adults and Communities,Direct Transfer Payments to So,30168798,REDACTED - PERSONAL DATA,231.52,23/08/2017
Delivery Units,Adults and Communities,Direct Transfer Payments to So,30168785,REDACTED - PERSONAL DATA,"1,766.96",23/08/2017
Delivery Units,Adults and Communities,Direct Transfer Payments to So,30168783,REDACTED - PERSONAL DATA,700.00,23/08/2017
Delivery Units,Adults and Communities,Direct Transfer Payments to So,30168731,REDACTED - PERSONAL DATA,"1,730.88",23/08/2017
Delivery Units,Adults and Communities,Direct Transfer Payments to So,90014527,REDACTED - PERSONAL DATA,"1,185.32",21/08/2017
Delivery Units,Adults and Communities,Direct Transfer Payments to So,30168754,REDACTED - PERSONAL DATA,"1,650.40",23/08/2017
Delivery Units,Adults and Communities,Direct Transfer Payments to So,30168763,REDACTED - PERSONAL DATA,286.12,23/08/2017
Delivery Units,Adults and Communities,Direct Transfer Payments to So,30168776,REDACTED - PERSONAL DATA,769.24,23/08/2017
Delivery Units,Adults and Communities,Direct Transfer Payments to So,30168864,REDACTED - PERSONAL DATA,821.00,23/08/2017
Delivery Units,Adults and Communities,Direct Transfer Payments to So,90014680,REDACTED - PERSONAL DATA,420.72,21/08/2017
Delivery Units,Adults and Communities,Direct Transfer Payments to So,30168701,REDACTED - PERSONAL DATA,122.48,23/08/2017
Delivery Units,Adults and Communities,Direct Transfer Payments to So,30168875,REDACTED - PERSONAL DATA,561.32,23/08/2017
Delivery Units,Adults and Communities,Direct Transfer Payments to So,90014561,REDACTED - PERSONAL DATA,589.00,21/08/2017
Delivery Units,Adults and Communities,Direct Transfer Payments to So,30168784,REDACTED - PERSONAL DATA,874.12,23/08/2017
Delivery Units,Adults and Communities,Direct Transfer Payments to So,90014575,REDACTED - PERSONAL DATA,"1,774.76",21/08/2017
Delivery Units,Adults and Communities,Direct Transfer Payments to So,30168984,REDACTED - PERSONAL DATA,244.60,23/08/2017
Delivery Units,Adults and Communities,Direct Transfer Payments to So,30168858,REDACTED - PERSONAL DATA,556.44,23/08/2017
Delivery Units,Adults and Communities,Direct Transfer Payments to So,30168908,REDACTED - PERSONAL DATA,"1,337.84",23/08/2017
Delivery Units,Adults and Communities,Direct Transfer Payments to So,90014008,REDACTED - PERSONAL DATA,781.32,16/08/2017
Delivery Units,Adults and Communities,Direct Transfer Payments to So,30168740,REDACTED - PERSONAL DATA,609.12,23/08/2017
Delivery Units,Adults and Communities,Direct Transfer Payments to So,90014535,REDACTED - PERSONAL DATA,456.76,21/08/2017
Delivery Units,Adults and Communities,Direct Transfer Payments to So,30168809,REDACTED - PERSONAL DATA,699.36,23/08/2017
Delivery Units,Adults and Communities,Direct Transfer Payments to So,90014608,REDACTED - PERSONAL DATA,202.20,21/08/2017
Delivery Units,Adults and Communities,Direct Transfer Payments to So,30168725,REDACTED - PERSONAL DATA,"1,721.48",23/08/2017
Delivery Units,Adults and Communities,Direct Transfer Payments to So,30168909,REDACTED - PERSONAL DATA,"1,659.28",23/08/2017
Delivery Units,Adults and Communities,Direct Transfer Payments to So,30168773,REDACTED - PERSONAL DATA,542.44,23/08/2017
Delivery Units,Adults and Communities,Direct Transfer Payments to So,90014560,REDACTED - PERSONAL DATA,925.40,21/08/2017
Delivery Units,Adults and Communities,Direct Transfer Payments to So,30168769,REDACTED - PERSONAL DATA,6.76,23/08/2017
Delivery Units,Adults and Communities,Direct Transfer Payments to So,30168774,REDACTED - PERSONAL DATA,591.60,23/08/2017
Delivery Units,Adults and Communities,Direct Transfer Payments to So,30168755,REDACTED - PERSONAL DATA,"1,028.24",23/08/2017
Delivery Units,Adults and Communities,Direct Transfer Payments to So,90012525,REDACTED - PERSONAL DATA,111.40,09/08/2017
Delivery Units,Adults and Communities,Direct Transfer Payments to So,30168770,REDACTED - PERSONAL DATA,302.72,23/08/2017
Delivery Units,Adults and Communities,Direct Transfer Payments to So,30168750,REDACTED - PERSONAL DATA,"1,564.32",23/08/2017
Delivery Units,Adults and Communities,Direct Transfer Payments to So,30168759,REDACTED - PERSONAL DATA,278.32,23/08/2017
Delivery Units,Adults and Communities,Direct Transfer Payments to So,90014010,REDACTED - PERSONAL DATA,"1,786.40",16/08/2017
Delivery Units,Adults and Communities,Direct Transfer Payments to So,30168780,REDACTED - PERSONAL DATA,"1,590.60",23/08/2017
Delivery Units,Adults and Communities,Direct Transfer Payments to So,90014092,REDACTED - PERSONAL DATA,913.52,16/08/2017
Delivery Units,Adults and Communities,Direct Transfer Payments to So,30168870,REDACTED - PERSONAL DATA,576.00,23/08/2017
Delivery Units,Adults and Communities,Direct Transfer Payments to So,90014605,REDACTED - PERSONAL DATA,502.40,21/08/2017
Delivery Units,Adults and Communities,Direct Transfer Payments to So,30168834,REDACTED - PERSONAL DATA,"1,113.84",23/08/2017
Delivery Units,Adults and Communities,Direct Transfer Payments to So,30168831,REDACTED - PERSONAL DATA,"2,003.40",23/08/2017
Delivery Units,Adults and Communities,Direct Transfer Payments to So,30168835,REDACTED - PERSONAL DATA,134.84,23/08/2017
Delivery Units,Adults and Communities,Direct Transfer Payments to So,30168837,REDACTED - PERSONAL DATA,589.64,23/08/2017
Delivery Units,Adults and Communities,Direct Transfer Payments to So,30168843,REDACTED - PERSONAL DATA,31.60,23/08/2017
Delivery Units,Adults and Communities,Direct Transfer Payments to So,30168845,REDACTED - PERSONAL DATA,397.20,23/08/2017
Delivery Units,Adults and Communities,Direct Transfer Payments to So,90014796,REDACTED - PERSONAL DATA,"1,123.97",21/08/2017
Delivery Units,Adults and Communities,Direct Transfer Payments to So,90014906,REDACTED - PERSONAL DATA,572.20,21/08/2017
Delivery Units,Adults and Communities,Direct Transfer Payments to So,30168956,REDACTED - PERSONAL DATA,"1,676.88",23/08/2017
Delivery Units,Adults and Communities,Direct Transfer Payments to So,90014179,REDACTED - PERSONAL DATA,"2,852.68",16/08/2017
Delivery Units,Adults and Communities,Direct Transfer Payments to So,30168853,REDACTED - PERSONAL DATA,632.24,23/08/2017
Delivery Units,Adults and Communities,Direct Transfer Payments to So,30168976,REDACTED - PERSONAL DATA,608.48,23/08/2017
Delivery Units,Adults and Communities,Direct Transfer Payments to So,90014087,REDACTED - PERSONAL DATA,"1,162.56",16/08/2017
Delivery Units,Adults and Communities,Direct Transfer Payments to So,30168859,REDACTED - PERSONAL DATA,203.08,23/08/2017
Delivery Units,Adults and Communities,Direct Transfer Payments to So,30168850,REDACTED - PERSONAL DATA,671.20,23/08/2017
Delivery Units,Adults and Communities,Direct Transfer Payments to So,30168940,REDACTED - PERSONAL DATA,389.48,23/08/2017
Delivery Units,Adults and Communities,Direct Transfer Payments to So,90014641,REDACTED - PERSONAL DATA,439.92,21/08/2017
Delivery Units,Adults and Communities,Direct Transfer Payments to So,90014094,REDACTED - PERSONAL DATA,"1,009.68",16/08/2017
Delivery Units,Adults and Communities,Direct Transfer Payments to So,90014639,REDACTED - PERSONAL DATA,"1,974.28",21/08/2017
Delivery Units,Adults and Communities,Direct Transfer Payments to So,90014642,REDACTED - PERSONAL DATA,"1,545.48",21/08/2017
Delivery Units,Adults and Communities,Direct Transfer Payments to So,30168866,REDACTED - PERSONAL DATA,"1,525.44",23/08/2017
Delivery Units,Adults and Communities,Direct Transfer Payments to So,30168865,REDACTED - PERSONAL DATA,"1,803.68",23/08/2017
Delivery Units,Adults and Communities,Direct Transfer Payments to So,90014645,REDACTED - PERSONAL DATA,420.68,21/08/2017
Delivery Units,Adults and Communities,Direct Transfer Payments to So,90014653,REDACTED - PERSONAL DATA,636.56,21/08/2017
Delivery Units,Adults and Communities,Direct Transfer Payments to So,30168871,REDACTED - PERSONAL DATA,286.92,23/08/2017
Delivery Units,Adults and Communities,Direct Transfer Payments to So,30168876,REDACTED - PERSONAL DATA,"1,585.56",23/08/2017
Delivery Units,Adults and Communities,Direct Transfer Payments to So,90014257,REDACTED - PERSONAL DATA,"1,346.24",17/08/2017
Delivery Units,Adults and Communities,Direct Transfer Payments to So,30168878,REDACTED - PERSONAL DATA,13.32,23/08/2017
Delivery Units,Adults and Communities,Direct Transfer Payments to So,30168881,REDACTED - PERSONAL DATA,467.32,23/08/2017
Delivery Units,Adults and Communities,Direct Transfer Payments to So,30168889,REDACTED - PERSONAL DATA,770.40,23/08/2017
Delivery Units,Adults and Communities,Direct Transfer Payments to So,90014196,REDACTED - PERSONAL DATA,687.12,16/08/2017
Delivery Units,Adults and Communities,Direct Transfer Payments to So,30168892,REDACTED - PERSONAL DATA,"1,848.24",23/08/2017
Delivery Units,Adults and Communities,Direct Transfer Payments to So,90014691,REDACTED - PERSONAL DATA,926.68,21/08/2017
Delivery Units,Adults and Communities,Direct Transfer Payments to So,30168887,REDACTED - PERSONAL DATA,920.00,23/08/2017
Delivery Units,Adults and Communities,Direct Transfer Payments to So,90014266,REDACTED - PERSONAL DATA,336.56,17/08/2017
Delivery Units,Adults and Communities,Direct Transfer Payments to So,90014696,REDACTED - PERSONAL DATA,975.36,21/08/2017
Delivery Units,Adults and Communities,Direct Transfer Payments to So,30168904,REDACTED - PERSONAL DATA,675.80,23/08/2017
Delivery Units,Adults and Communities,Direct Transfer Payments to So,90014138,REDACTED - PERSONAL DATA,"1,514.52",16/08/2017
Delivery Units,Adults and Communities,Direct Transfer Payments to So,30168911,REDACTED - PERSONAL DATA,559.60,23/08/2017
Delivery Units,Adults and Communities,Direct Transfer Payments to So,30168912,REDACTED - PERSONAL DATA,"1,187.20",23/08/2017
Delivery Units,Adults and Communities,Direct Transfer Payments to So,90014276,REDACTED - PERSONAL DATA,"1,312.64",17/08/2017
Delivery Units,Adults and Communities,Direct Transfer Payments to So,30168919,REDACTED - PERSONAL DATA,409.04,23/08/2017
Delivery Units,Adults and Communities,Direct Transfer Payments to So,30168922,REDACTED - PERSONAL DATA,631.60,23/08/2017
Delivery Units,Adults and Communities,Direct Transfer Payments to So,30168925,REDACTED - PERSONAL DATA,650.00,23/08/2017
Delivery Units,Adults and Communities,Direct Transfer Payments to So,90014279,REDACTED - PERSONAL DATA,80.00,17/08/2017
Delivery Units,Adults and Communities,Direct Transfer Payments to So,90014277,REDACTED - PERSONAL DATA,775.04,17/08/2017
Delivery Units,Adults and Communities,Direct Transfer Payments to So,30168924,REDACTED - PERSONAL DATA,197.40,23/08/2017
Delivery Units,Adults and Communities,Direct Transfer Payments to So,90014721,REDACTED - PERSONAL DATA,588.24,21/08/2017
Delivery Units,Adults and Communities,Direct Transfer Payments to So,90014724,REDACTED - PERSONAL DATA,480.80,21/08/2017
Delivery Units,Adults and Communities,Direct Transfer Payments to So,90014723,REDACTED - PERSONAL DATA,"3,444.00",21/08/2017
Delivery Units,Adults and Communities,Direct Transfer Payments to So,90014161,REDACTED - PERSONAL DATA,"1,104.00",16/08/2017
Delivery Units,Adults and Communities,Direct Transfer Payments to So,90014166,REDACTED - PERSONAL DATA,232.00,16/08/2017
Delivery Units,Adults and Communities,Direct Transfer Payments to So,90014728,REDACTED - PERSONAL DATA,451.92,21/08/2017
Delivery Units,Adults and Communities,Direct Transfer Payments to So,90014301,REDACTED - PERSONAL DATA,649.08,17/08/2017
Delivery Units,Adults and Communities,Direct Transfer Payments to So,30168930,REDACTED - PERSONAL DATA,"1,635.08",23/08/2017
Delivery Units,Adults and Communities,Direct Transfer Payments to So,30168931,REDACTED - PERSONAL DATA,313.12,23/08/2017
Delivery Units,Adults and Communities,Direct Transfer Payments to So,90012112,REDACTED - PERSONAL DATA,"1,015.84",04/08/2017
Delivery Units,Adults and Communities,Direct Transfer Payments to So,90014732,REDACTED - PERSONAL DATA,504.00,21/08/2017
Delivery Units,Adults and Communities,Direct Transfer Payments to So,30168934,REDACTED - PERSONAL DATA,"1,274.32",23/08/2017
Delivery Units,Adults and Communities,Direct Transfer Payments to So,90014311,REDACTED - PERSONAL DATA,168.28,17/08/2017
Delivery Units,Adults and Communities,Direct Transfer Payments to So,90014189,REDACTED - PERSONAL DATA,432.72,16/08/2017
Delivery Units,Adults and Communities,Direct Transfer Payments to So,90014312,REDACTED - PERSONAL DATA,440.00,17/08/2017
Delivery Units,Adults and Communities,Direct Transfer Payments to So,90014742,REDACTED - PERSONAL DATA,"3,353.52",21/08/2017
Delivery Units,Adults and Communities,Direct Transfer Payments to So,30168937,REDACTED - PERSONAL DATA,965.44,23/08/2017
Delivery Units,Adults and Communities,Direct Transfer Payments to So,90014326,REDACTED - PERSONAL DATA,347.20,17/08/2017
Delivery Units,Adults and Communities,Direct Transfer Payments to So,90014750,REDACTED - PERSONAL DATA,347.20,21/08/2017
Delivery Units,Adults and Communities,Direct Transfer Payments to So,30168942,REDACTED - PERSONAL DATA,219.32,23/08/2017
Delivery Units,Adults and Communities,Direct Transfer Payments to So,90014752,REDACTED - PERSONAL DATA,"2,291.52",21/08/2017
Delivery Units,Adults and Communities,Direct Transfer Payments to So,90014335,REDACTED - PERSONAL DATA,757.12,17/08/2017
Delivery Units,Adults and Communities,Direct Transfer Payments to So,90014336,REDACTED - PERSONAL DATA,"1,063.72",17/08/2017
Delivery Units,Adults and Communities,Direct Transfer Payments to So,30168945,REDACTED - PERSONAL DATA,537.08,23/08/2017
Delivery Units,Adults and Communities,Direct Transfer Payments to So,90014339,REDACTED - PERSONAL DATA,"1,346.24",17/08/2017
Delivery Units,Adults and Communities,Direct Transfer Payments to So,90014756,REDACTED - PERSONAL DATA,207.60,21/08/2017
Delivery Units,Adults and Communities,Direct Transfer Payments to So,30168949,REDACTED - PERSONAL DATA,443.20,23/08/2017
Delivery Units,Adults and Communities,Direct Transfer Payments to So,30168947,REDACTED - PERSONAL DATA,360.60,23/08/2017
Delivery Units,Adults and Communities,Direct Transfer Payments to So,30168952,REDACTED - PERSONAL DATA,952.00,23/08/2017
Delivery Units,Adults and Communities,Direct Transfer Payments to So,30168950,REDACTED - PERSONAL DATA,162.96,23/08/2017
Delivery Units,Adults and Communities,Direct Transfer Payments to So,30168954,REDACTED - PERSONAL DATA,"1,188.72",23/08/2017
Delivery Units,Adults and Communities,Direct Transfer Payments to So,90014758,REDACTED - PERSONAL DATA,"2,686.00",21/08/2017
Delivery Units,Adults and Communities,Direct Transfer Payments to So,90014895,REDACTED - PERSONAL DATA,218.24,21/08/2017
Delivery Units,Adults and Communities,Direct Transfer Payments to So,80011794,REDACTED - PERSONAL DATA,"4,650.24",04/08/2017
Delivery Units,Adults and Communities,Direct Transfer Payments to So,30168955,REDACTED - PERSONAL DATA,"4,305.12",23/08/2017
Delivery Units,Adults and Communities,Direct Transfer Payments to So,90014372,REDACTED - PERSONAL DATA,584.76,17/08/2017
Delivery Units,Adults and Communities,Direct Transfer Payments to So,90014366,REDACTED - PERSONAL DATA,"1,550.84",17/08/2017
Delivery Units,Adults and Communities,Direct Transfer Payments to So,90014363,REDACTED - PERSONAL DATA,124.00,17/08/2017
Delivery Units,Adults and Communities,Direct Transfer Payments to So,90014894,REDACTED - PERSONAL DATA,917.80,21/08/2017
Delivery Units,Adults and Communities,Direct Transfer Payments to So,90014365,REDACTED - PERSONAL DATA,"2,905.00",17/08/2017
Delivery Units,Adults and Communities,Direct Transfer Payments to So,80011793,REDACTED - PERSONAL DATA,176.00,04/08/2017
Delivery Units,Adults and Communities,Direct Transfer Payments to So,30168964,REDACTED - PERSONAL DATA,237.92,23/08/2017
Delivery Units,Adults and Communities,Direct Transfer Payments to So,90014376,REDACTED - PERSONAL DATA,610.60,17/08/2017
Delivery Units,Adults and Communities,Direct Transfer Payments to So,90014377,REDACTED - PERSONAL DATA,442.88,17/08/2017
Delivery Units,Adults and Communities,Direct Transfer Payments to So,90012527,REDACTED - PERSONAL DATA,"3,395.96",09/08/2017
Delivery Units,Adults and Communities,Direct Transfer Payments to So,30168960,REDACTED - PERSONAL DATA,482.28,23/08/2017
Delivery Units,Adults and Communities,Direct Transfer Payments to So,90014380,REDACTED - PERSONAL DATA,756.00,17/08/2017
Delivery Units,Adults and Communities,Direct Transfer Payments to So,90014384,REDACTED - PERSONAL DATA,"1,009.68",17/08/2017
Delivery Units,Adults and Communities,Direct Transfer Payments to So,30168967,REDACTED - PERSONAL DATA,"2,066.00",23/08/2017
Delivery Units,Adults and Communities,Direct Transfer Payments to So,90014381,REDACTED - PERSONAL DATA,"2,298.44",17/08/2017
Delivery Units,Adults and Communities,Direct Transfer Payments to So,90014382,REDACTED - PERSONAL DATA,235.20,17/08/2017
Delivery Units,Adults and Communities,Direct Transfer Payments to So,90014383,REDACTED - PERSONAL DATA,"2,092.96",17/08/2017
Delivery Units,Adults and Communities,Direct Transfer Payments to So,30168968,REDACTED - PERSONAL DATA,"1,108.00",23/08/2017
Delivery Units,Adults and Communities,Direct Transfer Payments to So,30168972,REDACTED - PERSONAL DATA,"1,869.00",23/08/2017
Delivery Units,Adults and Communities,Direct Transfer Payments to So,90014386,REDACTED - PERSONAL DATA,"1,092.00",17/08/2017
Delivery Units,Adults and Communities,Direct Transfer Payments to So,90014388,REDACTED - PERSONAL DATA,352.36,17/08/2017
Delivery Units,Adults and Communities,Direct Transfer Payments to So,90014389,REDACTED - PERSONAL DATA,231.40,17/08/2017
Delivery Units,Adults and Communities,Direct Transfer Payments to So,90007136,REDACTED - PERSONAL DATA,995.25,21/08/2017
Delivery Units,Adults and Communities,Direct Transfer Payments to So,30168973,REDACTED - PERSONAL DATA,"1,950.08",23/08/2017
Delivery Units,Adults and Communities,Direct Transfer Payments to So,30168977,REDACTED - PERSONAL DATA,"2,211.76",23/08/2017
Delivery Units,Adults and Communities,Direct Transfer Payments to So,90014391,REDACTED - PERSONAL DATA,"1,143.80",17/08/2017
Delivery Units,Adults and Communities,Direct Transfer Payments to So,30168979,REDACTED - PERSONAL DATA,950.60,23/08/2017
Delivery Units,Adults and Communities,Direct Transfer Payments to So,90014790,REDACTED - PERSONAL DATA,126.40,21/08/2017
Delivery Units,Adults and Communities,Direct Transfer Payments to So,30168702,REDACTED - PERSONAL DATA,"5,355.46",23/08/2017
Delivery Units,Adults and Communities,Fees and Charges,90014218,REDACTED - PERSONAL DATA,(74.80),16/08/2017
Delivery Units,Adults and Communities,Fees and Charges,90013868,REDACTED - PERSONAL DATA,802.61,16/08/2017
Delivery Units,Adults and Communities,Fees and Charges,90014235,REDACTED - PERSONAL DATA,(57.96),16/08/2017
Delivery Units,Adults and Communities,Fees and Charges,90013869,REDACTED - PERSONAL DATA,480.78,16/08/2017
Delivery Units,Adults and Communities,Fees and Charges,90014222,REDACTED - PERSONAL DATA,(73.72),16/08/2017
Delivery Units,Adults and Communities,Fees and Charges,90014250,REDACTED - PERSONAL DATA,(63.84),16/08/2017
Delivery Units,Adults and Communities,Fees and Charges,90014242,REDACTED - PERSONAL DATA,(58.20),16/08/2017
Delivery Units,Adults and Communities,Fees and Charges,90014237,REDACTED - PERSONAL DATA,(39.04),16/08/2017
Delivery Units,Adults and Communities,Other Agencies - Third Party P,90011472,WESTMINSTER HOMECARE LTD,663.60,01/08/2017
Delivery Units,Adults and Communities,Other Agencies - Third Party P,90011473,WESTMINSTER HOMECARE LTD,442.40,01/08/2017
Delivery Units,Adults and Communities,Other Agencies - Third Party P,90011474,WESTMINSTER HOMECARE LTD,55.30,01/08/2017
Delivery Units,Adults and Communities,Other Agencies - Third Party P,90011475,WESTMINSTER HOMECARE LTD,774.20,01/08/2017
Delivery Units,Adults and Communities,Other Agencies - Third Party P,90011476,WESTMINSTER HOMECARE LTD,663.60,01/08/2017
Delivery Units,Adults and Communities,Other Agencies - Third Party P,90011477,WESTMINSTER HOMECARE LTD,106.65,01/08/2017
Delivery Units,Adults and Communities,Other Agencies - Third Party P,90011480,WESTMINSTER HOMECARE LTD,126.40,01/08/2017
Delivery Units,Adults and Communities,Other Agencies - Third Party P,90011485,WESTMINSTER HOMECARE LTD,774.20,01/08/2017
Delivery Units,Adults and Communities,Other Agencies - Third Party P,90011486,WESTMINSTER HOMECARE LTD,102.70,01/08/2017
Delivery Units,Adults and Communities,Other Agencies - Third Party P,90011489,WESTMINSTER HOMECARE LTD,884.80,01/08/2017
Delivery Units,Adults and Communities,Other Agencies - Third Party P,90011490,WESTMINSTER HOMECARE LTD,774.20,01/08/2017
Delivery Units,Adults and Communities,Other Agencies - Third Party P,90011492,WESTMINSTER HOMECARE LTD,410.80,01/08/2017
Delivery Units,Adults and Communities,Other Agencies - Third Party P,90011493,WESTMINSTER HOMECARE LTD,63.20,01/08/2017
Delivery Units,Adults and Communities,Other Agencies - Third Party P,90011495,WESTMINSTER HOMECARE LTD,213.30,01/08/2017
Delivery Units,Adults and Communities,Other Agencies - Third Party P,90011496,WESTMINSTER HOMECARE LTD,774.20,01/08/2017
Delivery Units,Adults and Communities,Other Agencies - Third Party P,90011497,WESTMINSTER HOMECARE LTD,331.80,01/08/2017
Delivery Units,Adults and Communities,Other Agencies - Third Party P,90011499,WESTMINSTER HOMECARE LTD,237.00,01/08/2017
Delivery Units,Adults and Communities,Other Agencies - Third Party P,90011501,WESTMINSTER HOMECARE LTD,553.00,01/08/2017
Delivery Units,Adults and Communities,Other Agencies - Third Party P,90011503,WESTMINSTER HOMECARE LTD,"1,982.90",01/08/2017
Delivery Units,Adults and Communities,Other Agencies - Third Party P,90011505,WESTMINSTER HOMECARE LTD,880.85,01/08/2017
Delivery Units,Adults and Communities,Other Agencies - Third Party P,90011506,WESTMINSTER HOMECARE LTD,884.80,01/08/2017
Delivery Units,Adults and Communities,Other Agencies - Third Party P,90011507,WESTMINSTER HOMECARE LTD,158.00,01/08/2017
Delivery Units,Adults and Communities,Other Agencies - Third Party P,90011509,WESTMINSTER HOMECARE LTD,189.60,01/08/2017
Delivery Units,Adults and Communities,Other Agencies - Third Party P,90011510,WESTMINSTER HOMECARE LTD,304.15,01/08/2017
Delivery Units,Adults and Communities,Other Agencies - Third Party P,90011511,WESTMINSTER HOMECARE LTD,695.20,01/08/2017
Delivery Units,Adults and Communities,Other Agencies - Third Party P,90011514,WESTMINSTER HOMECARE LTD,260.70,01/08/2017
Delivery Units,Adults and Communities,Other Agencies - Third Party P,90011515,WESTMINSTER HOMECARE LTD,442.40,01/08/2017
Delivery Units,Adults and Communities,Other Agencies - Third Party P,90011516,WESTMINSTER HOMECARE LTD,553.00,01/08/2017
Delivery Units,Adults and Communities,Other Agencies - Third Party P,90011517,WESTMINSTER HOMECARE LTD,691.25,01/08/2017
Delivery Units,Adults and Communities,Other Agencies - Third Party P,90011742,WESTMINSTER HOMECARE LTD,387.10,02/08/2017
Delivery Units,Adults and Communities,Other Agencies - Third Party P,90011743,WESTMINSTER HOMECARE LTD,663.60,02/08/2017
Delivery Units,Adults and Communities,Other Agencies - Third Party P,90011744,WESTMINSTER HOMECARE LTD,221.20,02/08/2017
Delivery Units,Adults and Communities,Other Agencies - Third Party P,90011745,WESTMINSTER HOMECARE LTD,746.55,02/08/2017
Delivery Units,Adults and Communities,Other Agencies - Third Party P,90011746,WESTMINSTER HOMECARE LTD,59.25,02/08/2017
Delivery Units,Adults and Communities,Other Agencies - Third Party P,90011747,WESTMINSTER HOMECARE LTD,663.60,02/08/2017
Delivery Units,Adults and Communities,Other Agencies - Third Party P,90011748,WESTMINSTER HOMECARE LTD,118.50,02/08/2017
Delivery Units,Adults and Communities,Other Agencies - Third Party P,90011751,WESTMINSTER HOMECARE LTD,"2,330.50",02/08/2017
Delivery Units,Adults and Communities,Other Agencies - Third Party P,90011754,WESTMINSTER HOMECARE LTD,770.25,02/08/2017
Delivery Units,Adults and Communities,Other Agencies - Third Party P,90011757,WESTMINSTER HOMECARE LTD,655.70,02/08/2017
Delivery Units,Adults and Communities,Other Agencies - Third Party P,90011758,WESTMINSTER HOMECARE LTD,762.35,02/08/2017
Delivery Units,Adults and Communities,Other Agencies - Third Party P,90011760,WESTMINSTER HOMECARE LTD,422.65,02/08/2017
Delivery Units,Adults and Communities,Other Agencies - Third Party P,90011761,WESTMINSTER HOMECARE LTD,55.30,02/08/2017
Delivery Units,Adults and Communities,Other Agencies - Third Party P,90011763,WESTMINSTER HOMECARE LTD,221.20,02/08/2017
Delivery Units,Adults and Communities,Other Agencies - Third Party P,90011764,WESTMINSTER HOMECARE LTD,19.75,02/08/2017
Delivery Units,Adults and Communities,Other Agencies - Third Party P,90011765,WESTMINSTER HOMECARE LTD,774.20,02/08/2017
Delivery Units,Adults and Communities,Other Agencies - Third Party P,90011766,WESTMINSTER HOMECARE LTD,331.80,02/08/2017
Delivery Units,Adults and Communities,Other Agencies - Third Party P,90011767,WESTMINSTER HOMECARE LTD,244.90,02/08/2017
Delivery Units,Adults and Communities,Other Agencies - Third Party P,90011769,WESTMINSTER HOMECARE LTD,454.25,02/08/2017
Delivery Units,Adults and Communities,Other Agencies - Third Party P,90011771,WESTMINSTER HOMECARE LTD,"2,061.90",02/08/2017
Delivery Units,Adults and Communities,Other Agencies - Third Party P,90011772,WESTMINSTER HOMECARE LTD,884.80,02/08/2017
Delivery Units,Adults and Communities,Other Agencies - Third Party P,90011773,WESTMINSTER HOMECARE LTD,884.80,02/08/2017
Delivery Units,Adults and Communities,Other Agencies - Third Party P,90011775,WESTMINSTER HOMECARE LTD,398.95,02/08/2017
Delivery Units,Adults and Communities,Other Agencies - Third Party P,90011776,WESTMINSTER HOMECARE LTD,695.20,02/08/2017
Delivery Units,Adults and Communities,Other Agencies - Third Party P,90011779,WESTMINSTER HOMECARE LTD,442.40,02/08/2017
Delivery Units,Adults and Communities,Other Agencies - Third Party P,90011782,WESTMINSTER HOMECARE LTD,"1,343.00",02/08/2017
Delivery Units,Adults and Communities,Other Agencies - Third Party P,90011785,WESTMINSTER HOMECARE LTD,430.55,02/08/2017
Delivery Units,Adults and Communities,Other Agencies - Third Party P,90011786,WESTMINSTER HOMECARE LTD,"1,133.65",02/08/2017
Delivery Units,Adults and Communities,Other Agencies - Third Party P,90011787,WESTMINSTER HOMECARE LTD,"1,489.15",02/08/2017
Delivery Units,Adults and Communities,Other Agencies - Third Party P,90012209,CAREWATCH (BARNET),51.61,07/08/2017
Delivery Units,Adults and Communities,Other Agencies - Third Party P,90012210,CAREWATCH (BARNET),115.13,07/08/2017
Delivery Units,Adults and Communities,Other Agencies - Third Party P,90012211,CAREWATCH (BARNET),47.64,07/08/2017
Delivery Units,Adults and Communities,Other Agencies - Third Party P,90012212,CAREWATCH (BARNET),95.28,07/08/2017
Delivery Units,Adults and Communities,Other Agencies - Third Party P,90012214,CAREWATCH (BARNET),258.05,07/08/2017
Delivery Units,Adults and Communities,Other Agencies - Third Party P,90012216,CAREWATCH (BARNET),119.10,07/08/2017
Delivery Units,Adults and Communities,Other Agencies - Third Party P,90012217,CAREWATCH (BARNET),246.14,07/08/2017
Delivery Units,Adults and Communities,Other Agencies - Third Party P,90012220,CAREWATCH (BARNET),107.19,07/08/2017
Delivery Units,Adults and Communities,Other Agencies - Third Party P,90012223,CAREWATCH (BARNET),166.74,07/08/2017
Delivery Units,Adults and Communities,Other Agencies - Third Party P,90012224,CAREWATCH (BARNET),79.40,07/08/2017
Delivery Units,Adults and Communities,Other Agencies - Third Party P,90012225,CAREWATCH (BARNET),99.25,07/08/2017
Delivery Units,Adults and Communities,Other Agencies - Third Party P,90012226,CAREWATCH (BARNET),47.64,07/08/2017
Delivery Units,Adults and Communities,Other Agencies - Third Party P,90012227,CAREWATCH (BARNET),202.47,07/08/2017
Delivery Units,Adults and Communities,Other Agencies - Third Party P,90012228,CAREWATCH (BARNET),111.16,07/08/2017
Delivery Units,Adults and Communities,Other Agencies - Third Party P,90012229,CAREWATCH (BARNET),83.37,07/08/2017
Delivery Units,Adults and Communities,Other Agencies - Third Party P,90012231,CAREWATCH (BARNET),83.37,07/08/2017
Delivery Units,Adults and Communities,Other Agencies - Third Party P,90012232,CAREWATCH (BARNET),182.62,07/08/2017
Delivery Units,Adults and Communities,Other Agencies - Third Party P,90012233,CAREWATCH (BARNET),67.49,07/08/2017
Delivery Units,Adults and Communities,Other Agencies - Third Party P,90012234,CAREWATCH (BARNET),83.37,07/08/2017
Delivery Units,Adults and Communities,Other Agencies - Third Party P,90012235,CAREWATCH (BARNET),222.32,07/08/2017
Delivery Units,Adults and Communities,Other Agencies - Third Party P,90012236,CAREWATCH (BARNET),206.44,07/08/2017
Delivery Units,Adults and Communities,Other Agencies - Third Party P,90012237,CAREWATCH (BARNET),226.29,07/08/2017
Delivery Units,Adults and Communities,Other Agencies - Third Party P,90012238,CAREWATCH (BARNET),194.53,07/08/2017
Delivery Units,Adults and Communities,Other Agencies - Third Party P,90012239,CAREWATCH (BARNET),150.86,07/08/2017
Delivery Units,Adults and Communities,Other Agencies - Third Party P,90012240,CAREWATCH (BARNET),55.58,07/08/2017
Delivery Units,Adults and Communities,Other Agencies - Third Party P,90012241,CAREWATCH (BARNET),138.95,07/08/2017
Delivery Units,Adults and Communities,Other Agencies - Third Party P,90012242,CAREWATCH (BARNET),250.11,07/08/2017
Delivery Units,Adults and Communities,Other Agencies - Third Party P,90012243,CAREWATCH (BARNET),174.68,07/08/2017
Delivery Units,Adults and Communities,Other Agencies - Third Party P,90012245,CAREWATCH (BARNET),250.11,07/08/2017
Delivery Units,Adults and Communities,Other Agencies - Third Party P,90012246,CAREWATCH (BARNET),305.69,07/08/2017
Delivery Units,Adults and Communities,Other Agencies - Third Party P,90012247,CAREWATCH (BARNET),246.14,07/08/2017
Delivery Units,Adults and Communities,Other Agencies - Third Party P,90012248,CAREWATCH (BARNET),59.55,07/08/2017
Delivery Units,Adults and Communities,Other Agencies - Third Party P,90012249,CAREWATCH (BARNET),138.95,07/08/2017
Delivery Units,Adults and Communities,Other Agencies - Third Party P,90012250,CAREWATCH (BARNET),55.58,07/08/2017
Delivery Units,Adults and Communities,Other Agencies - Third Party P,90012251,CAREWATCH (BARNET),488.31,07/08/2017
Delivery Units,Adults and Communities,Other Agencies - Third Party P,90012252,CAREWATCH (BARNET),194.53,07/08/2017
Delivery Units,Adults and Communities,Other Agencies - Third Party P,90012253,CAREWATCH (BARNET),250.11,07/08/2017
Delivery Units,Adults and Communities,Other Agencies - Third Party P,90012254,CAREWATCH (BARNET),250.11,07/08/2017
Delivery Units,Adults and Communities,Other Agencies - Third Party P,90012255,CAREWATCH (BARNET),55.58,07/08/2017
Delivery Units,Adults and Communities,Other Agencies - Third Party P,90012256,CAREWATCH (BARNET),321.57,07/08/2017
Delivery Units,Adults and Communities,Other Agencies - Third Party P,90012257,CAREWATCH (BARNET),138.95,07/08/2017
Delivery Units,Adults and Communities,Other Agencies - Third Party P,90012258,CAREWATCH (BARNET),277.90,07/08/2017
Delivery Units,Adults and Communities,Other Agencies - Third Party P,90012259,CAREWATCH (BARNET),83.37,07/08/2017
Delivery Units,Adults and Communities,Other Agencies - Third Party P,90012260,CAREWATCH (BARNET),99.25,07/08/2017
Delivery Units,Adults and Communities,Other Agencies - Third Party P,90012261,CAREWATCH (BARNET),55.58,07/08/2017
Delivery Units,Adults and Communities,Other Agencies - Third Party P,90012262,CAREWATCH (BARNET),138.95,07/08/2017
Delivery Units,Adults and Communities,Other Agencies - Third Party P,90012263,CAREWATCH (BARNET),226.29,07/08/2017
